Workbook

Sheet Summary
C2: All Intra Main10
C3: =CONCATENATE("Over ", $J$3) -> Over xiang's | I3: Reference: | J3: xiang's
C4: Y | D4: U | E4: V | F4: EncT | G4: DecT | I4: Tested: | J4: Test
B5: Class A1 | C5: ='AI-10'!V107 ->  | D5: ='AI-10'!W107 ->  | E5: ='AI-10'!X107 ->  | F5: ='AI-10'!S107 ->  | G5: ='AI-10'!T107 -> 
B6: Class A2 | C6: ='AI-10'!V108 ->  | D6: ='AI-10'!W108 ->  | E6: ='AI-10'!X108 ->  | F6: ='AI-10'!S108 ->  | G6: ='AI-10'!T108 -> 
B7: Class B | C7: ='AI-10'!V109 ->  | D7: ='AI-10'!W109 ->  | E7: ='AI-10'!X109 ->  | F7: ='AI-10'!S109 ->  | G7: ='AI-10'!T109 -> 
B8: Class C | C8: ='AI-10'!V110 ->  | D8: ='AI-10'!W110 ->  | E8: ='AI-10'!X110 ->  | F8: ='AI-10'!S110 ->  | G8: ='AI-10'!T110 -> 
B9: Class E | C9: ='AI-10'!V112 ->  | D9: ='AI-10'!W112 ->  | E9: ='AI-10'!X112 ->  | F9: ='AI-10'!S112 ->  | G9: ='AI-10'!T112 -> 
B10: Overall | C10: ='AI-10'!V114 ->  | D10: ='AI-10'!W114 ->  | E10: ='AI-10'!X114 ->  | F10: ='AI-10'!S114 ->  | G10: ='AI-10'!T114 ->  | I10: Note: BD-rate is computed using piece-wise cubic interpolation
B11: Class D | C11: ='AI-10'!V111 ->  | D11: ='AI-10'!W111 ->  | E11: ='AI-10'!X111 ->  | F11: ='AI-10'!S111 ->  | G11: ='AI-10'!T111 -> 
B12: Class F | C12: ='AI-10'!V113 ->  | D12: ='AI-10'!W113 ->  | E12: ='AI-10'!X113 ->  | F12: ='AI-10'!S113 ->  | G12: ='AI-10'!T113 -> 
I13: Cluster information
C14: Random Access Main 10
C15: =CONCATENATE("Over ", $J$3) -> Over xiang's | I15: CPU type: | J15: (e.g. Xeon …)
C16: Y | D16: U | E16: V | F16: EncT | G16: DecT
B17: =B5 -> Class A1 | C17: ='RA-10'!V107 -> -7.146973839e-07 | D17: ='RA-10'!W107 -> -5.525157154e-06 | E17: ='RA-10'!X107 -> 1.539083278e-06 | F17: ='RA-10'!S107 -> 1.394991188 | G17: ='RA-10'!T107 -> 1.248997496 | I17: Hyperthreading: | J17: (on/off)
B18: =B6 -> Class A2 | C18: ='RA-10'!V108 -> -3.635616173e-06 | D18: ='RA-10'!W108 -> 5.41113571e-06 | E18: ='RA-10'!X108 -> -9.779060395e-06 | F18: ='RA-10'!S108 -> 1.342620268 | G18: ='RA-10'!T108 -> 1.293122477 | I18: Turbo mode: | J18: (on/off)
B19: =B7 -> Class B | C19: ='RA-10'!V109 -> 4.092340784e-06 | D19: ='RA-10'!W109 -> -2.152802734e-06 | E19: ='RA-10'!X109 -> 9.015526536e-06 | F19: ='RA-10'!S109 -> 1.446169233 | G19: ='RA-10'!T109 -> 1.224417139
B20: =B8 -> Class C | C20: ='RA-10'!V110 -> 2.131067599e-06 | D20: ='RA-10'!W110 -> -1.093718829e-06 | E20: ='RA-10'!X110 -> -3.495361557e-06 | F20: ='RA-10'!S110 -> 1.443827546 | G20: ='RA-10'!T110 -> 1.092694952 | I20: Compiler: | J20: (e.g. gcc 7.3.1)
B21: =B9 -> Class E
B22: Overall | C22: ='RA-10'!V114 -> 1.062335576e-06 | D22: ='RA-10'!W114 -> -1.032063554e-06 | E22: ='RA-10'!X114 -> 4.250836732e-07 | F22: ='RA-10'!S114 -> 1.413997771 | G22: ='RA-10'!T114 -> 1.205636615 | I22: OS: | J22: (e.g. Scientific Linux)
B23: =B11 -> Class D | C23: ='RA-10'!V111 -> 5.316547242e-07 | D23: ='RA-10'!W111 -> 5.392870543e-06 | E23: ='RA-10'!X111 -> 8.570330602e-07 | F23: ='RA-10'!S111 -> 1.426394141 | G23: ='RA-10'!T111 -> 1.09468053
B24: =B12 -> Class F | C24: ='RA-10'!V113 -> -5.240366247e-07 | D24: ='RA-10'!W113 -> 5.599373488e-07 | E24: ='RA-10'!X113 -> 4.115528378e-07 | F24: ='RA-10'!S113 -> 1.398278432 | G24: ='RA-10'!T113 -> 1.320666833 | I24: Decoding options
C26: Low delay B Main10 | I26: Bitstream concatenation: | J26: (yes/no)
C27: =CONCATENATE("Over ", $J$3) -> Over xiang's
C28: Y | D28: U | E28: V | F28: EncT | G28: DecT | I28: MD5 SEI: | J28: (yes/no)
B29: =B5 -> Class A1 | I29: YUV output: | J29: (yes/no)
B30: =B6 -> Class A2
B31: =B7 -> Class B | C31: ='LDB-10'!V109 ->  | D31: ='LDB-10'!W109 ->  | E31: ='LDB-10'!X109 ->  | F31: ='LDB-10'!S109 ->  | G31: ='LDB-10'!T109 ->  | I31: SIMD options: | J31: (e.g. SSE2)
B32: =B8 -> Class C | C32: ='LDB-10'!V110 ->  | D32: ='LDB-10'!W110 ->  | E32: ='LDB-10'!X110 ->  | F32: ='LDB-10'!S110 ->  | G32: ='LDB-10'!T110 -> 
B33: =B9 -> Class E | C33: ='LDB-10'!V112 ->  | D33: ='LDB-10'!W112 ->  | E33: ='LDB-10'!X112 ->  | F33: ='LDB-10'!S112 ->  | G33: ='LDB-10'!T112 ->  | I33: BMS macro (VTM decoding) | J33: (on/off)
B34: Overall | C34: ='LDB-10'!V114 ->  | D34: ='LDB-10'!W114 ->  | E34: ='LDB-10'!X114 ->  | F34: ='LDB-10'!S114 ->  | G34: ='LDB-10'!T114 -> 
B35: =B11 -> Class D | C35: ='LDB-10'!V111 ->  | D35: ='LDB-10'!W111 ->  | E35: ='LDB-10'!X111 ->  | F35: ='LDB-10'!S111 ->  | G35: ='LDB-10'!T111 -> 
B36: =B12 -> Class F | C36: ='LDB-10'!V113 ->  | D36: ='LDB-10'!W113 ->  | E36: ='LDB-10'!X113 ->  | F36: ='LDB-10'!S113 ->  | G36: ='LDB-10'!T113 -> 
C38: Low delay P Main10
C39: =CONCATENATE("Over ", $J$3) -> Over xiang's
C40: Y | D40: U | E40: V | F40: EncT | G40: DecT
B41: =B5 -> Class A1
B42: =B6 -> Class A2
B43: =B7 -> Class B | C43: ='LDP-10'!V109 ->  | D43: ='LDP-10'!W109 ->  | E43: ='LDP-10'!X109 ->  | F43: ='LDP-10'!S109 ->  | G43: ='LDP-10'!T109 -> 
B44: =B8 -> Class C | C44: ='LDP-10'!V110 ->  | D44: ='LDP-10'!W110 ->  | E44: ='LDP-10'!X110 ->  | F44: ='LDP-10'!S110 ->  | G44: ='LDP-10'!T110 -> 
B45: =B9 -> Class E | C45: ='LDP-10'!V112 ->  | D45: ='LDP-10'!W112 ->  | E45: ='LDP-10'!X112 ->  | F45: ='LDP-10'!S112 ->  | G45: ='LDP-10'!T112 -> 
B46: Overall | C46: ='LDP-10'!V114 ->  | D46: ='LDP-10'!W114 ->  | E46: ='LDP-10'!X114 ->  | F46: ='LDP-10'!S114 ->  | G46: ='LDP-10'!T114 -> 
B47: =B11 -> Class D | C47: ='LDP-10'!V111 ->  | D47: ='LDP-10'!W111 ->  | E47: ='LDP-10'!X111 ->  | F47: ='LDP-10'!S111 ->  | G47: ='LDP-10'!T111 -> 
B48: =B12 -> Class F | C48: ='LDP-10'!V113 ->  | D48: ='LDP-10'!W113 ->  | E48: ='LDP-10'!X113 ->  | F48: ='LDP-10'!S113 ->  | G48: ='LDP-10'!T113 -> 

Sheet Plot
A1: Select the coding condition and sequence from the dropbox below | AD1: Line 1 - Reference | AI1: Line 2 - Test | AN1: Line 3 - Reference2
A2: RA-10 | B2: Tango2 | AD2: kbps | AE2: Y psnr | AF2: U psnr | AG2: V psnr | AI2: kbps | AJ2: Y psnr | AK2: U psnr | AL2: V psnr | AN2: kbps | AO2: Y psnr | AP2: U psnr | AQ2: V psnr
Z3: AI-10 | AA3: Tango2 | AB3: 3 | AC3: =VLOOKUP(B2,AA3:AB43,2,FALSE) -> 3 | AD3: =INDIRECT("'"&$A$2&"'!"&ADDRESS($AC3,4)) -> 27814.5029 | AE3: =INDIRECT("'"&$A$2&"'!"&ADDRESS($AC3,5)) -> 40.3416 | AF3: =INDIRECT("'"&$A$2&"'!"&ADDRESS($AC3,6)) -> 49.1548 | AG3: =INDIRECT("'"&$A$2&"'!"&ADDRESS($AC3,7)) -> 47.4719 | AI3: =INDIRECT("'"&$A$2&"'!"&ADDRESS($AC3,12)) -> 27814.50286 | AJ3: =INDIRECT("'"&$A$2&"'!"&ADDRESS($AC3,13)) -> 40.34163571 | AK3: =INDIRECT("'"&$A$2&"'!"&ADDRESS($AC3,14)) -> 49.15480816 | AL3: =INDIRECT("'"&$A$2&"'!"&ADDRESS($AC3,15)) -> 47.47188673 | AN3: =INDIRECT("'"&$A$2&"'!"&ADDRESS($AC3,29)) -> 0 | AO3: =INDIRECT("'"&$A$2&"'!"&ADDRESS($AC3,30)) -> 0 | AP3: =INDIRECT("'"&$A$2&"'!"&ADDRESS($AC3,31)) -> 0 | AQ3: =INDIRECT("'"&$A$2&"'!"&ADDRESS($AC3,32)) -> 0
Z4: RA-10 | AA4: FoodMarket4 | AB4: =AB3+4 -> 7 | AC4: =AC3+1 -> 4 | AD4: =INDIRECT("'"&$A$2&"'!"&ADDRESS($AC4,4)) -> 7405.7518 | AE4: =INDIRECT("'"&$A$2&"'!"&ADDRESS($AC4,5)) -> 39.6034 | AF4: =INDIRECT("'"&$A$2&"'!"&ADDRESS($AC4,6)) -> 48.3877 | AG4: =INDIRECT("'"&$A$2&"'!"&ADDRESS($AC4,7)) -> 46.2765 | AI4: =INDIRECT("'"&$A$2&"'!"&ADDRESS($AC4,12)) -> 7405.751837 | AJ4: =INDIRECT("'"&$A$2&"'!"&ADDRESS($AC4,13)) -> 39.6033915 | AK4: =INDIRECT("'"&$A$2&"'!"&ADDRESS($AC4,14)) -> 48.38768707 | AL4: =INDIRECT("'"&$A$2&"'!"&ADDRESS($AC4,15)) -> 46.27643878 | AN4: =INDIRECT("'"&$A$2&"'!"&ADDRESS($AC4,29)) -> 0 | AO4: =INDIRECT("'"&$A$2&"'!"&ADDRESS($AC4,30)) -> 0 | AP4: =INDIRECT("'"&$A$2&"'!"&ADDRESS($AC4,31)) -> 0 | AQ4: =INDIRECT("'"&$A$2&"'!"&ADDRESS($AC4,32)) -> 0
Z5: LDB-10 | AA5: Campfire | AB5: =AB4+4 -> 11 | AC5: =AC4+1 -> 5 | AD5: =INDIRECT("'"&$A$2&"'!"&ADDRESS($AC5,4)) -> 3683.907 | AE5: =INDIRECT("'"&$A$2&"'!"&ADDRESS($AC5,5)) -> 38.6873 | AF5: =INDIRECT("'"&$A$2&"'!"&ADDRESS($AC5,6)) -> 47.5969 | AG5: =INDIRECT("'"&$A$2&"'!"&ADDRESS($AC5,7)) -> 45.0987 | AI5: =INDIRECT("'"&$A$2&"'!"&ADDRESS($AC5,12)) -> 3683.906939 | AJ5: =INDIRECT("'"&$A$2&"'!"&ADDRESS($AC5,13)) -> 38.68728163 | AK5: =INDIRECT("'"&$A$2&"'!"&ADDRESS($AC5,14)) -> 47.5968915 | AL5: =INDIRECT("'"&$A$2&"'!"&ADDRESS($AC5,15)) -> 45.09873027 | AN5: =INDIRECT("'"&$A$2&"'!"&ADDRESS($AC5,29)) -> 0 | AO5: =INDIRECT("'"&$A$2&"'!"&ADDRESS($AC5,30)) -> 0 | AP5: =INDIRECT("'"&$A$2&"'!"&ADDRESS($AC5,31)) -> 0 | AQ5: =INDIRECT("'"&$A$2&"'!"&ADDRESS($AC5,32)) -> 0
Z6: LDP-10 | AA6: CatRobot1 | AB6: 15 | AC6: =AC5+1 -> 6 | AD6: =INDIRECT("'"&$A$2&"'!"&ADDRESS($AC6,4)) -> 2033.2784 | AE6: =INDIRECT("'"&$A$2&"'!"&ADDRESS($AC6,5)) -> 37.2884 | AF6: =INDIRECT("'"&$A$2&"'!"&ADDRESS($AC6,6)) -> 46.6855 | AG6: =INDIRECT("'"&$A$2&"'!"&ADDRESS($AC6,7)) -> 43.8142 | AI6: =INDIRECT("'"&$A$2&"'!"&ADDRESS($AC6,12)) -> 2033.278367 | AJ6: =INDIRECT("'"&$A$2&"'!"&ADDRESS($AC6,13)) -> 37.28839218 | AK6: =INDIRECT("'"&$A$2&"'!"&ADDRESS($AC6,14)) -> 46.68551259 | AL6: =INDIRECT("'"&$A$2&"'!"&ADDRESS($AC6,15)) -> 43.8142585 | AN6: =INDIRECT("'"&$A$2&"'!"&ADDRESS($AC6,29)) -> 0 | AO6: =INDIRECT("'"&$A$2&"'!"&ADDRESS($AC6,30)) -> 0 | AP6: =INDIRECT("'"&$A$2&"'!"&ADDRESS($AC6,31)) -> 0 | AQ6: =INDIRECT("'"&$A$2&"'!"&ADDRESS($AC6,32)) -> 0
AA7: DaylightRoad2 | AB7: 19
AA8: ParkRunning3 | AB8: 23 | AD8: ="Sequence: "&B2 & " Coding Conditions: " & A2 -> Sequence: Tango2 Coding Conditions: RA-10
AA9: MarketPlace | AB9: 27
AA10: RitualDance | AB10: 31
AA11: Cactus | AB11: 35 | AD11: rate | AE11: y | AF11: u | AG11: v
AA12: BasketballDrive | AB12: 39 | AD12: =MAX(AD3:AD6,AI3:AI6, AN3:AN6) -> 27814.5029 | AE12: =MAX(AE3:AE6,AJ3:AJ6, AO3:AO6) -> 40.34163571 | AF12: =MAX(AF3:AF6,AK3:AK6, AP3:AP6) -> 49.15480816 | AG12: =MAX(AG3:AG6,AL3:AL6, AQ3:AQ6) -> 47.4719
AA13: BQTerrace | AB13: 43 | AD13: =MIN(AD3:AD6,AI3:AI6,AN3:AN6) -> 0 | AE13: =MIN(AE3:AE6,AJ3:AJ6,AO3:AO6) -> 0 | AF13: =MIN(AF3:AF6,AK3:AK6,AP3:AP6) -> 0 | AG13: =MIN(AG3:AG6,AL3:AL6,AQ3:AQ6) -> 0
AA14: BasketballDrill | AB14: 47
AA15: BQMall | AB15: 51 | AD15: =POWER(10,CEILING(LOG(AD12+1),1)) -> 100000 | AE15: =CEILING(AE12+0.25,0.5) -> 41 | AF15: =CEILING(AF12+0.25,0.5) -> 49.5 | AG15: =CEILING(AG12+0.25,0.5) -> 48
AA16: PartySceneC | AB16: 55 | AD16: =POWER(10,FLOOR(LOG(AD13+10),1)) -> 10 | AE16: =FLOOR(AE13-0.25,0.5) -> -0.5 | AF16: =FLOOR(AF13-0.25,0.5) -> -0.5 | AG16: =FLOOR(AG13-0.25,0.5) -> -0.5
AA17: RaceHorsesC | AB17: 59
AA18: BasketballPass | AB18: 63
AA19: BQSquare | AB19: 67
AA20: BlowingBubbles | AB20: 71
AA21: RaceHorses | AB21: 75
AA22: FourPeople | AB22: 79
AA23: Johnny | AB23: 83
AA24: KristenAndSara | AB24: 87
AA25: BasketballDrillText | AB25: 91
AA26: ChinaSpeed | AB26: 95
AA27: SlideEditing | AB27: 99
AA28: SlideShow | AB28: 103

Sheet AI-10
D1: Reference | L1: Tested | V1: BD-rate (piecewise cubic) | Y1: BD-rate (cubic)
C2: QPISlice | D2: kbps | E2: Y psnr | F2: U psnr | G2: V psnr | H2: Enc T [s] | I2: Dec T [s] | J2: Enc T [h] | L2: kbps | M2: Y psnr | N2: U psnr | O2: V psnr | P2: Enc T [s] | Q2: Dec T [s] | R2: Enc T [h] | S2: EncR | T2: DecR | V2: Y | W2: U | X2: V | Y2: Y | Z2: U | AA2: V
A3: Class A1 | B3: Tango2 | C3: 22 | D3: 18820.907 | E3: 41.7679 | F3: 49.5514 | G3: 48.4028 | H3: 70922.745 | I3: 39.109 | J3: =H3/3600 -> 19.7007625 | L3: =Test!B1 -> 0 | M3: =Test!C1 -> 0 | N3: =Test!D1 -> 0 | O3: =Test!E1 -> 0 | P3: =Test!F1 -> 0 | Q3: =Test!G1 -> 0 | R3: =P3/3600 -> 0 | S3: =P3/H3 -> 0 | T3: =Q3/I3 -> 0 | V3: =bdrate($D3:$D6,E3:E6,$L3:$L6,M3:M6) ->  | W3: =bdrate($D3:$D6,F3:F6,$L3:$L6,N3:N6) ->  | X3: =bdrate($D3:$D6,G3:G6,$L3:$L6,O3:O6) ->  | Y3: =bdrateOld($D3:$D6,E3:E6,$L3:$L6,M3:M6) ->  | Z3: =bdrateOld($D3:$D6,F3:F6,$L3:$L6,N3:N6) ->  | AA3: =bdrateOld($D3:$D6,G3:G6,$L3:$L6,O3:O6) -> 
A4: 4K | C4: 27 | D4: 5684.1811 | E4: 40.2397 | F4: 48.5765 | G4: 46.7803 | H4: 27591.101 | I4: 30.713 | J4: =H4/3600 -> 7.664194722 | L4: =Test!B2 -> 0 | M4: =Test!C2 -> 0 | N4: =Test!D2 -> 0 | O4: =Test!E2 -> 0 | P4: =Test!F2 -> 0 | Q4: =Test!G2 -> 0 | R4: =P4/3600 -> 0 | S4: =P4/H4 -> 0 | T4: 0
C5: 32 | D5: 3168.4557 | E5: 39.4211 | F5: 47.6045 | G5: 45.382 | H5: 9942.087 | I5: 27.714 | J5: 2.761690833 | L5: =Test!B3 -> 0 | M5: =Test!C3 -> 0 | N5: =Test!D3 -> 0 | O5: =Test!E3 -> 0 | P5: =Test!F3 -> 0 | Q5: =Test!G3 -> 0 | R5: 0 | S5: 0 | T5: 0
C6: 37 | D6: 1895.8362 | E6: 38.2465 | F6: 46.6496 | G6: 44.072 | H6: 4351.089 | I6: 24.421 | J6: 1.208635833 | L6: =Test!B4 -> 0 | M6: =Test!C4 -> 0 | N6: =Test!D4 -> 0 | O6: =Test!E4 -> 0 | P6: =Test!F4 -> 0 | Q6: =Test!G4 -> 0 | R6: 0 | S6: 0 | T6: 0
B7: FoodMarket4 | C7: 22 | D7: 15410.2058 | E7: 45.178 | F7: 49.7417 | G7: 50.5402 | H7: 47234.677 | I7: 37.217 | J7: 13.12074361 | L7: =Test!B5 -> 0 | M7: =Test!C5 -> 0 | N7: =Test!D5 -> 0 | O7: =Test!E5 -> 0 | P7: =Test!F5 -> 0 | Q7: =Test!G5 -> 0 | R7: 0 | S7: 0 | T7: 0 | V7: =bdrate($D7:$D10,E7:E10,$L7:$L10,M7:M10) ->  | W7: =bdrate($D7:$D10,F7:F10,$L7:$L10,N7:N10) ->  | X7: =bdrate($D7:$D10,G7:G10,$L7:$L10,O7:O10) ->  | Y7: =bdrateOld($D7:$D10,E7:E10,$L7:$L10,M7:M10) ->  | Z7: =bdrateOld($D7:$D10,F7:F10,$L7:$L10,N7:N10) ->  | AA7: =bdrateOld($D7:$D10,G7:G10,$L7:$L10,O7:O10) -> 
C8: 27 | D8: 8790.0205 | E8: 43.7073 | F8: 47.6004 | G8: 48.2752 | H8: 25285.787 | I8: 33.313 | J8: 7.023829722 | L8: =Test!B6 -> 0 | M8: =Test!C6 -> 0 | N8: =Test!D6 -> 0 | O8: =Test!E6 -> 0 | P8: =Test!F6 -> 0 | Q8: =Test!G6 -> 0 | R8: 0 | S8: 0 | T8: 0
C9: 32 | D9: 5270.7947 | E9: 41.9337 | F9: 45.8508 | G9: 46.3696 | H9: 16230.874 | I9: 30.251 | J9: 4.508576111 | L9: =Test!B7 -> 0 | M9: =Test!C7 -> 0 | N9: =Test!D7 -> 0 | O9: =Test!E7 -> 0 | P9: =Test!F7 -> 0 | Q9: =Test!G7 -> 0 | R9: 0 | S9: 0 | T9: 0
C10: 37 | D10: 3145.8568 | E10: 39.718 | F10: 44.5018 | G10: 44.8518 | H10: 8171.055 | I10: 27.476 | J10: 2.2697375 | L10: =Test!B8 -> 0 | M10: =Test!C8 -> 0 | N10: =Test!D8 -> 0 | O10: =Test!E8 -> 0 | P10: =Test!F8 -> 0 | Q10: =Test!G8 -> 0 | R10: 0 | S10: 0 | T10: 0
B11: Campfire | C11: 22 | D11: 21210.6047 | E11: 43.2538 | F11: 46.0349 | G11: 43.8365 | H11: 72762.648 | I11: 47.793 | J11: 20.21184667 | L11: =Test!B9 -> 0 | M11: =Test!C9 -> 0 | N11: =Test!D9 -> 0 | O11: =Test!E9 -> 0 | P11: =Test!F9 -> 0 | Q11: =Test!G9 -> 0 | R11: 0 | S11: 0 | T11: 0 | V11: =bdrate($D11:$D14,E11:E14,$L11:$L14,M11:M14) ->  | W11: =bdrate($D11:$D14,F11:F14,$L11:$L14,N11:N14) ->  | X11: =bdrate($D11:$D14,G11:G14,$L11:$L14,O11:O14) ->  | Y11: =bdrateOld($D11:$D14,E11:E14,$L11:$L14,M11:M14) ->  | Z11: =bdrateOld($D11:$D14,F11:F14,$L11:$L14,N11:N14) ->  | AA11: =bdrateOld($D11:$D14,G11:G14,$L11:$L14,O11:O14) -> 
C12: 27 | D12: 8885.9471 | E12: 39.6455 | F12: 42.1377 | G12: 41.7802 | H12: 46662.247 | I12: 36.899 | J12: 12.96173528 | L12: =Test!B10 -> 0 | M12: =Test!C10 -> 0 | N12: =Test!D10 -> 0 | O12: =Test!E10 -> 0 | P12: =Test!F10 -> 0 | Q12: =Test!G10 -> 0 | R12: 0 | S12: 0 | T12: 0
C13: 32 | D13: 3235.5379 | E13: 37.3205 | F13: 39.4883 | G13: 40.4006 | H13: 24117.798 | I13: 29.829 | J13: 6.699388333 | L13: =Test!B11 -> 0 | M13: =Test!C11 -> 0 | N13: =Test!D11 -> 0 | O13: =Test!E11 -> 0 | P13: =Test!F11 -> 0 | Q13: =Test!G11 -> 0 | R13: 0 | S13: 0 | T13: 0
C14: 37 | D14: 1756.7763 | E14: 35.9553 | F14: 37.55 | G14: 39.2356 | H14: 10814.691 | I14: 25.597 | J14: 3.004080833 | L14: =Test!B12 -> 0 | M14: =Test!C12 -> 0 | N14: =Test!D12 -> 0 | O14: =Test!E12 -> 0 | P14: =Test!F12 -> 0 | Q14: =Test!G12 -> 0 | R14: 0 | S14: 0 | T14: 0
A15: Class A2 | B15: CatRobot1 | C15: 22 | D15: 33977.6021 | E15: 42.4484 | F15: 42.5371 | G15: 44.1534 | H15: 80769.132 | I15: 48.44 | J15: =H15/3600 -> 22.43587 | L15: =Test!B13 -> 0 | M15: =Test!C13 -> 0 | N15: =Test!D13 -> 0 | O15: =Test!E13 -> 0 | P15: =Test!F13 -> 0 | Q15: =Test!G13 -> 0 | R15: =P15/3600 -> 0 | S15: =P15/H15 -> 0 | T15: =Q15/I15 -> 0 | V15: =bdrate($D15:$D18,E15:E18,$L15:$L18,M15:M18) ->  | W15: =bdrate($D15:$D18,F15:F18,$L15:$L18,N15:N18) ->  | X15: =bdrate($D15:$D18,G15:G18,$L15:$L18,O15:O18) ->  | Y15: =bdrateOld($D15:$D18,E15:E18,$L15:$L18,M15:M18) ->  | Z15: =bdrateOld($D15:$D18,F15:F18,$L15:$L18,N15:N18) ->  | AA15: =bdrateOld($D15:$D18,G15:G18,$L15:$L18,O15:O18) -> 
A16: 4K | C16: 27 | D16: 11469.3268 | E16: 39.9046 | F16: 41.4359 | G16: 42.5327 | H16: 42338.96 | I16: 36.88 | J16: =H16/3600 -> 11.76082222 | L16: =Test!B14 -> 0 | M16: =Test!C14 -> 0 | N16: =Test!D14 -> 0 | O16: =Test!E14 -> 0 | P16: =Test!F14 -> 0 | Q16: =Test!G14 -> 0 | R16: =P16/3600 -> 0 | S16: =P16/H16 -> 0 | T16: =Q16/I16 -> 0
C17: 32 | D17: 6631.2837 | E17: 38.5498 | F17: 40.6857 | G17: 41.1551 | H17: 20768.62 | I17: 32.168 | J17: 5.769061111 | L17: =Test!B15 -> 0 | M17: =Test!C15 -> 0 | N17: =Test!D15 -> 0 | O17: =Test!E15 -> 0 | P17: =Test!F15 -> 0 | Q17: =Test!G15 -> 0 | R17: 0 | S17: 0 | T17: 0
C18: 37 | D18: 3967.2063 | E18: 36.6949 | F18: 39.9736 | G18: 39.9303 | H18: 10877.792 | I18: 28.452 | J18: 3.021608889 | L18: =Test!B16 -> 0 | M18: =Test!C16 -> 0 | N18: =Test!D16 -> 0 | O18: =Test!E16 -> 0 | P18: =Test!F16 -> 0 | Q18: =Test!G16 -> 0 | R18: 0 | S18: 0 | T18: 0
B19: DaylightRoad2 | C19: 22 | D19: 55938.6395 | E19: 41.4222 | F19: 46.0819 | G19: 44.0774 | H19: 114648.306 | I19: 56.957 | J19: 31.84675167 | L19: =Test!B17 -> 0 | M19: =Test!C17 -> 0 | N19: =Test!D17 -> 0 | O19: =Test!E17 -> 0 | P19: =Test!F17 -> 0 | Q19: =Test!G17 -> 0 | R19: 0 | S19: 0 | T19: 0 | V19: =bdrate($D19:$D22,E19:E22,$L19:$L22,M19:M22) ->  | W19: =bdrate($D19:$D22,F19:F22,$L19:$L22,N19:N22) ->  | X19: =bdrate($D19:$D22,G19:G22,$L19:$L22,O19:O22) ->  | Y19: =bdrateOld($D19:$D22,E19:E22,$L19:$L22,M19:M22) ->  | Z19: =bdrateOld($D19:$D22,F19:F22,$L19:$L22,N19:N22) ->  | AA19: =bdrateOld($D19:$D22,G19:G22,$L19:$L22,O19:O22) -> 
C20: 27 | D20: 11793.2368 | E20: 37.7776 | F20: 44.8414 | G20: 42.4562 | H20: 56816.819 | I20: 36.675 | J20: 15.78244972 | L20: =Test!B18 -> 0 | M20: =Test!C18 -> 0 | N20: =Test!D18 -> 0 | O20: =Test!E18 -> 0 | P20: =Test!F18 -> 0 | Q20: =Test!G18 -> 0 | R20: 0 | S20: 0 | T20: 0
C21: 32 | D21: 6331.4132 | E21: 36.7528 | F21: 43.7716 | G21: 41.151 | H21: 24576.944 | I21: 31.472 | J21: 6.826928889 | L21: =Test!B19 -> 0 | M21: =Test!C19 -> 0 | N21: =Test!D19 -> 0 | O21: =Test!E19 -> 0 | P21: =Test!F19 -> 0 | Q21: =Test!G19 -> 0 | R21: 0 | S21: 0 | T21: 0
C22: 37 | D22: 3530.8168 | E22: 35.3146 | F22: 42.881 | G22: 40.1695 | H22: 12349.772 | I22: 27.552 | J22: 3.430492222 | L22: =Test!B20 -> 0 | M22: =Test!C20 -> 0 | N22: =Test!D20 -> 0 | O22: =Test!E20 -> 0 | P22: =Test!F20 -> 0 | Q22: =Test!G20 -> 0 | R22: 0 | S22: 0 | T22: 0
B23: ParkRunning3 | C23: 22 | D23: 49757.2697 | E23: 46.4333 | F23: 40.7328 | G23: 41.1638 | H23: 73067.728 | I23: 55.562 | J23: 20.29659111 | L23: =Test!B21 -> 0 | M23: =Test!C21 -> 0 | N23: =Test!D21 -> 0 | O23: =Test!E21 -> 0 | P23: =Test!F21 -> 0 | Q23: =Test!G21 -> 0 | R23: 0 | S23: 0 | T23: 0 | V23: =bdrate($D23:$D26,E23:E26,$L23:$L26,M23:M26) ->  | W23: =bdrate($D23:$D26,F23:F26,$L23:$L26,N23:N26) ->  | X23: =bdrate($D23:$D26,G23:G26,$L23:$L26,O23:O26) ->  | Y23: =bdrateOld($D23:$D26,E23:E26,$L23:$L26,M23:M26) ->  | Z23: =bdrateOld($D23:$D26,F23:F26,$L23:$L26,N23:N26) ->  | AA23: =bdrateOld($D23:$D26,G23:G26,$L23:$L26,O23:O26) -> 
C24: 27 | D24: 28126.0553 | E24: 42.5514 | F24: 36.9951 | G24: 37.8605 | H24: 49617.348 | I24: 48.071 | J24: 13.78259667 | L24: =Test!B22 -> 0 | M24: =Test!C22 -> 0 | N24: =Test!D22 -> 0 | O24: =Test!E22 -> 0 | P24: =Test!F22 -> 0 | Q24: =Test!G22 -> 0 | R24: 0 | S24: 0 | T24: 0
C25: 32 | D25: 15617.6197 | E25: 38.8499 | F25: 34.4547 | G25: 35.5849 | H25: 34406.331 | I25: 41.95 | J25: 9.557314167 | L25: =Test!B23 -> 0 | M25: =Test!C23 -> 0 | N25: =Test!D23 -> 0 | O25: =Test!E23 -> 0 | P25: =Test!F23 -> 0 | Q25: =Test!G23 -> 0 | R25: 0 | S25: 0 | T25: 0
C26: 37 | D26: 8508.1026 | E26: 35.4208 | F26: 32.7269 | G26: 34.0446 | H26: 21104.244 | I26: 36.03 | J26: 5.86229 | L26: =Test!B24 -> 0 | M26: =Test!C24 -> 0 | N26: =Test!D24 -> 0 | O26: =Test!E24 -> 0 | P26: =Test!F24 -> 0 | Q26: =Test!G24 -> 0 | R26: 0 | S26: 0 | T26: 0
A27: Class B | B27: MarketPlace | C27: 22 | D27: 10327.8472 | E27: 42.8938 | F27: 45.161 | G27: 45.8256 | H27: 45115.26 | I27: 22.905 | J27: =H27/3600 -> 12.53201667 | L27: =Test!B25 -> 0 | M27: =Test!C25 -> 0 | N27: =Test!D25 -> 0 | O27: =Test!E25 -> 0 | P27: =Test!F25 -> 0 | Q27: =Test!G25 -> 0 | R27: =P27/3600 -> 0 | S27: =P27/H27 -> 0 | T27: =Q27/I27 -> 0 | V27: =bdrate($D27:$D30,E27:E30,$L27:$L30,M27:M30) ->  | W27: =bdrate($D27:$D30,F27:F30,$L27:$L30,N27:N30) ->  | X27: =bdrate($D27:$D30,G27:G30,$L27:$L30,O27:O30) ->  | Y27: =bdrateOld($D27:$D30,E27:E30,$L27:$L30,M27:M30) ->  | Z27: =bdrateOld($D27:$D30,F27:F30,$L27:$L30,N27:N30) ->  | AA27: =bdrateOld($D27:$D30,G27:G30,$L27:$L30,O27:O30) -> 
A28: 1080p | C28: 27 | D28: 5558.3008 | E28: 40.2312 | F28: 43.0298 | G28: 44.0799 | H28: 28096.657 | I28: 19.167 | J28: =H28/3600 -> 7.804626944 | L28: =Test!B26 -> 0 | M28: =Test!C26 -> 0 | N28: =Test!D26 -> 0 | O28: =Test!E26 -> 0 | P28: =Test!F26 -> 0 | Q28: =Test!G26 -> 0 | R28: =P28/3600 -> 0 | S28: =P28/H28 -> 0 | T28: =Q28/I28 -> 0
C29: 32 | D29: 3107.5176 | E29: 37.746 | F29: 41.5338 | G29: 42.6659 | H29: 19942.902 | I29: 16.737 | J29: 5.539695 | L29: =Test!B27 -> 0 | M29: =Test!C27 -> 0 | N29: =Test!D27 -> 0 | O29: =Test!E27 -> 0 | P29: =Test!F27 -> 0 | Q29: =Test!G27 -> 0 | R29: 0 | S29: 0 | T29: 0
C30: 37 | D30: 1655.3312 | E30: 35.1469 | F30: 40.4632 | G30: 41.5169 | H30: 11320.562 | I30: 14.576 | J30: 3.144600556 | L30: =Test!B28 -> 0 | M30: =Test!C28 -> 0 | N30: =Test!D28 -> 0 | O30: =Test!E28 -> 0 | P30: =Test!F28 -> 0 | Q30: =Test!G28 -> 0 | R30: 0 | S30: 0 | T30: 0
B31: RitualDance | C31: 22 | D31: 6012.288 | E31: 46.0169 | F31: 48.1923 | G31: 49.5596 | H31: 29896.975 | I31: 20.35 | J31: 8.304715278 | L31: =Test!B29 -> 0 | M31: =Test!C29 -> 0 | N31: =Test!D29 -> 0 | O31: =Test!E29 -> 0 | P31: =Test!F29 -> 0 | Q31: =Test!G29 -> 0 | R31: 0 | S31: 0 | T31: 0 | V31: =bdrate($D31:$D34,E31:E34,$L31:$L34,M31:M34) ->  | W31: =bdrate($D31:$D34,F31:F34,$L31:$L34,N31:N34) ->  | X31: =bdrate($D31:$D34,G31:G34,$L31:$L34,O31:O34) ->  | Y31: =bdrateOld($D31:$D34,E31:E34,$L31:$L34,M31:M34) ->  | Z31: =bdrateOld($D31:$D34,F31:F34,$L31:$L34,N31:N34) ->  | AA31: =bdrateOld($D31:$D34,G31:G34,$L31:$L34,O31:O34) -> 
C32: 27 | D32: 3485.4736 | E32: 43.1177 | F32: 45.7746 | G32: 46.9941 | H32: 21541.096 | I32: 17.52 | J32: 5.983637778 | L32: =Test!B30 -> 0 | M32: =Test!C30 -> 0 | N32: =Test!D30 -> 0 | O32: =Test!E30 -> 0 | P32: =Test!F30 -> 0 | Q32: =Test!G30 -> 0 | R32: 0 | S32: 0 | T32: 0
C33: 32 | D33: 1962.9008 | E33: 40.1166 | F33: 43.9711 | G33: 45.0082 | H33: 15436.412 | I33: 15.208 | J33: 4.287892222 | L33: =Test!B31 -> 0 | M33: =Test!C31 -> 0 | N33: =Test!D31 -> 0 | O33: =Test!E31 -> 0 | P33: =Test!F31 -> 0 | Q33: =Test!G31 -> 0 | R33: 0 | S33: 0 | T33: 0
C34: 37 | D34: 1072.9792 | E34: 37.1347 | F34: 42.716 | G34: 43.452 | H34: 8129.116 | I34: 13.303 | J34: 2.258087778 | L34: =Test!B32 -> 0 | M34: =Test!C32 -> 0 | N34: =Test!D32 -> 0 | O34: =Test!E32 -> 0 | P34: =Test!F32 -> 0 | Q34: =Test!G32 -> 0 | R34: 0 | S34: 0 | T34: 0
B35: Cactus | C35: 22 | D35: 12570.1659 | E35: 41.1391 | F35: 41.7169 | G35: 44.3419 | H35: 52976.408 | I35: 24.34 | J35: 14.71566889 | L35: =Test!B33 -> 0 | M35: =Test!C33 -> 0 | N35: =Test!D33 -> 0 | O35: =Test!E33 -> 0 | P35: =Test!F33 -> 0 | Q35: =Test!G33 -> 0 | R35: 0 | S35: 0 | T35: 0 | V35: =bdrate($D35:$D38,E35:E38,$L35:$L38,M35:M38) ->  | W35: =bdrate($D35:$D38,F35:F38,$L35:$L38,N35:N38) ->  | X35: =bdrate($D35:$D38,G35:G38,$L35:$L38,O35:O38) ->  | Y35: =bdrateOld($D35:$D38,E35:E38,$L35:$L38,M35:M38) ->  | Z35: =bdrateOld($D35:$D38,F35:F38,$L35:$L38,N35:N38) ->  | AA35: =bdrateOld($D35:$D38,G35:G38,$L35:$L38,O35:O38) -> 
C36: 27 | D36: 5445.6365 | E36: 38.2434 | F36: 39.5865 | G36: 42.3677 | H36: 34387.533 | I36: 18.103 | J36: 9.5520925 | L36: =Test!B34 -> 0 | M36: =Test!C34 -> 0 | N36: =Test!D34 -> 0 | O36: =Test!E34 -> 0 | P36: =Test!F34 -> 0 | Q36: =Test!G34 -> 0 | R36: 0 | S36: 0 | T36: 0
C37: 32 | D37: 2937.6754 | E37: 36.103 | F37: 38.6564 | G37: 40.7923 | H37: 22722.449 | I37: 15.26 | J37: 6.311791389 | L37: =Test!B35 -> 0 | M37: =Test!C35 -> 0 | N37: =Test!D35 -> 0 | O37: =Test!E35 -> 0 | P37: =Test!F35 -> 0 | Q37: =Test!G35 -> 0 | R37: 0 | S37: 0 | T37: 0
C38: 37 | D38: 1584.2333 | E38: 33.7372 | F38: 37.8844 | G38: 39.5925 | H38: 14373.057 | I38: 13.01 | J38: 3.992515833 | L38: =Test!B36 -> 0 | M38: =Test!C36 -> 0 | N38: =Test!D36 -> 0 | O38: =Test!E36 -> 0 | P38: =Test!F36 -> 0 | Q38: =Test!G36 -> 0 | R38: 0 | S38: 0 | T38: 0
B39: BasketballDrive | C39: 22 | D39: 7973.1341 | E39: 41.4574 | F39: 44.6626 | G39: 46.5579 | H39: 44042.515 | I39: 20.31 | J39: 12.23403194 | L39: =Test!B37 -> 0 | M39: =Test!C37 -> 0 | N39: =Test!D37 -> 0 | O39: =Test!E37 -> 0 | P39: =Test!F37 -> 0 | Q39: =Test!G37 -> 0 | R39: 0 | S39: 0 | T39: 0 | V39: =bdrate($D39:$D42,E39:E42,$L39:$L42,M39:M42) ->  | W39: =bdrate($D39:$D42,F39:F42,$L39:$L42,N39:N42) ->  | X39: =bdrate($D39:$D42,G39:G42,$L39:$L42,O39:O42) ->  | Y39: =bdrateOld($D39:$D42,E39:E42,$L39:$L42,M39:M42) ->  | Z39: =bdrateOld($D39:$D42,F39:F42,$L39:$L42,N39:N42) ->  | AA39: =bdrateOld($D39:$D42,G39:G42,$L39:$L42,O39:O42) -> 
C40: 27 | D40: 3222.9246 | E40: 39.016 | F40: 43.3483 | G40: 44.5236 | H40: 28712.484 | I40: 15.854 | J40: 7.97569 | L40: =Test!B38 -> 0 | M40: =Test!C38 -> 0 | N40: =Test!D38 -> 0 | O40: =Test!E38 -> 0 | P40: =Test!F38 -> 0 | Q40: =Test!G38 -> 0 | R40: 0 | S40: 0 | T40: 0
C41: 32 | D41: 1645.1127 | E41: 37.3272 | F41: 42.1618 | G41: 42.7621 | H41: 17484.902 | I41: 13.477 | J41: 4.856917222 | L41: =Test!B39 -> 0 | M41: =Test!C39 -> 0 | N41: =Test!D39 -> 0 | O41: =Test!E39 -> 0 | P41: =Test!F39 -> 0 | Q41: =Test!G39 -> 0 | R41: 0 | S41: 0 | T41: 0
C42: 37 | D42: 916.431 | E42: 35.4695 | F42: 41.1715 | G42: 41.3531 | H42: 8455.389 | I42: 11.483 | J42: 2.348719167 | L42: =Test!B40 -> 0 | M42: =Test!C40 -> 0 | N42: =Test!D40 -> 0 | O42: =Test!E40 -> 0 | P42: =Test!F40 -> 0 | Q42: =Test!G40 -> 0 | R42: 0 | S42: 0 | T42: 0
B43: BQTerrace | C43: 22 | D43: 21077.556 | E43: 42.44 | F43: 42.8114 | G43: 44.6471 | H43: 43744.01 | I43: 31.533 | J43: 12.15111389 | L43: =Test!B41 -> 0 | M43: =Test!C41 -> 0 | N43: =Test!D41 -> 0 | O43: =Test!E41 -> 0 | P43: =Test!F41 -> 0 | Q43: =Test!G41 -> 0 | R43: 0 | S43: 0 | T43: 0 | V43: =bdrate($D43:$D46,E43:E46,$L43:$L46,M43:M46) ->  | W43: =bdrate($D43:$D46,F43:F46,$L43:$L46,N43:N46) ->  | X43: =bdrate($D43:$D46,G43:G46,$L43:$L46,O43:O46) ->  | Y43: =bdrateOld($D43:$D46,E43:E46,$L43:$L46,M43:M46) ->  | Z43: =bdrateOld($D43:$D46,F43:F46,$L43:$L46,N43:N46) ->  | AA43: =bdrateOld($D43:$D46,G43:G46,$L43:$L46,O43:O46) -> 
C44: 27 | D44: 8952.1368 | E44: 37.339 | F44: 41.0477 | G44: 43.291 | H44: 44531.593 | I44: 22.763 | J44: 12.36988694 | L44: =Test!B42 -> 0 | M44: =Test!C42 -> 0 | N44: =Test!D42 -> 0 | O44: =Test!E42 -> 0 | P44: =Test!F42 -> 0 | Q44: =Test!G42 -> 0 | R44: 0 | S44: 0 | T44: 0
C45: 32 | D45: 4418.0624 | E45: 34.8511 | F45: 39.7543 | G45: 42.2766 | H45: 30531.126 | I45: 18.28 | J45: 8.480868333 | L45: =Test!B43 -> 0 | M45: =Test!C43 -> 0 | N45: =Test!D43 -> 0 | O45: =Test!E43 -> 0 | P45: =Test!F43 -> 0 | Q45: =Test!G43 -> 0 | R45: 0 | S45: 0 | T45: 0
C46: 37 | D46: 2327.544 | E46: 32.5192 | F46: 38.8263 | G46: 41.5127 | H46: 20337.768 | I46: 15.203 | J46: 5.64938 | L46: =Test!B44 -> 0 | M46: =Test!C44 -> 0 | N46: =Test!D44 -> 0 | O46: =Test!E44 -> 0 | P46: =Test!F44 -> 0 | Q46: =Test!G44 -> 0 | R46: 0 | S46: 0 | T46: 0
A47: Class C | B47: BasketballDrill | C47: 22 | D47: 2215.5175 | E47: 42.3398 | F47: 44.0097 | G47: 44.8098 | H47: 8698.043 | I47: 4.877 | J47: =H47/3600 -> 2.416123056 | L47: =Test!B45 -> 0 | M47: =Test!C45 -> 0 | N47: =Test!D45 -> 0 | O47: =Test!E45 -> 0 | P47: =Test!F45 -> 0 | Q47: =Test!G45 -> 0 | R47: =P47/3600 -> 0 | S47: =P47/H47 -> 0 | T47: =Q47/I47 -> 0 | V47: =bdrate($D47:$D50,E47:E50,$L47:$L50,M47:M50) ->  | W47: =bdrate($D47:$D50,F47:F50,$L47:$L50,N47:N50) ->  | X47: =bdrate($D47:$D50,G47:G50,$L47:$L50,O47:O50) ->  | Y47: =bdrateOld($D47:$D50,E47:E50,$L47:$L50,M47:M50) ->  | Z47: =bdrateOld($D47:$D50,F47:F50,$L47:$L50,N47:N50) ->  | AA47: =bdrateOld($D47:$D50,G47:G50,$L47:$L50,O47:O50) -> 
A48: WVGA | C48: 27 | D48: 1180.3071 | E48: 38.9801 | F48: 41.5228 | G48: 42.0561 | H48: 7116.428 | I48: 3.627 | J48: =H48/3600 -> 1.976785556 | L48: =Test!B46 -> 0 | M48: =Test!C46 -> 0 | N48: =Test!D46 -> 0 | O48: =Test!E46 -> 0 | P48: =Test!F46 -> 0 | Q48: =Test!G46 -> 0 | R48: =P48/3600 -> 0 | S48: =P48/H48 -> 0 | T48: =Q48/I48 -> 0
C49: 32 | D49: 632.9381 | E49: 36.0208 | F49: 39.7723 | G49: 40.1363 | H49: 5930.383 | I49: 2.862 | J49: 1.647328611 | L49: =Test!B47 -> 0 | M49: =Test!C47 -> 0 | N49: =Test!D47 -> 0 | O49: =Test!E47 -> 0 | P49: =Test!F47 -> 0 | Q49: =Test!G47 -> 0 | R49: 0 | S49: 0 | T49: 0
C50: 37 | D50: 355.4714 | E50: 33.3938 | F50: 38.4021 | G50: 38.4962 | H50: 3214.701 | I50: 2.44 | J50: 0.8929725 | L50: =Test!B48 -> 0 | M50: =Test!C48 -> 0 | N50: =Test!D48 -> 0 | O50: =Test!E48 -> 0 | P50: =Test!F48 -> 0 | Q50: =Test!G48 -> 0 | R50: 0 | S50: 0 | T50: 0
B51: BQMall | C51: 22 | D51: 2612.7536 | E51: 42.2969 | F51: 44.351 | G51: 46.0462 | H51: 11235.92 | I51: 5.191 | J51: 3.121088889 | L51: =Test!B49 -> 0 | M51: =Test!C49 -> 0 | N51: =Test!D49 -> 0 | O51: =Test!E49 -> 0 | P51: =Test!F49 -> 0 | Q51: =Test!G49 -> 0 | R51: 0 | S51: 0 | T51: 0 | V51: =bdrate($D51:$D54,E51:E54,$L51:$L54,M51:M54) ->  | W51: =bdrate($D51:$D54,F51:F54,$L51:$L54,N51:N54) ->  | X51: =bdrate($D51:$D54,G51:G54,$L51:$L54,O51:O54) ->  | Y51: =bdrateOld($D51:$D54,E51:E54,$L51:$L54,M51:M54) ->  | Z51: =bdrateOld($D51:$D54,F51:F54,$L51:$L54,N51:N54) ->  | AA51: =bdrateOld($D51:$D54,G51:G54,$L51:$L54,O51:O54) -> 
C52: 27 | D52: 1562.7552 | E52: 39.4789 | F52: 42.1924 | G52: 43.6017 | H52: 8343.805 | I52: 4.132 | J52: 2.317723611 | L52: =Test!B50 -> 0 | M52: =Test!C50 -> 0 | N52: =Test!D50 -> 0 | O52: =Test!E50 -> 0 | P52: =Test!F50 -> 0 | Q52: =Test!G50 -> 0 | R52: 0 | S52: 0 | T52: 0
C53: 32 | D53: 919.4048 | E53: 36.489 | F53: 40.5105 | G53: 41.7021 | H53: 6634.693 | I53: 3.444 | J53: 1.842970278 | L53: =Test!B51 -> 0 | M53: =Test!C51 -> 0 | N53: =Test!D51 -> 0 | O53: =Test!E51 -> 0 | P53: =Test!F51 -> 0 | Q53: =Test!G51 -> 0 | R53: 0 | S53: 0 | T53: 0
C54: 37 | D54: 523.2344 | E54: 33.4255 | F54: 39.2061 | G54: 40.2209 | H54: 4723.534 | I54: 2.845 | J54: 1.312092778 | L54: =Test!B52 -> 0 | M54: =Test!C52 -> 0 | N54: =Test!D52 -> 0 | O54: =Test!E52 -> 0 | P54: =Test!F52 -> 0 | Q54: =Test!G52 -> 0 | R54: 0 | S54: 0 | T54: 0
B55: PartyScene | C55: 22 | D55: 5079.5452 | E55: 41.4589 | F55: 42.7063 | G55: 43.8102 | H55: 11424.898 | I55: 6.742 | J55: 3.173582778 | L55: =Test!B53 -> 0 | M55: =Test!C53 -> 0 | N55: =Test!D53 -> 0 | O55: =Test!E53 -> 0 | P55: =Test!F53 -> 0 | Q55: =Test!G53 -> 0 | R55: 0 | S55: 0 | T55: 0 | V55: =bdrate($D55:$D58,E55:E58,$L55:$L58,M55:M58) ->  | W55: =bdrate($D55:$D58,F55:F58,$L55:$L58,N55:N58) ->  | X55: =bdrate($D55:$D58,G55:G58,$L55:$L58,O55:O58) ->  | Y55: =bdrateOld($D55:$D58,E55:E58,$L55:$L58,M55:M58) ->  | Z55: =bdrateOld($D55:$D58,F55:F58,$L55:$L58,N55:N58) ->  | AA55: =bdrateOld($D55:$D58,G55:G58,$L55:$L58,O55:O58) -> 
C56: 27 | D56: 3147.0071 | E56: 37.2103 | F56: 39.8054 | G56: 40.7483 | H56: 10003.77 | I56: 5.182 | J56: 2.778825 | L56: =Test!B54 -> 0 | M56: =Test!C54 -> 0 | N56: =Test!D54 -> 0 | O56: =Test!E54 -> 0 | P56: =Test!F54 -> 0 | Q56: =Test!G54 -> 0 | R56: 0 | S56: 0 | T56: 0
C57: 32 | D57: 1877.7317 | E57: 33.4612 | F57: 37.8716 | G57: 38.6196 | H57: 8661.709 | I57: 4.148 | J57: 2.406030278 | L57: =Test!B55 -> 0 | M57: =Test!C55 -> 0 | N57: =Test!D55 -> 0 | O57: =Test!E55 -> 0 | P57: =Test!F55 -> 0 | Q57: =Test!G55 -> 0 | R57: 0 | S57: 0 | T57: 0
C58: 37 | D58: 1007.4087 | E58: 29.7888 | F58: 36.4576 | G58: 37.0898 | H58: 7231.804 | I58: 3.302 | J58: 2.008834444 | L58: =Test!B56 -> 0 | M58: =Test!C56 -> 0 | N58: =Test!D56 -> 0 | O58: =Test!E56 -> 0 | P58: =Test!F56 -> 0 | Q58: =Test!G56 -> 0 | R58: 0 | S58: 0 | T58: 0
B59: RaceHorses | C59: 22 | D59: 1734.3111 | E59: 42.7537 | F59: 43.5657 | G59: 44.411 | H59: 5228.223 | I59: 2.707 | J59: 1.452284167 | L59: =Test!B57 -> 0 | M59: =Test!C57 -> 0 | N59: =Test!D57 -> 0 | O59: =Test!E57 -> 0 | P59: =Test!F57 -> 0 | Q59: =Test!G57 -> 0 | R59: 0 | S59: 0 | T59: 0 | V59: =bdrate($D59:$D62,E59:E62,$L59:$L62,M59:M62) ->  | W59: =bdrate($D59:$D62,F59:F62,$L59:$L62,N59:N62) ->  | X59: =bdrate($D59:$D62,G59:G62,$L59:$L62,O59:O62) ->  | Y59: =bdrateOld($D59:$D62,E59:E62,$L59:$L62,M59:M62) ->  | Z59: =bdrateOld($D59:$D62,F59:F62,$L59:$L62,N59:N62) ->  | AA59: =bdrateOld($D59:$D62,G59:G62,$L59:$L62,O59:O62) -> 
C60: 27 | D60: 1037.0289 | E60: 39.3747 | F60: 40.3069 | G60: 41.7636 | H60: 4018.506 | I60: 2.245 | J60: 1.116251667 | L60: =Test!B58 -> 0 | M60: =Test!C58 -> 0 | N60: =Test!D58 -> 0 | O60: =Test!E58 -> 0 | P60: =Test!F58 -> 0 | Q60: =Test!G58 -> 0 | R60: 0 | S60: 0 | T60: 0
C61: 32 | D61: 594.9079 | E61: 36.0179 | F61: 38.1001 | G61: 40.0492 | H61: 3229.158 | I61: 1.886 | J61: 0.8969883333 | L61: =Test!B59 -> 0 | M61: =Test!C59 -> 0 | N61: =Test!D59 -> 0 | O61: =Test!E59 -> 0 | P61: =Test!F59 -> 0 | Q61: =Test!G59 -> 0 | R61: 0 | S61: 0 | T61: 0
C62: 37 | D62: 301.6208 | E62: 32.5966 | F62: 36.7519 | G62: 38.7448 | H62: 2305.74 | I62: 1.58 | J62: 0.6404833333 | L62: =Test!B60 -> 0 | M62: =Test!C60 -> 0 | N62: =Test!D60 -> 0 | O62: =Test!E60 -> 0 | P62: =Test!F60 -> 0 | Q62: =Test!G60 -> 0 | R62: 0 | S62: 0 | T62: 0
A63: Class D | B63: BasketballPass | C63: =C59 -> 22 | D63: 592.219 | E63: 43.5382 | F63: 45.5765 | G63: 45.3866 | H63: 2635.698 | I63: 1.149 | J63: =H63/3600 -> 0.7321383333 | L63: =Test!B61 -> 0 | M63: =Test!C61 -> 0 | N63: =Test!D61 -> 0 | O63: =Test!E61 -> 0 | P63: =Test!F61 -> 0 | Q63: =Test!G61 -> 0 | R63: =P63/3600 -> 0 | S63: =P63/H63 -> 0 | T63: =Q63/I63 -> 0 | V63: =bdrate($D63:$D66,E63:E66,$L63:$L66,M63:M66) ->  | W63: =bdrate($D63:$D66,F63:F66,$L63:$L66,N63:N66) ->  | X63: =bdrate($D63:$D66,G63:G66,$L63:$L66,O63:O66) ->  | Y63: =bdrateOld($D63:$D66,E63:E66,$L63:$L66,M63:M66) ->  | Z63: =bdrateOld($D63:$D66,F63:F66,$L63:$L66,N63:N66) ->  | AA63: =bdrateOld($D63:$D66,G63:G66,$L63:$L66,O63:O66) -> 
A64: WQVGA | C64: =C60 -> 27 | D64: 354.5063 | E64: 39.9369 | F64: 42.748 | G64: 42.2074 | H64: 2121.178 | I64: 0.952 | J64: =H64/3600 -> 0.5892161111 | L64: =Test!B62 -> 0 | M64: =Test!C62 -> 0 | N64: =Test!D62 -> 0 | O64: =Test!E62 -> 0 | P64: =Test!F62 -> 0 | Q64: =Test!G62 -> 0 | R64: =P64/3600 -> 0 | S64: =P64/H64 -> 0 | T64: =Q64/I64 -> 0
C65: =C61 -> 32 | D65: 205.1222 | E65: 36.552 | F65: 40.5535 | G65: 39.8215 | H65: 1753.325 | I65: 0.787 | J65: 0.4870347222 | L65: =Test!B63 -> 0 | M65: =Test!C63 -> 0 | N65: =Test!D63 -> 0 | O65: =Test!E63 -> 0 | P65: =Test!F63 -> 0 | Q65: =Test!G63 -> 0 | R65: 0 | S65: 0 | T65: 0
C66: =C62 -> 37 | D66: 114.5048 | E66: 33.3567 | F66: 38.8428 | G66: 38.0043 | H66: 1067.699 | I66: 0.655 | J66: 0.2965830556 | L66: =Test!B64 -> 0 | M66: =Test!C64 -> 0 | N66: =Test!D64 -> 0 | O66: =Test!E64 -> 0 | P66: =Test!F64 -> 0 | Q66: =Test!G64 -> 0 | R66: 0 | S66: 0 | T66: 0
B67: BQSquare | C67: 22 | D67: 1526.3632 | E67: 41.6132 | F67: 43.5006 | G67: 44.6278 | H67: 3370.031 | I67: 1.808 | J67: 0.9361197222 | L67: =Test!B65 -> 0 | M67: =Test!C65 -> 0 | N67: =Test!D65 -> 0 | O67: =Test!E65 -> 0 | P67: =Test!F65 -> 0 | Q67: =Test!G65 -> 0 | R67: 0 | S67: 0 | T67: 0 | V67: =bdrate($D67:$D70,E67:E70,$L67:$L70,M67:M70) ->  | W67: =bdrate($D67:$D70,F67:F70,$L67:$L70,N67:N70) ->  | X67: =bdrate($D67:$D70,G67:G70,$L67:$L70,O67:O70) ->  | Y67: =bdrateOld($D67:$D70,E67:E70,$L67:$L70,M67:M70) ->  | Z67: =bdrateOld($D67:$D70,F67:F70,$L67:$L70,N67:N70) ->  | AA67: =bdrateOld($D67:$D70,G67:G70,$L67:$L70,O67:O70) -> 
C68: 27 | D68: 977.5768 | E68: 37.2399 | F68: 40.8261 | G68: 42.0965 | H68: 2865.695 | I68: 1.425 | J68: 0.7960263889 | L68: =Test!B66 -> 0 | M68: =Test!C66 -> 0 | N68: =Test!D66 -> 0 | O68: =Test!E66 -> 0 | P68: =Test!F66 -> 0 | Q68: =Test!G66 -> 0 | R68: 0 | S68: 0 | T68: 0
C69: 32 | D69: 601.1336 | E69: 33.4257 | F69: 39.3038 | G69: 40.4401 | H69: 2372.994 | I69: 1.148 | J69: 0.659165 | L69: =Test!B67 -> 0 | M69: =Test!C67 -> 0 | N69: =Test!D67 -> 0 | O69: =Test!E67 -> 0 | P69: =Test!F67 -> 0 | Q69: =Test!G67 -> 0 | R69: 0 | S69: 0 | T69: 0
C70: 37 | D70: 354.3584 | E70: 29.8709 | F70: 38.3658 | G70: 39.2872 | H70: 2027.902 | I70: 0.934 | J70: 0.5633061111 | L70: =Test!B68 -> 0 | M70: =Test!C68 -> 0 | N70: =Test!D68 -> 0 | O70: =Test!E68 -> 0 | P70: =Test!F68 -> 0 | Q70: =Test!G68 -> 0 | R70: 0 | S70: 0 | T70: 0
B71: BlowingBubbles | C71: 22 | D71: 1330.3341 | E71: 41.429 | F71: 42.2938 | G71: 43.1455 | H71: 3075.73 | I71: 1.712 | J71: 0.8543694444 | L71: =Test!B69 -> 0 | M71: =Test!C69 -> 0 | N71: =Test!D69 -> 0 | O71: =Test!E69 -> 0 | P71: =Test!F69 -> 0 | Q71: =Test!G69 -> 0 | R71: 0 | S71: 0 | T71: 0 | V71: =bdrate($D71:$D74,E71:E74,$L71:$L74,M71:M74) ->  | W71: =bdrate($D71:$D74,F71:F74,$L71:$L74,N71:N74) ->  | X71: =bdrate($D71:$D74,G71:G74,$L71:$L74,O71:O74) ->  | Y71: =bdrateOld($D71:$D74,E71:E74,$L71:$L74,M71:M74) ->  | Z71: =bdrateOld($D71:$D74,F71:F74,$L71:$L74,N71:N74) ->  | AA71: =bdrateOld($D71:$D74,G71:G74,$L71:$L74,O71:O74) -> 
C72: 27 | D72: 823.5381 | E72: 37.1457 | F72: 39.3577 | G72: 39.9905 | H72: 2932.564 | I72: 1.379 | J72: 0.8146011111 | L72: =Test!B70 -> 0 | M72: =Test!C70 -> 0 | N72: =Test!D70 -> 0 | O72: =Test!E70 -> 0 | P72: =Test!F70 -> 0 | Q72: =Test!G70 -> 0 | R72: 0 | S72: 0 | T72: 0
C73: 32 | D73: 469.1722 | E73: 33.1934 | F73: 37.2669 | G73: 37.7484 | H73: 2641.141 | I73: 1.119 | J73: 0.7336502778 | L73: =Test!B71 -> 0 | M73: =Test!C71 -> 0 | N73: =Test!D71 -> 0 | O73: =Test!E71 -> 0 | P73: =Test!F71 -> 0 | Q73: =Test!G71 -> 0 | R73: 0 | S73: 0 | T73: 0
C74: 37 | D74: 238.596 | E74: 29.5964 | F74: 35.773 | G74: 36.1863 | H74: 1956.322 | I74: 0.85 | J74: 0.5434227778 | L74: =Test!B72 -> 0 | M74: =Test!C72 -> 0 | N74: =Test!D72 -> 0 | O74: =Test!E72 -> 0 | P74: =Test!F72 -> 0 | Q74: =Test!G72 -> 0 | R74: 0 | S74: 0 | T74: 0
B75: RaceHorses | C75: 22 | D75: 512.0747 | E75: 43.0855 | F75: 43.1704 | G75: 44.0906 | H75: 1895.429 | I75: 0.804 | J75: 0.5265080556 | L75: =Test!B73 -> 0 | M75: =Test!C73 -> 0 | N75: =Test!D73 -> 0 | O75: =Test!E73 -> 0 | P75: =Test!F73 -> 0 | Q75: =Test!G73 -> 0 | R75: 0 | S75: 0 | T75: 0 | V75: =bdrate($D75:$D78,E75:E78,$L75:$L78,M75:M78) ->  | W75: =bdrate($D75:$D78,F75:F78,$L75:$L78,N75:N78) ->  | X75: =bdrate($D75:$D78,G75:G78,$L75:$L78,O75:O78) ->  | Y75: =bdrateOld($D75:$D78,E75:E78,$L75:$L78,M75:M78) ->  | Z75: =bdrateOld($D75:$D78,F75:F78,$L75:$L78,N75:N78) ->  | AA75: =bdrateOld($D75:$D78,G75:G78,$L75:$L78,O75:O78) -> 
C76: 27 | D76: 310.1874 | E76: 39.0599 | F76: 39.9393 | G76: 41.2927 | H76: 1587.982 | I76: 0.664 | J76: 0.4411061111 | L76: =Test!B74 -> 0 | M76: =Test!C74 -> 0 | N76: =Test!D74 -> 0 | O76: =Test!E74 -> 0 | P76: =Test!F74 -> 0 | Q76: =Test!G74 -> 0 | R76: 0 | S76: 0 | T76: 0
C77: 32 | D77: 172.5497 | E77: 35.1823 | F77: 37.9015 | G77: 39.184 | H77: 1156.034 | I77: 0.55 | J77: 0.3211205556 | L77: =Test!B75 -> 0 | M77: =Test!C75 -> 0 | N77: =Test!D75 -> 0 | O77: =Test!E75 -> 0 | P77: =Test!F75 -> 0 | Q77: =Test!G75 -> 0 | R77: 0 | S77: 0 | T77: 0
C78: 37 | D78: 85.8916 | E78: 31.7061 | F78: 36.4042 | G78: 37.5035 | H78: 860.713 | I78: 0.441 | J78: 0.2390869444 | L78: =Test!B76 -> 0 | M78: =Test!C76 -> 0 | N78: =Test!D76 -> 0 | O78: =Test!E76 -> 0 | P78: =Test!F76 -> 0 | Q78: =Test!G76 -> 0 | R78: 0 | S78: 0 | T78: 0
A79: ClassE | B79: FourPeople | C79: 22 | D79: 3322.6416 | E79: 44.3293 | F79: 47.3252 | G79: 48.5384 | H79: 15840.894 | I79: 9.319 | J79: =H79/3600 -> 4.400248333 | L79: =Test!B77 -> 0 | M79: =Test!C77 -> 0 | N79: =Test!D77 -> 0 | O79: =Test!E77 -> 0 | P79: =Test!F77 -> 0 | Q79: =Test!G77 -> 0 | R79: =P79/3600 -> 0 | S79: =P79/H79 -> 0 | T79: =Q79/I79 -> 0 | V79: =bdrate($D79:$D82,E79:E82,$L79:$L82,M79:M82) ->  | W79: =bdrate($D79:$D82,F79:F82,$L79:$L82,N79:N82) ->  | X79: =bdrate($D79:$D82,G79:G82,$L79:$L82,O79:O82) ->  | Y79: =bdrateOld($D79:$D82,E79:E82,$L79:$L82,M79:M82) ->  | Z79: =bdrateOld($D79:$D82,F79:F82,$L79:$L82,N79:N82) ->  | AA79: =bdrateOld($D79:$D82,G79:G82,$L79:$L82,O79:O82) -> 
A80: 720p | C80: 27 | D80: 2035.9256 | E80: 41.8582 | F80: 45.1662 | G80: 46.4707 | H80: 11009.482 | I80: 8.013 | J80: =H80/3600 -> 3.058189444 | L80: =Test!B78 -> 0 | M80: =Test!C78 -> 0 | N80: =Test!D78 -> 0 | O80: =Test!E78 -> 0 | P80: =Test!F78 -> 0 | Q80: =Test!G78 -> 0 | R80: =P80/3600 -> 0 | S80: =P80/H80 -> 0 | T80: =Q80/I80 -> 0
C81: 32 | D81: 1256.9304 | E81: 39.0511 | F81: 43.4369 | G81: 44.6693 | H81: 8676.787 | I81: 6.907 | J81: 2.410218611 | L81: =Test!B79 -> 0 | M81: =Test!C79 -> 0 | N81: =Test!D79 -> 0 | O81: =Test!E79 -> 0 | P81: =Test!F79 -> 0 | Q81: =Test!G79 -> 0 | R81: 0 | S81: 0 | T81: 0
C82: 37 | D82: 761.248 | E82: 35.9124 | F82: 42.1391 | G82: 43.3085 | H82: 5855.377 | I82: 6.015 | J82: 1.626493611 | L82: =Test!B80 -> 0 | M82: =Test!C80 -> 0 | N82: =Test!D80 -> 0 | O82: =Test!E80 -> 0 | P82: =Test!F80 -> 0 | Q82: =Test!G80 -> 0 | R82: 0 | S82: 0 | T82: 0
B83: Johnny | C83: 22 | D83: 2228.4224 | E83: 44.5001 | F83: 48.5907 | G83: 49.3031 | H83: 12297.422 | I83: 7.306 | J83: 3.415950556 | L83: =Test!B81 -> 0 | M83: =Test!C81 -> 0 | N83: =Test!D81 -> 0 | O83: =Test!E81 -> 0 | P83: =Test!F81 -> 0 | Q83: =Test!G81 -> 0 | R83: 0 | S83: 0 | T83: 0 | V83: =bdrate($D83:$D86,E83:E86,$L83:$L86,M83:M86) ->  | W83: =bdrate($D83:$D86,F83:F86,$L83:$L86,N83:N86) ->  | X83: =bdrate($D83:$D86,G83:G86,$L83:$L86,O83:O86) ->  | Y83: =bdrateOld($D83:$D86,E83:E86,$L83:$L86,M83:M86) ->  | Z83: =bdrateOld($D83:$D86,F83:F86,$L83:$L86,N83:N86) ->  | AA83: =bdrateOld($D83:$D86,G83:G86,$L83:$L86,O83:O86) -> 
C84: 27 | D84: 1228.7032 | E84: 42.371 | F84: 46.6849 | G84: 47.497 | H84: 8753.525 | I84: 6.283 | J84: 2.431534722 | L84: =Test!B82 -> 0 | M84: =Test!C82 -> 0 | N84: =Test!D82 -> 0 | O84: =Test!E82 -> 0 | P84: =Test!F82 -> 0 | Q84: =Test!G82 -> 0 | R84: 0 | S84: 0 | T84: 0
C85: 32 | D85: 698.444 | E85: 40.0964 | F85: 45.0113 | G85: 45.7696 | H85: 6348.956 | I85: 5.547 | J85: 1.763598889 | L85: =Test!B83 -> 0 | M85: =Test!C83 -> 0 | N85: =Test!D83 -> 0 | O85: =Test!E83 -> 0 | P85: =Test!F83 -> 0 | Q85: =Test!G83 -> 0 | R85: 0 | S85: 0 | T85: 0
C86: 37 | D86: 402.2064 | E86: 37.5306 | F86: 43.5868 | G86: 44.331 | H86: 3703.831 | I86: 4.953 | J86: 1.028841944 | L86: =Test!B84 -> 0 | M86: =Test!C84 -> 0 | N86: =Test!D84 -> 0 | O86: =Test!E84 -> 0 | P86: =Test!F84 -> 0 | Q86: =Test!G84 -> 0 | R86: 0 | S86: 0 | T86: 0
B87: KristenAndSara | C87: 22 | D87: 2438.8104 | E87: 44.8799 | F87: 47.9749 | G87: 48.9044 | H87: 12495.071 | I87: 8.005 | J87: 3.470853056 | L87: =Test!B85 -> 0 | M87: =Test!C85 -> 0 | N87: =Test!D85 -> 0 | O87: =Test!E85 -> 0 | P87: =Test!F85 -> 0 | Q87: =Test!G85 -> 0 | R87: 0 | S87: 0 | T87: 0 | V87: =bdrate($D87:$D90,E87:E90,$L87:$L90,M87:M90) ->  | W87: =bdrate($D87:$D90,F87:F90,$L87:$L90,N87:N90) ->  | X87: =bdrate($D87:$D90,G87:G90,$L87:$L90,O87:O90) ->  | Y87: =bdrateOld($D87:$D90,E87:E90,$L87:$L90,M87:M90) ->  | Z87: =bdrateOld($D87:$D90,F87:F90,$L87:$L90,N87:N90) ->  | AA87: =bdrateOld($D87:$D90,G87:G90,$L87:$L90,O87:O90) -> 
C88: 27 | D88: 1461.368 | E88: 42.6674 | F88: 45.8992 | G88: 46.9976 | H88: 8417.988 | I88: 6.88 | J88: 2.33833 | L88: =Test!B86 -> 0 | M88: =Test!C86 -> 0 | N88: =Test!D86 -> 0 | O88: =Test!E86 -> 0 | P88: =Test!F86 -> 0 | Q88: =Test!G86 -> 0 | R88: 0 | S88: 0 | T88: 0
C89: 32 | D89: 884.488 | E89: 40.125 | F89: 44.1719 | G89: 45.3053 | H89: 6514.383 | I89: 6.06 | J89: 1.809550833 | L89: =Test!B87 -> 0 | M89: =Test!C87 -> 0 | N89: =Test!D87 -> 0 | O89: =Test!E87 -> 0 | P89: =Test!F87 -> 0 | Q89: =Test!G87 -> 0 | R89: 0 | S89: 0 | T89: 0
C90: 37 | D90: 536.8392 | E90: 37.3014 | F90: 42.8005 | G90: 43.9256 | H90: 4300.151 | I90: 5.38 | J90: 1.194486389 | L90: =Test!B88 -> 0 | M90: =Test!C88 -> 0 | N90: =Test!D88 -> 0 | O90: =Test!E88 -> 0 | P90: =Test!F88 -> 0 | Q90: =Test!G88 -> 0 | R90: 0 | S90: 0 | T90: 0
A91: ClassF | B91: BasketballDrillText | C91: 22 | D91: 2414.5079 | E91: 42.525 | F91: 43.9606 | G91: 44.7236 | H91: 8725.312 | I91: 5.093 | J91: =H91/3600 -> 2.423697778 | L91: =Test!B89 -> 0 | M91: =Test!C89 -> 0 | N91: =Test!D89 -> 0 | O91: =Test!E89 -> 0 | P91: =Test!F89 -> 0 | Q91: =Test!G89 -> 0 | R91: =P91/3600 -> 0 | S91: =P91/H91 -> 0 | T91: =Q91/I91 -> 0 | V91: =bdrate($D91:$D94,E91:E94,$L91:$L94,M91:M94) ->  | W91: =bdrate($D91:$D94,F91:F94,$L91:$L94,N91:N94) ->  | X91: =bdrate($D91:$D94,G91:G94,$L91:$L94,O91:O94) ->  | Y91: =bdrateOld($D91:$D94,E91:E94,$L91:$L94,M91:M94) ->  | Z91: =bdrateOld($D91:$D94,F91:F94,$L91:$L94,N91:N94) ->  | AA91: =bdrateOld($D91:$D94,G91:G94,$L91:$L94,O91:O94) -> 
C92: 27 | D92: 1367.431 | E92: 39.0773 | F92: 41.1981 | G92: 41.7367 | H92: 7189.639 | I92: 3.837 | J92: =H92/3600 -> 1.997121944 | L92: =Test!B90 -> 0 | M92: =Test!C90 -> 0 | N92: =Test!D90 -> 0 | O92: =Test!E90 -> 0 | P92: =Test!F90 -> 0 | Q92: =Test!G90 -> 0 | R92: =P92/3600 -> 0 | S92: =P92/H92 -> 0 | T92: =Q92/I92 -> 0
C93: 32 | D93: 787.696 | E93: 36.0072 | F93: 39.1622 | G93: 39.5687 | H93: 5793.171 | I93: 3.08 | J93: 1.609214167 | L93: =Test!B91 -> 0 | M93: =Test!C91 -> 0 | N93: =Test!D91 -> 0 | O93: =Test!E91 -> 0 | P93: =Test!F91 -> 0 | Q93: =Test!G91 -> 0 | R93: 0 | S93: 0 | T93: 0
C94: 37 | D94: 467.2452 | E94: 33.1479 | F94: 37.6162 | G94: 37.7986 | H94: 3848.738 | I94: 2.569 | J94: 1.069093889 | L94: =Test!B92 -> 0 | M94: =Test!C92 -> 0 | N94: =Test!D92 -> 0 | O94: =Test!E92 -> 0 | P94: =Test!F92 -> 0 | Q94: =Test!G92 -> 0 | R94: 0 | S94: 0 | T94: 0
B95: ArenaOfValor | C95: 22 | D95: 11635.8392 | E95: 44.2225 | F95: 45.2701 | G95: 45.8924 | H95: 40586.974 | I95: 31.358 | J95: 11.27415944 | L95: =Test!B93 -> 0 | M95: =Test!C93 -> 0 | N95: =Test!D93 -> 0 | O95: =Test!E93 -> 0 | P95: =Test!F93 -> 0 | Q95: =Test!G93 -> 0 | R95: 0 | S95: 0 | T95: 0 | V95: =bdrate($D95:$D98,E95:E98,$L95:$L98,M95:M98) ->  | W95: =bdrate($D95:$D98,F95:F98,$L95:$L98,N95:N98) ->  | X95: =bdrate($D95:$D98,G95:G98,$L95:$L98,O95:O98) ->  | Y95: =bdrateOld($D95:$D98,E95:E98,$L95:$L98,M95:M98) ->  | Z95: =bdrateOld($D95:$D98,F95:F98,$L95:$L98,N95:N98) ->  | AA95: =bdrateOld($D95:$D98,G95:G98,$L95:$L98,O95:O98) -> 
C96: 27 | D96: 6795.5568 | E96: 40.7059 | F96: 42.4519 | G96: 42.8516 | H96: 31388.831 | I96: 25.187 | J96: 8.719119722 | L96: =Test!B94 -> 0 | M96: =Test!C94 -> 0 | N96: =Test!D94 -> 0 | O96: =Test!E94 -> 0 | P96: =Test!F94 -> 0 | Q96: =Test!G94 -> 0 | R96: 0 | S96: 0 | T96: 0
C97: 32 | D97: 3899.4504 | E97: 37.4547 | F97: 40.2842 | G97: 40.5 | H97: 24798.901 | I97: 20.782 | J97: 6.888583611 | L97: =Test!B95 -> 0 | M97: =Test!C95 -> 0 | N97: =Test!D95 -> 0 | O97: =Test!E95 -> 0 | P97: =Test!F95 -> 0 | Q97: =Test!G95 -> 0 | R97: 0 | S97: 0 | T97: 0
C98: 37 | D98: 2215.3808 | E98: 34.3823 | F98: 38.5783 | G98: 38.6768 | H98: 16927.648 | I98: 17.294 | J98: 4.702124444 | L98: =Test!B96 -> 0 | M98: =Test!C96 -> 0 | N98: =Test!D96 -> 0 | O98: =Test!E96 -> 0 | P98: =Test!F96 -> 0 | Q98: =Test!G96 -> 0 | R98: 0 | S98: 0 | T98: 0
B99: SlideEditing | C99: 22 | D99: 3707.8721 | E99: 47.0052 | F99: 45.2598 | G99: 45.7532 | H99: 5761.049 | I99: 6.847 | J99: 1.600291389 | L99: =Test!B97 -> 0 | M99: =Test!C97 -> 0 | N99: =Test!D97 -> 0 | O99: =Test!E97 -> 0 | P99: =Test!F97 -> 0 | Q99: =Test!G97 -> 0 | R99: 0 | S99: 0 | T99: 0 | V99: =bdrate($D99:$D102,E99:E102,$L99:$L102,M99:M102) ->  | W99: =bdrate($D99:$D102,F99:F102,$L99:$L102,N99:N102) ->  | X99: =bdrate($D99:$D102,G99:G102,$L99:$L102,O99:O102) ->  | Y99: =bdrateOld($D99:$D102,E99:E102,$L99:$L102,M99:M102) ->  | Z99: =bdrateOld($D99:$D102,F99:F102,$L99:$L102,N99:N102) ->  | AA99: =bdrateOld($D99:$D102,G99:G102,$L99:$L102,O99:O102) -> 
C100: 27 | D100: 2789.4324 | E100: 42.4817 | F100: 41.2524 | G100: 42.2197 | H100: 5527.297 | I100: 5.821 | J100: 1.535360278 | L100: =Test!B98 -> 0 | M100: =Test!C98 -> 0 | N100: =Test!D98 -> 0 | O100: =Test!E98 -> 0 | P100: =Test!F98 -> 0 | Q100: =Test!G98 -> 0 | R100: 0 | S100: 0 | T100: 0
C101: 32 | D101: 2166.6971 | E101: 37.9278 | F101: 39.2615 | G101: 40.4995 | H101: 4791.564 | I101: 5.112 | J101: 1.33099 | L101: =Test!B99 -> 0 | M101: =Test!C99 -> 0 | N101: =Test!D99 -> 0 | O101: =Test!E99 -> 0 | P101: =Test!F99 -> 0 | Q101: =Test!G99 -> 0 | R101: 0 | S101: 0 | T101: 0
C102: 37 | D102: 1628.9005 | E102: 33.1488 | F102: 38.3204 | G102: 39.5667 | H102: 4185.495 | I102: 4.612 | J102: 1.1626375 | L102: =Test!B100 -> 0 | M102: =Test!C100 -> 0 | N102: =Test!D100 -> 0 | O102: =Test!E100 -> 0 | P102: =Test!F100 -> 0 | Q102: =Test!G100 -> 0 | R102: 0 | S102: 0 | T102: 0
B103: SlideShow | C103: 22 | D103: 584.7479 | E103: 51.0749 | F103: 54.1238 | G103: 55.1389 | H103: 4704.69 | I103: 4.951 | J103: 1.306858333 | L103: =Test!B101 -> 0 | M103: =Test!C101 -> 0 | N103: =Test!D101 -> 0 | O103: =Test!E101 -> 0 | P103: =Test!F101 -> 0 | Q103: =Test!G101 -> 0 | R103: 0 | S103: 0 | T103: 0 | V103: =bdrate($D103:$D106,E103:E106,$L103:$L106,M103:M106) ->  | W103: =bdrate($D103:$D106,F103:F106,$L103:$L106,N103:N106) ->  | X103: =bdrate($D103:$D106,G103:G106,$L103:$L106,O103:O106) ->  | Y103: =bdrateOld($D103:$D106,E103:E106,$L103:$L106,M103:M106) ->  | Z103: =bdrateOld($D103:$D106,F103:F106,$L103:$L106,N103:N106) ->  | AA103: =bdrateOld($D103:$D106,G103:G106,$L103:$L106,O103:O106) -> 
C104: 27 | D104: 394.7819 | E104: 47.4224 | F104: 50.8763 | G104: 52.0884 | H104: 3640.032 | I104: 4.46 | J104: 1.01112 | L104: =Test!B102 -> 0 | M104: =Test!C102 -> 0 | N104: =Test!D102 -> 0 | O104: =Test!E102 -> 0 | P104: =Test!F102 -> 0 | Q104: =Test!G102 -> 0 | R104: 0 | S104: 0 | T104: 0
C105: 32 | D105: 270.3156 | E105: 43.8166 | F105: 48.4291 | G105: 50.0752 | H105: 3255.158 | I105: 4.071 | J105: 0.9042105556 | L105: =Test!B103 -> 0 | M105: =Test!C103 -> 0 | N105: =Test!D103 -> 0 | O105: =Test!E103 -> 0 | P105: =Test!F103 -> 0 | Q105: =Test!G103 -> 0 | R105: 0 | S105: 0 | T105: 0
C106: 37 | D106: 180.8451 | E106: 40.0125 | F106: 46.5441 | G106: 48.4458 | H106: 2559.568 | I106: 3.709 | J106: 0.7109911111 | L106: =Test!B104 -> 0 | M106: =Test!C104 -> 0 | N106: =Test!D104 -> 0 | O106: =Test!E104 -> 0 | P106: =Test!F104 -> 0 | Q106: =Test!G104 -> 0 | R106: 0 | S106: 0 | T106: 0
B107: Class A1 | I107: =GEOMEAN(I3:I14) -> 31.94182437 | J107: =GEOMEAN(J3:J14) -> 6.070837691 | Q107: =GEOMEAN(Q3:Q14) ->  | R107: =GEOMEAN(R3:R14) ->  | S107: =GEOMEAN(S3:S14) ->  | T107: =GEOMEAN(T3:T14) ->  | V107: =AVERAGE(V3:V14) -> 
B108: Class A2 | I108: =GEOMEAN(I15:I26) -> 38.88648202 | J108: =GEOMEAN(J15:J26) -> 9.864124752 | Q108: =GEOMEAN(Q15:Q26) ->  | R108: =GEOMEAN(R15:R26) ->  | S108: =GEOMEAN(S15:S26) ->  | T108: =GEOMEAN(T15:T26) ->  | V108: =AVERAGE(V15:V26) -> 
B109: Class B | I109: =GEOMEAN(I27:I46) -> 17.43255569 | J109: =GEOMEAN(J27:J46) -> 6.58182725 | Q109: =GEOMEAN(Q27:Q46) ->  | R109: =GEOMEAN(R27:R46) ->  | S109: =GEOMEAN(S27:S46) ->  | V109: =AVERAGE(V27:V46) ->  | W109: =AVERAGE(W27:W46) -> 
B110: Class C | I110: =GEOMEAN(I47:I62) -> 3.326653878 | J110: =GEOMEAN(J47:J62) -> 1.700276346 | Q110: =GEOMEAN(Q47:Q62) ->  | R110: =GEOMEAN(R47:R62) ->  | S110: =GEOMEAN(S47:S62) ->  | V110: =AVERAGE(V47:V62) ->  | W110: =AVERAGE(W47:W62) -> 
B111: Class D | I111: =GEOMEAN(I63:I78) -> 0.9517022463 | J111: =GEOMEAN(J63:J78) -> 0.5567818548 | Q111: =GEOMEAN(Q63:Q78) ->  | R111: =GEOMEAN(R63:R78) ->  | S111: =GEOMEAN(S63:S78) ->  | V111: =AVERAGE(V63:V78) ->  | W111: =AVERAGE(W63:W78) -> 
B112: Class E | I112: =GEOMEAN(I79:I90) -> 6.61539255 | J112: =GEOMEAN(J79:J90) -> 2.215000066 | Q112: =GEOMEAN(Q79:Q90) ->  | R112: =GEOMEAN(R79:R90) ->  | S112: =GEOMEAN(S79:S90) ->  | V112: =AVERAGE(V79:V88) ->  | W112: =AVERAGE(W79:W88) -> 
B113: Class F | I113: =GEOMEAN(I91:I106) -> 6.624406583 | J113: =GEOMEAN(J91:J106) -> 2.033728341 | Q113: =GEOMEAN(Q91:Q106) ->  | R113: =GEOMEAN(R91:R106) ->  | S113: =GEOMEAN(S91:S106) ->  | V113: =AVERAGE(V91:V106) ->  | W113: =AVERAGE(W91:W106) -> 
B114: All | I114: =GEOMEAN(I3:I62, I79:I90) -> 12.98005527 | J114: =GEOMEAN(J3:J62,J79:J90) -> 4.288695167 | Q114: =GEOMEAN(Q3:Q62,Q79:Q90) ->  | R114: =GEOMEAN(R3:R62,R79:R90) ->  | S114: =GEOMEAN(S3:S62,S79:S90) ->  | T114: =GEOMEAN(T3:T62,T79:T90) ->  | V114: =AVERAGE(V3:V62,V79:V90) ->  | W114: =AVERAGE(W3:W62,W79:W90) ->  | Y114: =AVERAGE(Y3:Y62,Y79:Y90) -> 
B115: Time geomean | I115: =GEOMEAN(I3:I106) -> 7.829836516 | J115: =GEOMEAN(J3:J106) -> 2.792980445 | Q115: =GEOMEAN(Q3:Q106) ->  | R115: =GEOMEAN(R3:R106) -> 
B116: Time ratio | Q116: =Q115/I115 ->  | R116: =R115/J115 -> 
B117: Time sum (hours)

Sheet RA-10
D1: Reference | L1: Tested | V1: BD-rate (piecewise cubic) | Y1: BD-rate (cubic)
C2: QPISlice | D2: kbps | E2: Y psnr | F2: U psnr | G2: V psnr | H2: Enc T [s] | I2: Dec T [s] | J2: Enc T [h] | L2: kbps | M2: Y psnr | N2: U psnr | O2: V psnr | P2: Enc T [s] | Q2: Dec T [s] | R2: Enc T [h] | S2: Enc | T2: Dec | V2: Y | W2: U | X2: V | Y2: Y | Z2: U | AA2: V
A3: Class A1 | B3: Tango2 | C3: 22 | D3: 27814.5029 | E3: 40.3416 | F3: 49.1548 | G3: 47.4719 | H3: 518438.89 | I3: 154.99 | J3: 144.0108028 | L3: 27814.50286 | M3: 40.34163571 | N3: 49.15480816 | O3: 47.47188673 | P3: 593644.023 | Q3: 195.447 | R3: =P3/3600 -> 164.9011175 | S3: =P3/H3 -> 1.145060748 | T3: =Q3/I3 -> 1.261029744 | V3: =bdrate($D3:$D6,E3:E6,$L3:$L6,M3:M6) -> 5.979449138e-07 | W3: =bdrate($D3:$D6,F3:F6,$L3:$L6,N3:N6) -> 4.98964506e-06 | X3: =bdrate($D3:$D6,G3:G6,$L3:$L6,O3:O6) -> 1.101833675e-05 | Y3: =bdrateOld($D3:$D6,E3:E6,$L3:$L6,M3:M6) -> -5.191403769e-06 | Z3: =bdrateOld($D3:$D6,F3:F6,$L3:$L6,N3:N6) -> 4.469288207e-06 | AA3: =bdrateOld($D3:$D6,G3:G6,$L3:$L6,O3:O6) -> 9.847810274e-06
A4: 4K | C4: 27 | D4: 7405.7518 | E4: 39.6034 | F4: 48.3877 | G4: 46.2765 | H4: 235280.51 | I4: 125.24 | J4: 65.35569722 | L4: 7405.751837 | M4: 39.6033915 | N4: 48.38768707 | O4: 46.27643878 | P4: 307304.947 | Q4: 152.913 | R4: =P4/3600 -> 85.36248528 | S4: =P4/H4 -> 1.306121561 | T4: 1.220959757
C5: 32 | D5: 3683.907 | E5: 38.6873 | F5: 47.5969 | G5: 45.0987 | H5: 130390.01 | I5: 110.48 | J5: 36.21944722 | L5: 3683.906939 | M5: 38.68728163 | N5: 47.5968915 | O5: 45.09873027 | P5: 207365.067 | Q5: 140.104 | R5: 57.6014075 | S5: 1.590344743 | T5: 1.26813903
C6: 37 | D6: 2033.2784 | E6: 37.2884 | F6: 46.6855 | G6: 43.8142 | H6: 75471.05 | I6: 94.85 | J6: 20.96418056 | L6: 2033.278367 | M6: 37.28839218 | N6: 46.68551259 | O6: 43.8142585 | P6: 124500.809 | Q6: 121.25 | R6: 34.58355806 | S6: 1.649649886 | T6: 1.278334212
B7: FoodMarket4 | C7: 22 | D7: 17144.0864 | E7: 44.1999 | F7: 49.0548 | G7: 49.7051 | H7: 330241.19 | I7: 143.41 | J7: 91.73366389 | L7: 17144.0864 | M7: 44.19986 | N7: 49.05478067 | O7: 49.705097 | P7: 392810.566 | Q7: 178.666 | R7: 109.1140461 | S7: 1.189465693 | T7: 1.245840597 | V7: =bdrate($D7:$D10,E7:E10,$L7:$L10,M7:M10) -> 8.024767259e-06 | W7: =bdrate($D7:$D10,F7:F10,$L7:$L10,N7:N10) -> -1.305824244e-05 | X7: =bdrate($D7:$D10,G7:G10,$L7:$L10,O7:O10) -> 2.153501369e-06 | Y7: =bdrateOld($D7:$D10,E7:E10,$L7:$L10,M7:M10) -> 8.306324131e-06 | Z7: =bdrateOld($D7:$D10,F7:F10,$L7:$L10,N7:N10) -> -1.372963067e-05 | AA7: =bdrateOld($D7:$D10,G7:G10,$L7:$L10,O7:O10) -> 2.950637316e-06
C8: 27 | D8: 7444.7552 | E8: 42.7079 | F8: 47.2963 | G8: 47.7729 | H8: 190897.71 | I8: 132.34 | J8: 53.02714167 | L8: 7444.7552 | M8: 42.70787567 | N8: 47.29635933 | O8: 47.77287967 | P8: 244609.854 | Q8: 158.114 | R8: 67.94718167 | S8: 1.281366099 | T8: 1.194755932
C9: 32 | D9: 3921.4992 | E9: 40.7996 | F9: 45.8238 | G9: 46.1811 | H9: 112228.97 | I9: 116.64 | J9: 31.17471389 | L9: 3921.4992 | M9: 40.79958933 | N9: 45.823812 | O9: 46.18112133 | P9: 169043.161 | Q9: 145.117 | R9: 46.95643361 | S9: 1.506234629 | T9: 1.244144376
C10: 37 | D10: 2090.4976 | E10: 38.4466 | F10: 44.4612 | G10: 44.6981 | H10: 67870.35 | I10: 100.94 | J10: 18.852875 | L10: 2090.4976 | M10: 38.44657733 | N10: 44.461231 | O10: 44.69807233 | P10: 112629.398 | Q10: 127.786 | R10: 31.28594389 | S10: 1.659478668 | T10: 1.265959976
B11: Campfire | C11: 22 | D11: 59929.8008 | E11: 39.53 | F11: 42.1991 | G11: 42.5924 | H11: 776734.38 | I11: 224.81 | J11: 215.75955 | L11: 59929.8008 | M11: 39.53002 | N11: 42.19911333 | O11: 42.592352 | P11: 896294.603 | Q11: 273.125 | R11: 248.9707231 | S11: 1.153926781 | T11: 1.214914817 | V11: =bdrate($D11:$D14,E11:E14,$L11:$L14,M11:M14) -> -1.076680432e-05 | W11: =bdrate($D11:$D14,F11:F14,$L11:$L14,N11:N14) -> -8.506874085e-06 | X11: =bdrate($D11:$D14,G11:G14,$L11:$L14,O11:O14) -> -8.554588288e-06 | Y11: =bdrateOld($D11:$D14,E11:E14,$L11:$L14,M11:M14) -> -1.161562108e-05 | Z11: =bdrateOld($D11:$D14,F11:F14,$L11:$L14,N11:N14) -> -1.097251801e-05 | AA11: =bdrateOld($D11:$D14,G11:G14,$L11:$L14,O11:O14) -> -9.060780045e-06
C12: 27 | D12: 17556.6752 | E12: 37.5567 | F12: 39.0473 | G12: 41.0839 | H12: 419999.58 | I12: 146.78 | J12: 116.66655 | L12: 17556.6752 | M12: 37.55672833 | N12: 39.047342 | O12: 41.083954 | P12: 542808.177 | Q12: 185.402 | R12: 150.7800492 | S12: 1.292401714 | T12: 1.263128492
C13: 32 | D13: 8964.0072 | E13: 36.4395 | F13: 37.418 | G13: 39.9544 | H13: 273224.52 | I13: 123.2 | J13: 75.8957 | L13: 8964.0072 | M13: 36.43951033 | N13: 37.417988 | O13: 39.9544 | P13: 402043.18 | Q13: 155.032 | R13: 111.6786611 | S13: 1.471475474 | T13: 1.258376623
C14: 37 | D14: 4924.7704 | E14: 35.0614 | F14: 35.3381 | G14: 38.6402 | H14: 174883.96 | I14: 109.3 | J14: 48.57887778 | L14: 4924.7704 | M14: 35.06138833 | N14: 35.338132 | O14: 38.64020767 | P14: 289530.357 | Q14: 139.407 | R14: 80.42509917 | S14: 1.655556959 | T14: 1.275452882
A15: Class A2 | B15: CatRobot1 | C15: 22 | D15: 33310.768 | E15: 40.3939 | F15: 41.8518 | G15: 43.5338 | H15: 397232.66 | I15: 156.86 | J15: 110.3424056 | L15: 33310.768 | M15: 40.39391467 | N15: 41.85183467 | O15: 43.53382167 | P15: 459086.009 | Q15: 197.584 | R15: 127.5238914 | S15: =P15/H15 -> 1.155710633 | T15: =Q15/I15 -> 1.259620043 | V15: =bdrate($D15:$D18,E15:E18,$L15:$L18,M15:M18) -> -4.734594373e-06 | W15: =bdrate($D15:$D18,F15:F18,$L15:$L18,N15:N18) -> -1.214058807e-05 | X15: =bdrate($D15:$D18,G15:G18,$L15:$L18,O15:O18) -> -5.731276664e-06 | Y15: =bdrateOld($D15:$D18,E15:E18,$L15:$L18,M15:M18) -> -3.138954816e-06 | Z15: =bdrateOld($D15:$D18,F15:F18,$L15:$L18,N15:N18) -> -1.674516469e-05 | AA15: =bdrateOld($D15:$D18,G15:G18,$L15:$L18,O15:O18) -> -7.828178398e-06
A16: 4K | C16: 27 | D16: 8627.8192 | E16: 39.3815 | F16: 41.3285 | G16: 42.3818 | H16: 201165.03 | I16: 109.71 | J16: 55.879175 | L16: 8627.8192 | M16: 39.38152067 | N16: 41.32851133 | O16: 42.38181833 | P16: 276253.055 | Q16: 142.945 | R16: 76.73695972 | S16: =P16/H16 -> 1.373265796 | T16: =Q16/I16 -> 1.30293501
C17: 32 | D17: 4241.5376 | E17: 38.1155 | F17: 40.7457 | G17: 41.2183 | H17: 124680.98 | I17: 92.09 | J17: 34.63360556 | L17: 4241.5376 | M17: 38.115492 | N17: 40.745679 | O17: 41.218265 | P17: 197760.736 | Q17: 123.404 | R17: 54.93353778 | S17: 1.586133956 | T17: 1.34003692
C18: 37 | D18: 2271.5136 | E18: 36.3779 | F18: 40.0912 | G18: 40.0275 | H18: 78406.16 | I18: 81.97 | J18: 21.77948889 | L18: 2271.5136 | M18: 36.37787267 | N18: 40.09121333 | O18: 40.02755533 | P18: 135306.531 | Q18: 112.639 | R18: 37.5851475 | S18: 1.725713018 | T18: 1.374149079
B19: DaylightRoad2 | C19: 22 | D19: 56859.6832 | E19: 38.152 | F19: 45.6233 | G19: 43.3791 | H19: 570123.1 | I19: 174.86 | J19: 158.3675278 | L19: 56859.6832 | M19: 38.15200167 | N19: 45.623273 | O19: 43.379144 | P19: 606886.853 | Q19: 225.745 | R19: 168.5796814 | S19: 1.064483886 | T19: 1.291004232 | V19: =bdrate($D19:$D22,E19:E22,$L19:$L22,M19:M22) -> -1.167887109e-05 | W19: =bdrate($D19:$D22,F19:F22,$L19:$L22,N19:N22) -> 4.21321619e-05 | X19: =bdrate($D19:$D22,G19:G22,$L19:$L22,O19:O22) -> -2.943914234e-05 | Y19: =bdrateOld($D19:$D22,E19:E22,$L19:$L22,M19:M22) -> -1.491379343e-05 | Z19: =bdrateOld($D19:$D22,F19:F22,$L19:$L22,N19:N22) -> 3.765062226e-05 | AA19: =bdrateOld($D19:$D22,G19:G22,$L19:$L22,O19:O22) -> -3.024138913e-05
C20: 27 | D20: 10304.4608 | E20: 37.2314 | F20: 44.8389 | G20: 42.423 | H20: 239285.31 | I20: 118.62 | J20: 66.46814167 | L20: 10304.4608 | M20: 37.23139233 | N20: 44.83885267 | O20: 42.42301633 | P20: 276552.191 | Q20: 154.508 | R20: 76.82005306 | S20: 1.155742452 | T20: 1.302545945
C21: 32 | D21: 4253.6784 | E21: 36.296 | F21: 44.0044 | G21: 41.4484 | H21: 142222.92 | I21: 98.35 | J21: 39.50636667 | L21: 4253.6784 | M21: 36.29603833 | N21: 44.004367 | O21: 41.448427 | P21: 173324.209 | Q21: 125.316 | R21: 48.14561361 | S21: 1.218679865 | T21: 1.274184037
C22: 37 | D22: 2155.1424 | E22: 34.9313 | F22: 43.0755 | G22: 40.4016 | H22: 81866.36 | I22: 79.88 | J22: 22.74065556 | L22: 2155.1424 | M22: 34.93135167 | N22: 43.07554 | O22: 40.40162667 | P22: 112142.59 | Q22: 109.979 | R22: 31.15071944 | S22: 1.369825042 | T22: 1.376802704
B23: ParkRunning3 | C23: 22 | D23: 110984.3027 | E23: 43.1167 | F23: 37.9419 | G23: 38.8629 | H23: 551528.59 | I23: 231.28 | J23: 153.2023861 | L23: 110984.3027 | M23: 43.116695 | N23: 37.94186433 | O23: 38.862908 | P23: 662724.203 | Q23: 287.575 | R23: 184.0900564 | S23: 1.201613507 | T23: 1.243406261 | V23: =bdrate($D23:$D26,E23:E26,$L23:$L26,M23:M26) -> 5.506616943e-06 | W23: =bdrate($D23:$D26,F23:F26,$L23:$L26,N23:N26) -> -1.37581667e-05 | X23: =bdrate($D23:$D26,G23:G26,$L23:$L26,O23:O26) -> 5.833237822e-06 | Y23: =bdrateOld($D23:$D26,E23:E26,$L23:$L26,M23:M26) -> 5.113993843e-06 | Z23: =bdrateOld($D23:$D26,F23:F26,$L23:$L26,N23:N26) -> -1.585810138e-05 | AA23: =bdrateOld($D23:$D26,G23:G26,$L23:$L26,O23:O26) -> 8.441167037e-06
C24: 27 | D24: 43740.1427 | E24: 39.1835 | F24: 35.0354 | G24: 36.2958 | H24: 352246.59 | I24: 184.63 | J24: 97.846275 | L24: 43740.14267 | M24: 39.183469 | N24: 35.03545567 | O24: 36.29578433 | P24: 468342.818 | Q24: 233.308 | R24: 130.0952272 | S24: 1.32958794 | T24: 1.263651628
C25: 32 | D25: 20672.7293 | E25: 35.9685 | F25: 33.3128 | G25: 34.7605 | H25: 246505.32 | I25: 155.46 | J25: 68.4737 | L25: 20672.72933 | M25: 35.968464 | N25: 33.31282767 | O25: 34.760498 | P25: 361144.808 | Q25: 194.877 | R25: 100.3180022 | S25: 1.46505888 | T25: 1.253550753
C26: 37 | D26: 9259.5573 | E26: 33.0564 | F26: 31.8324 | G26: 33.4444 | H26: 169635.9 | I26: 132.69 | J26: 47.12108333 | L26: 9259.557333 | M26: 33.05642 | N26: 31.832436 | O26: 33.444354 | P26: 278709.75 | Q26: 165.194 | R26: 77.419375 | S26: 1.642988011 | T26: 1.244961941
A27: Class B | B27: MarketPlace | C27: 22 | D27: 14158.7312 | E27: 40.8191 | F27: 44.2953 | G27: 45.219 | H27: 208085.42 | I27: 85.01 | J27: 57.80150556 | L27: 14158.7312 | M27: 40.81912667 | N27: 44.29533833 | O27: 45.2189965 | P27: 247439.527 | Q27: 100.76 | R27: 68.73320194 | S27: 1.189124769 | T27: 1.185272321 | V27: =bdrate($D27:$D30,E27:E30,$L27:$L30,M27:M30) -> -5.752800057e-07 | W27: =bdrate($D27:$D30,F27:F30,$L27:$L30,N27:N30) -> 6.832406279e-06 | X27: =bdrate($D27:$D30,G27:G30,$L27:$L30,O27:O30) -> 2.547742842e-05 | Y27: =bdrateOld($D27:$D30,E27:E30,$L27:$L30,M27:M30) -> -7.013445426e-07 | Z27: =bdrateOld($D27:$D30,F27:F30,$L27:$L30,N27:N30) -> 1.083828646e-05 | AA27: =bdrateOld($D27:$D30,G27:G30,$L27:$L30,O27:O30) -> 2.53463697e-05
A28: 1080p | C28: 27 | D28: 5418.8448 | E28: 38.7166 | F28: 42.8002 | G28: 43.9151 | H28: 115125.29 | I28: 65.24 | J28: 31.97924722 | L28: 5418.8448 | M28: 38.71661717 | N28: 42.800141 | O28: 43.91506117 | P28: 156375.269 | Q28: 78.805 | R28: 43.43757472 | S28: 1.358305104 | T28: 1.207924586
C29: 32 | D29: 2459.4752 | E29: 36.5327 | F29: 41.615 | G29: 42.7448 | H29: 76725.15 | I29: 51.96 | J29: 21.31254167 | L29: 2459.4752 | M29: 36.53266083 | N29: 41.61504233 | O29: 42.74475467 | P29: 118291.482 | Q29: 65.786 | R29: 32.858745 | S29: 1.541756282 | T29: 1.266089299
C30: 37 | D30: 1102.5296 | E30: 34.2276 | F30: 40.5408 | G30: 41.6113 | H30: 49576.26 | I30: 44.11 | J30: 13.77118333 | L30: 1102.5296 | M30: 34.2276405 | N30: 40.54075733 | O30: 41.61125917 | P30: 83090.498 | Q30: 56.727 | R30: 23.08069389 | S30: 1.676013842 | T30: 1.286034913
B31: RitualDance | C31: 22 | D31: 9363.556 | E31: 44.4968 | F31: 47.5351 | G31: 48.5774 | H31: 186096.42 | I31: 81.89 | J31: 51.69345 | L31: 9363.556 | M31: 44.49674567 | N31: 47.535119 | O31: 48.5774235 | P31: 229668.338 | Q31: 95.321 | R31: 63.79676056 | S31: 1.23413625 | T31: 1.1640127 | V31: =bdrate($D31:$D34,E31:E34,$L31:$L34,M31:M34) -> -6.596327774e-07 | W31: =bdrate($D31:$D34,F31:F34,$L31:$L34,N31:N34) -> -2.530743105e-06 | X31: =bdrate($D31:$D34,G31:G34,$L31:$L34,O31:O34) -> 4.834257141e-07 | Y31: =bdrateOld($D31:$D34,E31:E34,$L31:$L34,M31:M34) -> -7.924187175e-07 | Z31: =bdrateOld($D31:$D34,F31:F34,$L31:$L34,N31:N34) -> 1.26538698e-07 | AA31: =bdrateOld($D31:$D34,G31:G34,$L31:$L34,O31:O34) -> 2.890801109e-06
C32: 27 | D32: 4630.9736 | E32: 41.3462 | F32: 45.4187 | G32: 46.234 | H32: 129078.36 | I32: 69.18 | J32: 35.8551 | L32: 4630.9736 | M32: 41.3462325 | N32: 45.41867533 | O32: 46.23397517 | P32: 173976.61 | Q32: 80.598 | R32: 48.32683611 | S32: 1.347837159 | T32: 1.165047702
C33: 32 | D33: 2465.2224 | E33: 38.2956 | F33: 43.9106 | G33: 44.5571 | H33: 90614.79 | I33: 57.03 | J33: 25.170775 | L33: 2465.2224 | M33: 38.29557567 | N33: 43.910644 | O33: 44.55713433 | P33: 135272.605 | Q33: 69.085 | R33: 37.57572361 | S33: 1.492831413 | T33: 1.211379975
C34: 37 | D34: 1292.4424 | E34: 35.3345 | F34: 42.6198 | G34: 43.0387 | H34: 59120.63 | I34: 49.44 | J34: 16.42239722 | L34: 1292.4424 | M34: 35.3345555 | N34: 42.61980033 | O34: 43.03866 | P34: 98196.916 | Q34: 59.599 | R34: 27.27692111 | S34: 1.660958552 | T34: 1.205481392
B35: Cactus | C35: 22 | D35: 14682.1616 | E35: 38.6776 | F35: 40.2229 | G35: 43.9865 | H35: 184745.55 | I35: 74.82 | J35: 51.31820833 | L35: 14682.1616 | M35: 38.6775932 | N35: 40.2229182 | O35: 43.9865104 | P35: 220499.084 | Q35: 89.762 | R35: 61.24974556 | S35: 1.193528526 | T35: 1.199705961 | V35: =bdrate($D35:$D38,E35:E38,$L35:$L38,M35:M38) -> 8.516067348e-06 | W35: =bdrate($D35:$D38,F35:F38,$L35:$L38,N35:N38) -> -4.165892632e-06 | X35: =bdrate($D35:$D38,G35:G38,$L35:$L38,O35:O38) -> -8.512897096e-06 | Y35: =bdrateOld($D35:$D38,E35:E38,$L35:$L38,M35:M38) -> 7.691363064e-06 | Z35: =bdrateOld($D35:$D38,F35:F38,$L35:$L38,N35:N38) -> -5.031154018e-06 | AA35: =bdrateOld($D35:$D38,G35:G38,$L35:$L38,O35:O38) -> -7.853146303e-06
C36: 27 | D36: 4352.504 | E36: 37.1557 | F36: 39.3999 | G36: 42.4907 | H36: 101366.94 | I36: 47.87 | J36: 28.15748333 | L36: 4352.504 | M36: 37.1556804 | N36: 39.39991 | O36: 42.4907284 | P36: 139707.956 | Q36: 60.285 | R36: 38.80776556 | S36: 1.378239848 | T36: 1.259348235
C37: 32 | D37: 2027.464 | E37: 35.4708 | F37: 38.7702 | G37: 41.1469 | H37: 66626.23 | I37: 39.22 | J37: 18.50728611 | L37: 2027.464 | M37: 35.470769 | N37: 38.7701972 | O37: 41.1469124 | P37: 105741.856 | Q37: 50.821 | R37: 29.37273778 | S37: 1.58709049 | T37: 1.295792963
C38: 37 | D38: 989.0248 | E38: 33.3714 | F38: 38.0102 | G38: 39.8575 | H38: 43370.54 | I38: 34.47 | J38: 12.04737222 | L38: 989.0248 | M38: 33.3714254 | N38: 38.010162 | O38: 39.8574562 | P38: 75454.722 | Q38: 45.436 | R38: 20.959645 | S38: 1.739769023 | T38: 1.318131709
B39: BasketballDrive | C39: 22 | D39: 14302.3576 | E39: 39.4209 | F39: 44.2267 | G39: 45.7432 | H39: 229276.46 | I39: 78.72 | J39: 63.68790556 | L39: 14302.3576 | M39: 39.4209272 | N39: 44.2266754 | O39: 45.7431856 | P39: 279446.257 | Q39: 91.827 | R39: 77.62396028 | S39: 1.218817915 | T39: 1.166501524 | V39: =bdrate($D39:$D42,E39:E42,$L39:$L42,M39:M42) -> -5.258890074e-06 | W39: =bdrate($D39:$D42,F39:F42,$L39:$L42,N39:N42) -> 4.731210352e-07 | X39: =bdrate($D39:$D42,G39:G42,$L39:$L42,O39:O42) -> 1.34383612e-07 | Y39: =bdrateOld($D39:$D42,E39:E42,$L39:$L42,M39:M42) -> -5.856398514e-06 | Z39: =bdrateOld($D39:$D42,F39:F42,$L39:$L42,N39:N42) -> -6.074063293e-07 | AA39: =bdrateOld($D39:$D42,G39:G42,$L39:$L42,O39:O42) -> 6.619978998e-07
C40: 27 | D40: 4626.712 | E40: 37.7766 | F40: 43.1299 | G40: 43.941 | H40: 134084.64 | I40: 59.01 | J40: 37.24573333 | L40: 4626.712 | M40: 37.7765978 | N40: 43.1299322 | O40: 43.940969 | P40: 182870.094 | Q40: 70.01 | R40: 50.79724833 | S40: 1.363840735 | T40: 1.186409083
C41: 32 | D41: 2185.676 | E41: 36.0689 | F41: 42.1292 | G41: 42.4729 | H41: 86123.92 | I41: 50.91 | J41: 23.92331111 | L41: 2185.676 | M41: 36.0689092 | N41: 42.1291618 | O41: 42.472935 | P41: 136387.237 | Q41: 61.42 | R41: 37.88534361 | S41: 1.583616224 | T41: 1.206442742
C42: 37 | D42: 1102.6384 | E42: 34.0836 | F42: 41.1335 | G42: 40.9885 | H42: 53433.26 | I42: 43.69 | J42: 14.84257222 | L42: 1102.6384 | M42: 34.083639 | N42: 41.1335274 | O42: 40.9885528 | P42: 91876.574 | Q42: 53.138 | R42: 25.52127056 | S42: 1.719464132 | T42: 1.216250858
B43: BQTerrace | C43: 22 | D43: 32123.0008 | E43: 37.4193 | F43: 42.5078 | G43: 44.7332 | H43: 223252.77 | I43: 126.51 | J43: 62.01465833 | L43: 32123.0008 | M43: 37.41926183 | N43: 42.50783683 | O43: 44.733143 | P43: 251875.875 | Q43: 145.453 | R43: 69.96552083 | S43: 1.128209406 | T43: 1.149735199 | V43: =bdrate($D43:$D46,E43:E46,$L43:$L46,M43:M46) -> 1.843943943e-05 | W43: =bdrate($D43:$D46,F43:F46,$L43:$L46,N43:N46) -> -1.137290525e-05 | X43: =bdrate($D43:$D46,G43:G46,$L43:$L46,O43:O46) -> 2.749529203e-05 | Y43: =bdrateOld($D43:$D46,E43:E46,$L43:$L46,M43:M46) -> 1.91177684e-05 | Z43: =bdrateOld($D43:$D46,F43:F46,$L43:$L46,N43:N46) -> -1.179283808e-05 | AA43: =bdrateOld($D43:$D46,G43:G46,$L43:$L46,O43:O46) -> 2.757918324e-05
C44: 27 | D44: 5543.2336 | E44: 35.4626 | F44: 41.4708 | G44: 43.8078 | H44: 88893.17 | I44: 61.53 | J44: 24.69254722 | L44: 5543.2336 | M44: 35.46256233 | N44: 41.47077383 | O44: 43.80776867 | P44: 123315.378 | Q44: 75.532 | R44: 34.25427167 | S44: 1.38723119 | T44: 1.22756379
C45: 32 | D45: 1737.6344 | E45: 34.1774 | F45: 40.3929 | G45: 42.8926 | H45: 51495.97 | I45: 45.11 | J45: 14.30443611 | L45: 1737.6344 | M45: 34.1774125 | N45: 40.392947 | O45: 42.892617 | P45: 84132.172 | Q45: 57.278 | R45: 23.37004778 | S45: 1.633762254 | T45: 1.269740634
C46: 37 | D46: 775.6672 | E46: 32.641 | F46: 39.2802 | G46: 41.9878 | H46: 32421.12 | I46: 37.75 | J46: 9.005866667 | L46: 775.6672 | M46: 32.64096767 | N46: 39.28018933 | O46: 41.9878045 | P46: 57358.572 | Q46: 49.942 | R46: 15.93293667 | S46: 1.769173058 | T46: 1.322966887
A47: Class C | B47: BasketballDrill | C47: 22 | D47: 2854.98 | E47: 41.3086 | F47: 43.7641 | G47: 44.5629 | H47: 37051.57 | I47: 15.11 | J47: 10.29210278 | L47: 2854.98 | M47: 41.308642 | N47: 43.7641208 | O47: 44.5628622 | P47: 45699.899 | Q47: 15.611 | R47: 12.69441639 | S47: =P47/H47 -> 1.233413294 | T47: 1.03315685 | V47: =bdrate($D47:$D50,E47:E50,$L47:$L50,M47:M50) -> 2.475485678e-06 | W47: =bdrate($D47:$D50,F47:F50,$L47:$L50,N47:N50) -> 1.450414673e-06 | X47: =bdrate($D47:$D50,G47:G50,$L47:$L50,O47:O50) -> -6.55084934e-07 | Y47: =bdrateOld($D47:$D50,E47:E50,$L47:$L50,M47:M50) -> 2.662851451e-06 | Z47: =bdrateOld($D47:$D50,F47:F50,$L47:$L50,N47:N50) -> 2.296123259e-06 | AA47: =bdrateOld($D47:$D50,G47:G50,$L47:$L50,O47:O50) -> -1.839854614e-06
A48: WVGA | C48: 27 | D48: 1310.2064 | E48: 38.1098 | F48: 41.5648 | G48: 41.9758 | H48: 26049.96 | I48: 11.09 | J48: 7.2361 | L48: 1310.2064 | M48: 38.1097748 | N48: 41.56478 | O48: 41.9758204 | P48: 35575.557 | Q48: 12.067 | R48: 9.882099167 | S48: 1.365666473 | T48: 1.088097385
C49: 32 | D49: 661.244 | E49: 35.2077 | F49: 39.8475 | G49: 40.0824 | H49: 18559.35 | I49: 8.81 | J49: 5.155375 | L49: 661.244 | M49: 35.2076936 | N49: 39.8475096 | O49: 40.0823892 | P49: 28380.927 | Q49: 9.851 | R49: 7.883590833 | S49: 1.529198329 | T49: 1.11816118
C50: 37 | D50: 339.8272 | E50: 32.6048 | F50: 38.3332 | G50: 38.3948 | H50: 12172.4 | I50: 7.44 | J50: 3.381222222 | L50: 339.8272 | M50: 32.6047676 | N50: 38.333189 | O50: 38.3948132 | P50: 20253.258 | Q50: 8.425 | R50: 5.625905 | S50: 1.663867274 | T50: 1.132392473
B51: BQMall | C51: 22 | D51: 2895.0088 | E51: 40.5106 | F51: 44.1118 | G51: 45.8793 | H51: 33377.17 | I51: 16.23 | J51: 9.271436111 | L51: 2895.0088 | M51: 40.51056783 | N51: 44.11183817 | O51: 45.87929567 | P51: 41473.401 | Q51: 17.095 | R51: 11.52038917 | S51: 1.242567929 | T51: 1.053296365 | V51: =bdrate($D51:$D54,E51:E54,$L51:$L54,M51:M54) -> 3.9387829e-06 | W51: =bdrate($D51:$D54,F51:F54,$L51:$L54,N51:N54) -> 1.73963033e-06 | X51: =bdrate($D51:$D54,G51:G54,$L51:$L54,O51:O54) -> -5.705323479e-06 | Y51: =bdrateOld($D51:$D54,E51:E54,$L51:$L54,M51:M54) -> 3.971774579e-06 | Z51: =bdrateOld($D51:$D54,F51:F54,$L51:$L54,N51:N54) -> 1.097167962e-06 | AA51: =bdrateOld($D51:$D54,G51:G54,$L51:$L54,O51:O54) -> -5.739812756e-06
C52: 27 | D52: 1292.5984 | E52: 37.9907 | F52: 42.3492 | G52: 43.7264 | H52: 23513.22 | I52: 12.5 | J52: 6.53145 | L52: 1292.5984 | M52: 37.99069017 | N52: 42.3492055 | O52: 43.72640817 | P52: 31262.035 | Q52: 13.113 | R52: 8.683898611 | S52: 1.329551418 | T52: 1.04904
C53: 32 | D53: 650.5144 | E53: 35.338 | F53: 40.847 | G53: 41.9718 | H53: 16145.77 | I53: 9.47 | J53: 4.484936111 | L53: 650.5144 | M53: 35.33797967 | N53: 40.84696067 | O53: 41.9718215 | P53: 24810.576 | Q53: 10.8 | R53: 6.891826667 | S53: 1.536661057 | T53: 1.140443506
C54: 37 | D54: 334.4592 | E54: 32.5979 | F54: 39.4344 | G54: 40.3998 | H54: 11207.49 | I54: 8.03 | J54: 3.113191667 | L54: 334.4592 | M54: 32.59791267 | N54: 39.4344155 | O54: 40.39983933 | P54: 18626.386 | Q54: 9.227 | R54: 5.173996111 | S54: 1.661958744 | T54: 1.149066002
B55: PartyScene | C55: 22 | D55: 5576.804 | E55: 38.7566 | F55: 42.2409 | G55: 43.5011 | H55: 35560.63 | I55: 19.31 | J55: 9.877952778 | L55: 5576.804 | M55: 38.7566066 | N55: 42.2408672 | O55: 43.5011114 | P55: 44718.844 | Q55: 20.259 | R55: 12.42190111 | S55: 1.257538013 | T55: 1.04914552 | V55: =bdrate($D55:$D58,E55:E58,$L55:$L58,M55:M58) -> 2.181713985e-06 | W55: =bdrate($D55:$D58,F55:F58,$L55:$L58,N55:N58) -> -2.400110117e-06 | X55: =bdrate($D55:$D58,G55:G58,$L55:$L58,O55:O58) -> 3.900160242e-06 | Y55: =bdrateOld($D55:$D58,E55:E58,$L55:$L58,M55:M58) -> 2.175966758e-06 | Z55: =bdrateOld($D55:$D58,F55:F58,$L55:$L58,N55:N58) -> -4.350937207e-07 | AA55: =bdrateOld($D55:$D58,G55:G58,$L55:$L58,O55:O58) -> 2.280170317e-06
C56: 27 | D56: 2460.6376 | E56: 35.3069 | F56: 39.8257 | G56: 40.9564 | H56: 23956.81 | I56: 14.51 | J56: 6.654669444 | L56: 2460.6376 | M56: 35.3068778 | N56: 39.8257012 | O56: 40.9564152 | P56: 33418.349 | Q56: 15.173 | R56: 9.282874722 | S56: 1.394941522 | T56: 1.045692626
C57: 32 | D57: 1189.9136 | E57: 32.2712 | F57: 38.0933 | G57: 39.0548 | H57: 17324.87 | I57: 11.15 | J57: 4.812463889 | L57: 1189.9136 | M57: 32.271192 | N57: 38.0933398 | O57: 39.0547504 | P57: 27225.3 | Q57: 12.269 | R57: 7.562583333 | S57: 1.571457679 | T57: 1.100358744
C58: 37 | D58: 557.564 | E58: 29.4199 | F58: 36.6001 | G58: 37.3806 | H58: 12058.02 | I58: 8.78 | J58: 3.34945 | L58: 557.564 | M58: 29.419913 | N58: 36.6000722 | O58: 37.380588 | P58: 20403.641 | Q58: 10.008 | R58: 5.667678056 | S58: 1.692122007 | T58: 1.139863326
B59: RaceHorses | C59: 22 | D59: 4204.8216 | E59: 39.3837 | F59: 41.6515 | G59: 43.1977 | H59: 30951.96 | I59: 13.36 | J59: 8.597766667 | L59: 4204.8216 | M59: 39.38372567 | N59: 41.65148433 | O59: 43.19773467 | P59: 37960.515 | Q59: 13.953 | R59: 10.5445875 | S59: 1.226433318 | T59: 1.044386228 | V59: =bdrate($D59:$D62,E59:E62,$L59:$L62,M59:M62) -> -7.171216909e-08 | W59: =bdrate($D59:$D62,F59:F62,$L59:$L62,N59:N62) -> -5.164810203e-06 | X59: =bdrate($D59:$D62,G59:G62,$L59:$L62,O59:O62) -> -1.152119806e-05 | Y59: =bdrateOld($D59:$D62,E59:E62,$L59:$L62,M59:M62) -> -3.989633366e-07 | Z59: =bdrateOld($D59:$D62,F59:F62,$L59:$L62,N59:N62) -> -4.234315042e-06 | AA59: =bdrateOld($D59:$D62,G59:G62,$L59:$L62,O59:O62) -> -1.021699656e-05
C60: 27 | D60: 1614.6648 | E60: 35.9896 | F60: 39.5188 | G60: 41.1563 | H60: 20653.24 | I60: 9.29 | J60: 5.737011111 | L60: 1614.6648 | M60: 35.98959 | N60: 39.51879167 | O60: 41.15630867 | P60: 27989.652 | Q60: 10.011 | R60: =P60/3600 -> 7.774903333 | S60: 1.355218455 | T60: 1.077610334
C61: 32 | D61: 771.3344 | E61: 33.3049 | F61: 37.945 | G61: 39.7411 | H61: 14950.97 | I61: 6.96 | J61: 4.153047222 | L61: 771.3344 | M61: 33.30488033 | N61: 37.94504 | O61: 39.74113767 | P61: 22829.876 | Q61: 7.769 | R61: 6.341632222 | S61: 1.526982932 | T61: 1.116235632
C62: 37 | D62: 372.9544 | E62: 30.6786 | F62: 36.488 | G62: 38.3975 | H62: 9988.25 | I62: 5.4 | J62: 2.774513889 | L62: 372.9544 | M62: 30.67866 | N62: 36.488039 | O62: 38.397522 | P62: 16640.88 | Q62: 6.26 | R62: 4.622466667 | S62: 1.666045604 | T62: 1.159259259
A63: Class D | B63: BasketballPass | C63: =C59 -> 22 | D63: 1274.56 | E63: 41.3104 | F63: 44.6831 | G63: 43.8366 | H63: 9542.31 | I63: 4.72 | J63: 2.650641667 | L63: 1274.56 | M63: 41.310384 | N63: 44.6830708 | O63: 43.8365978 | P63: 12101.633 | Q63: 4.82 | R63: 3.361564722 | S63: =P63/H63 -> 1.268207908 | T63: 1.021186441 | V63: =bdrate($D63:$D66,E63:E66,$L63:$L66,M63:M66) -> -1.083597496e-06 | W63: =bdrate($D63:$D66,F63:F66,$L63:$L66,N63:N66) -> -3.719968237e-06 | X63: =bdrate($D63:$D66,G63:G66,$L63:$L66,O63:O66) -> -1.489435066e-06 | Y63: =bdrateOld($D63:$D66,E63:E66,$L63:$L66,M63:M66) -> -8.40660371e-07 | Z63: =bdrateOld($D63:$D66,F63:F66,$L63:$L66,N63:N66) -> -5.080006763e-06 | AA63: =bdrateOld($D63:$D66,G63:G66,$L63:$L66,O63:O66) -> -2.211516479e-06
A64: WQVGA | C64: =C60 -> 27 | D64: 602.7696 | E64: 37.2311 | F64: 42.1841 | G64: 40.8878 | H64: 7219.7 | I64: 3.5 | J64: 2.005472222 | L64: 602.7696 | M64: 37.231097 | N64: 42.1841318 | O64: 40.887807 | P64: 9830.577 | Q64: 3.707 | R64: 2.730715833 | S64: =P64/H64 -> 1.361632339 | T64: 1.059142857
C65: =C61 -> 32 | D65: 304.6784 | E65: 33.9302 | F65: 40.3834 | G65: 38.8973 | H65: 5506.45 | I65: 2.7 | J65: 1.529569444 | L65: 304.6784 | M65: 33.9302234 | N65: 40.383396 | O65: 38.897296 | P65: 8213.072 | Q65: 2.942 | R65: 2.281408889 | S65: =P65/H65 -> 1.491536652 | T65: 1.08962963
C66: =C62 -> 37 | D66: 153.5464 | E66: 31.0086 | F66: 38.7461 | G66: 37.0965 | H66: 3804.46 | I66: 2.17 | J66: 1.056794444 | L66: 153.5464 | M66: 31.0086044 | N66: 38.7461148 | O66: 37.096526 | P66: 6243.336 | Q66: 2.438 | R66: 1.73426 | S66: =P66/H66 -> 1.641057075 | T66: 1.123502304
B67: BQSquare | C67: 22 | D67: 1279.7776 | E67: 38.4537 | F67: 44.0453 | G67: 45.4225 | H67: 7995.6 | I67: 5.07 | J67: 2.221 | L67: 1279.7776 | M67: 38.45375 | N67: 44.04528 | O67: 45.42248017 | P67: 9759.725 | Q67: 5.283 | R67: 2.711034722 | S67: 1.220636975 | T67: 1.042011834 | V67: =bdrate($D67:$D70,E67:E70,$L67:$L70,M67:M70) -> -1.373348656e-06 | W67: =bdrate($D67:$D70,F67:F70,$L67:$L70,N67:N70) -> 1.393402535e-05 | X67: =bdrate($D67:$D70,G67:G70,$L67:$L70,O67:O70) -> 3.872322463e-06 | Y67: =bdrateOld($D67:$D70,E67:E70,$L67:$L70,M67:M70) -> -1.51949321e-06 | Z67: =bdrateOld($D67:$D70,F67:F70,$L67:$L70,N67:N70) -> 1.395325632e-05 | AA67: =bdrateOld($D67:$D70,G67:G70,$L67:$L70,O67:O70) -> 2.784839727e-06
C68: 27 | D68: 467.1808 | E68: 35.245 | F68: 41.8899 | G68: 43.1766 | H68: 4075.93 | I68: 3.52 | J68: 1.132202778 | L68: 467.1808 | M68: 35.24500417 | N68: 41.88986183 | O68: 43.17660683 | P68: 5742.764 | Q68: 3.734 | R68: 1.595212222 | S68: 1.408945688 | T68: 1.060795455
C69: 32 | D69: 212.6592 | E69: 32.5119 | F69: 40.201 | G69: 41.4394 | H69: 2735.34 | I69: 2.74 | J69: 0.7598166667 | L69: 212.6592 | M69: 32.5118765 | N69: 40.20097417 | O69: 41.43937367 | P69: 4377.179 | Q69: 3.04 | R69: 1.215883056 | S69: 1.600232147 | T69: 1.109489051
C70: 37 | D70: 112.1392 | E70: 29.9955 | F70: 38.9733 | G70: 39.9978 | H70: 1866.91 | I70: 2.22 | J70: 0.5185861111 | L70: 112.1392 | M70: 29.995523 | N70: 38.97328867 | O70: 39.99779333 | P70: 3302.179 | Q70: 2.609 | R70: 0.9172719444 | S70: 1.768793889 | T70: 1.175225225
B71: BlowingBubbles | C71: 22 | D71: 1347.632 | E71: 38.5546 | F71: 41.9446 | G71: 43.1015 | H71: 7740.41 | I71: 4.63 | J71: 2.150113889 | L71: 1347.632 | M71: 38.5546638 | N71: 41.944573 | O71: 43.1014856 | P71: 9396.898 | Q71: 4.863 | R71: 2.610249444 | S71: =P71/H71 -> 1.214005201 | T71: 1.050323974 | V71: =bdrate($D71:$D74,E71:E74,$L71:$L74,M71:M74) -> -1.925160102e-07 | W71: =bdrate($D71:$D74,F71:F74,$L71:$L74,N71:N74) -> 6.294600631e-06 | X71: =bdrate($D71:$D74,G71:G74,$L71:$L74,O71:O74) -> -3.052773817e-06 | Y71: =bdrateOld($D71:$D74,E71:E74,$L71:$L74,M71:M74) -> -4.910054865e-07 | Z71: =bdrateOld($D71:$D74,F71:F74,$L71:$L74,N71:N74) -> 5.447105571e-06 | AA71: =bdrateOld($D71:$D74,G71:G74,$L71:$L74,O71:O74) -> -3.877135267e-06
C72: 27 | D72: 599.6056 | E72: 35.2221 | F72: 39.5334 | G72: 40.4488 | H72: 5395.49 | I72: 3.32 | J72: 1.498747222 | L72: 599.6056 | M72: 35.2221182 | N72: 39.5334008 | O72: 40.4488426 | P72: 7231.497 | Q72: 3.608 | R72: 2.008749167 | S72: 1.340285498 | T72: 1.086746988
C73: 32 | D73: 289.804 | E73: 32.2143 | F73: 37.666 | G73: 38.4037 | H73: 3905.91 | I73: 2.51 | J73: 1.084975 | L73: 289.804 | M73: 32.2142576 | N73: 37.6659656 | O73: 38.4036874 | P73: 5808.225 | Q73: 2.843 | R73: 1.613395833 | S73: 1.487035032 | T73: 1.132669323
C74: 37 | D74: 135.572 | E74: 29.3418 | F74: 35.986 | G74: 36.6258 | H74: 2694.62 | I74: 1.87 | J74: 0.7485055556 | L74: 135.572 | M74: 29.3418012 | N74: 35.9859876 | O74: 36.6257796 | P74: 4325.257 | Q74: 2.289 | R74: 1.201460278 | S74: 1.605145438 | T74: 1.224064171
B75: RaceHorses | C75: 22 | D75: 1021.3 | E75: 39.9458 | F75: 42.0486 | G75: 43.1338 | H75: 6704.3 | I75: 3.42 | J75: 1.862305556 | L75: 1021.3 | M75: 39.94580767 | N75: 42.048653 | O75: 43.13382533 | P75: 8277.675 | Q75: 3.61 | R75: 2.299354167 | S75: 1.234681473 | T75: 1.055555556 | V75: =bdrate($D75:$D78,E75:E78,$L75:$L78,M75:M78) -> 4.776081059e-06 | W75: =bdrate($D75:$D78,F75:F78,$L75:$L78,N75:N78) -> 5.06282443e-06 | X75: =bdrate($D75:$D78,G75:G78,$L75:$L78,O75:O78) -> 4.09801866e-06 | Y75: =bdrateOld($D75:$D78,E75:E78,$L75:$L78,M75:M78) -> 4.808160582e-06 | Z75: =bdrateOld($D75:$D78,F75:F78,$L75:$L78,N75:N78) -> 5.027466261e-06 | AA75: =bdrateOld($D75:$D78,G75:G78,$L75:$L78,O75:O78) -> 3.212718622e-06
C76: 27 | D76: 481.008 | E76: 36.0239 | F76: 39.4052 | G76: 40.6141 | H76: 4992.33 | I76: 2.55 | J76: 1.386758333 | L76: 481.008 | M76: 36.02386233 | N76: 39.405184 | O76: 40.61408933 | P76: 6665.923 | Q76: 2.657 | R76: 1.851645278 | S76: 1.335232847 | T76: 1.041960784
C77: 32 | D77: 241.0592 | E77: 32.7532 | F77: 37.5913 | G77: 38.9177 | H77: 3725 | I77: 1.85 | J77: 1.034722222 | L77: 241.0592 | M77: 32.75317733 | N77: 37.59127133 | O77: 38.91766533 | P77: 5469.494 | Q77: 2.09 | R77: 1.519303889 | S77: 1.468320537 | T77: 1.12972973
C78: 37 | D78: 116.7432 | E78: 29.8376 | F78: 36.0792 | G78: 37.2908 | H78: 2686.22 | I78: 1.48 | J78: 0.7461722222 | L78: 116.7432 | M78: 29.837596 | N78: 36.07917167 | O78: 37.29081667 | P78: 4077.924 | Q78: 1.677 | R78: 1.132756667 | S78: 1.518090104 | T78: 1.133108108
A79: ClassE | B79: FourPeople | C79: 22
A80: 720p | C80: 27
C81: 32
C82: 37
B83: Johnny | C83: 22
C84: 27
C85: 32
C86: 37
B87: KristenAndSara | C87: 22
C88: 27
C89: 32
C90: 37
A91: ClassF | B91: BasketballDrillText | C91: 22 | D91: 2952.4608 | E91: 41.4362 | F91: 43.7453 | G91: 44.5238 | H91: 36075.24 | I91: 15.69 | J91: 10.0209 | L91: 2952.4608 | M91: 41.436228 | N91: 43.745337 | O91: 44.5237626 | P91: 43677.282 | Q91: 15.706 | R91: 12.13257833 | S91: =P91/H91 -> 1.210727413 | T91: 1.001019758 | V91: =bdrate($D91:$D94,E91:E94,$L91:$L94,M91:M94) -> -6.370330726e-06 | W91: =bdrate($D91:$D94,F91:F94,$L91:$L94,N91:N94) -> -6.033182511e-06 | X91: =bdrate($D91:$D94,G91:G94,$L91:$L94,O91:O94) -> -5.101622105e-06 | Y91: =bdrateOld($D91:$D94,E91:E94,$L91:$L94,M91:M94) -> -6.576823432e-06 | Z91: =bdrateOld($D91:$D94,F91:F94,$L91:$L94,N91:N94) -> -6.70897084e-06 | AA91: =bdrateOld($D91:$D94,G91:G94,$L91:$L94,O91:O94) -> -5.432949681e-06
C92: 27 | D92: 1388.2176 | E92: 38.1564 | F92: 41.3031 | G92: 41.7243 | H92: 25059.49 | I92: 11.29 | J92: 6.960969444 | L92: 1388.2176 | M92: 38.1564624 | N92: 41.3031272 | O92: 41.7243286 | P92: 34637.853 | Q92: 12.134 | R92: 9.621625833 | S92: 1.382224977 | T92: 1.074756422
C93: 32 | D93: 715.7552 | E93: 35.1746 | F93: 39.3536 | G93: 39.6321 | H93: 17767.97 | I93: 8.77 | J93: 4.935547222 | L93: 715.7552 | M93: 35.1745994 | N93: 39.3535936 | O93: 39.6321226 | P93: 28306.44 | Q93: 9.879 | R93: 7.8629 | S93: 1.593116152 | T93: 1.12645382
C94: 37 | D94: 375.0528 | E94: 32.4491 | F94: 37.6383 | G94: 37.7985 | H94: 11911.85 | I94: 6.93 | J94: 3.308847222 | L94: 375.0528 | M94: 32.4490942 | N94: 37.6383316 | O94: 37.7985166 | P94: 20440.929 | Q94: 8.329 | R94: 5.678035833 | S94: 1.71601632 | T94: 1.201875902
B95: ArenaOfValor | C95: 22 | D95: 11634.1016 | E95: 43.0637 | F95: 45.1596 | G95: 45.7581 | H95: 126715.97 | I95: 75.75 | J95: 35.19888056 | L95: 11634.1016 | M95: 43.06371217 | N95: 45.15955017 | O95: 45.75807467 | P95: 154515.901 | Q95: 93.157 | R95: 42.92108361 | S95: 1.219387746 | T95: 1.22979538 | V95: =bdrate($D95:$D98,E95:E98,$L95:$L98,M95:M98) -> 2.316323207e-06 | W95: =bdrate($D95:$D98,F95:F98,$L95:$L98,N95:N98) -> 6.835627543e-06 | X95: =bdrate($D95:$D98,G95:G98,$L95:$L98,O95:O98) -> 7.255933521e-07 | Y95: =bdrateOld($D95:$D98,E95:E98,$L95:$L98,M95:M98) -> 2.996207839e-06 | Z95: =bdrateOld($D95:$D98,F95:F98,$L95:$L98,N95:N98) -> 8.171655061e-06 | AA95: =bdrateOld($D95:$D98,G95:G98,$L95:$L98,O95:O98) -> 1.072299231e-06
C96: 27 | D96: 4998.4776 | E96: 39.7309 | F96: 42.5691 | G96: 42.9613 | H96: 88756.13 | I96: 54.94 | J96: 24.65448056 | L96: 4998.4776 | M96: 39.730859 | N96: 42.5690595 | O96: 42.96128467 | P96: 117989.317 | Q96: 69.735 | R96: 32.77481028 | S96: 1.329365273 | T96: 1.269293775
C97: 32 | D97: 2448.2472 | E97: 36.8584 | F97: 40.634 | G97: 40.8862 | H97: 67653.08 | I97: 45.94 | J97: 18.79252222 | L97: 2448.2472 | M97: 36.85843367 | N97: 40.63402433 | O97: 40.88621583 | P97: 96910.114 | Q97: 58.478 | R97: 26.91947611 | S97: 1.432456793 | T97: 1.272921202
C98: 37 | D98: 1235.2304 | E98: 34.1456 | F98: 38.828 | G98: 38.9538 | H98: 45494.22 | I98: 38.59 | J98: 12.63728333 | L98: 1235.2304 | M98: 34.14554983 | N98: 38.82797217 | O98: 38.95382317 | P98: 73342.844 | Q98: 51.456 | R98: 20.37301222 | S98: 1.612135432 | T98: 1.333402436
B99: SlideEditing | C99: 22 | D99: 1275.2224 | E99: 50.0961 | F99: 48.1217 | G99: 48.3184 | H99: 5147.12 | I99: 6.67 | J99: 1.429755556 | L99: 1275.2224 | M99: 50.09606267 | N99: 48.121746 | O99: 48.31837333 | P99: 6934.736 | Q99: 10.481 | R99: 1.926315556 | S99: 1.347304123 | T99: 1.571364318 | V99: =bdrate($D99:$D102,E99:E102,$L99:$L102,M99:M102) -> -4.303514916e-07 | W99: =bdrate($D99:$D102,F99:F102,$L99:$L102,N99:N102) -> -4.614603324e-07 | X99: =bdrate($D99:$D102,G99:G102,$L99:$L102,O99:O102) -> -1.073493667e-06 | Y99: =bdrateOld($D99:$D102,E99:E102,$L99:$L102,M99:M102) -> -4.016029599e-07 | Z99: =bdrateOld($D99:$D102,F99:F102,$L99:$L102,N99:N102) -> -1.047939441e-06 | AA99: =bdrateOld($D99:$D102,G99:G102,$L99:$L102,O99:O102) -> -2.667651398e-06
C100: 27 | D100: 956.352 | E100: 45.7915 | F100: 43.5688 | G100: 44.1902 | H100: 4401.76 | I100: 6.37 | J100: 1.222711111 | L100: 956.352 | M100: 45.791512 | N100: 43.56883333 | O100: 44.190234 | P100: 6282.158 | Q100: 9.924 | R100: 1.745043889 | S100: 1.427192305 | T100: 1.557927786
C101: 32 | D101: 731.9408 | E101: 41.3096 | F101: 40.6643 | G101: 41.6162 | H101: 4045.86 | I101: 6.15 | J101: 1.12385 | L101: 731.9408 | M101: 41.30960967 | N101: 40.66426633 | O101: 41.61617667 | P101: 5947.78 | Q101: 9.398 | R101: 1.652161111 | S101: 1.470090413 | T101: 1.528130081
C102: 37 | D102: 555.972 | E102: 36.4723 | F102: 38.9107 | G102: 40.0527 | H102: 3744.83 | I102: 5.85 | J102: 1.040230556 | L102: 555.972 | M102: 36.47233367 | N102: 38.910669 | O102: 40.052739 | P102: 5711.512 | Q102: 9.061 | R102: 1.586531111 | S102: 1.525172571 | T102: 1.548888889
B103: SlideShow | C103: 22 | D103: 669.4842 | E103: 52.1188 | F103: 55.3937 | G103: 56.4958 | H103: 13658.25 | I103: 14.68 | J103: 3.793958333 | L103: 669.48416 | M103: 52.1188066 | N103: 55.3937202 | O103: 56.4957524 | P103: 16054.361 | Q103: 20.17 | R103: 4.459544722 | S103: 1.175433236 | T103: 1.373978202 | V103: =bdrate($D103:$D106,E103:E106,$L103:$L106,M103:M106) -> 2.388212512e-06 | W103: =bdrate($D103:$D106,F103:F106,$L103:$L106,N103:N106) -> 1.898764696e-06 | X103: =bdrate($D103:$D106,G103:G106,$L103:$L106,O103:O106) -> 7.095733771e-06 | Y103: =bdrateOld($D103:$D106,E103:E106,$L103:$L106,M103:M106) -> 2.463648918e-06 | Z103: =bdrateOld($D103:$D106,F103:F106,$L103:$L106,N103:N106) -> 1.379009013e-06 | AA103: =bdrateOld($D103:$D106,G103:G106,$L103:$L106,O103:O106) -> 6.838358246e-06
C104: 27 | D104: 395.472 | E104: 48.2068 | F104: 52.4925 | G104: 53.6908 | H104: 10606.85 | I104: 13.4 | J104: 2.946347222 | L104: 395.472 | M104: 48.2067576 | N104: 52.492506 | O104: 53.6907854 | P104: 13327.883 | Q104: 18.908 | R104: 3.702189722 | S104: 1.256535446 | T104: 1.411044776
C105: 32 | D105: 252.0934 | E105: 44.669 | F105: 50.0063 | G105: 51.3721 | H105: 8077.46 | I105: 12.7 | J105: 2.243738889 | L105: 252.09344 | M105: 44.6689986 | N105: 50.0062446 | O105: 51.3720496 | P105: 11057.008 | Q105: 17.852 | R105: 3.071391111 | S105: 1.368871898 | T105: 1.405669291
C106: 37 | D106: 164.0454 | E106: 41.1091 | F106: 47.7941 | G106: 49.547 | H106: 6044.91 | I106: 12.22 | J106: 1.679141667 | L106: 164.04544 | M106: 41.1090844 | N106: 47.7941282 | O106: 49.5469532 | P106: 8647.26 | Q106: 17.174 | R106: 2.402016667 | S106: 1.430502687 | T106: 1.405400982
B107: Class A1 | I107: =GEOMEAN(I3:I14) -> 128.4611704 | J107: =GEOMEAN(J3:J14) -> 59.31399696 | Q107: =GEOMEAN(Q3:Q14) -> 160.4476802 | R107: =GEOMEAN(R3:R14) -> 82.74250308 | S107: =GEOMEAN(S3:S14) -> 1.394991188 | T107: =GEOMEAN(T3:T14) -> 1.248997496 | V107: =AVERAGE(V3:V14) -> -7.146973839e-07 | W107: -5.525157154e-06 | X107: 1.539083278e-06 | Y107: -2.833566906e-06 | Z107: -6.744286823e-06 | AA107: 1.245889182e-06
B108: Class A2 | I108: =GEOMEAN(I15:I26) -> 127.6092005 | J108: =GEOMEAN(J15:J26) -> 59.88522763 | Q108: =GEOMEAN(Q15:Q26) -> 165.0143254 | R108: =GEOMEAN(R15:R26) -> 80.40312036 | S108: =GEOMEAN(S15:S26) -> 1.342620268 | T108: =GEOMEAN(T15:T26) -> 1.293122477 | V108: =AVERAGE(V15:V26) -> -3.635616173e-06 | W108: 5.41113571e-06 | X108: -9.779060395e-06 | Y108: -4.312918135e-06 | Z108: 1.682452063e-06 | AA108: -9.876133497e-06
B109: Class B | I109: =GEOMEAN(I27:I46) -> 57.07692158 | J109: =GEOMEAN(J27:J46) -> 26.14374006 | Q109: =GEOMEAN(Q27:Q46) -> 69.88596104 | R109: =GEOMEAN(R27:R46) -> 37.80827251 | S109: =GEOMEAN(S27:S46) -> 1.446169233 | T109: 1.224417139 | V109: =AVERAGE(V27:V46) -> 4.092340784e-06 | W109: =AVERAGE(W27:W46) -> -2.152802734e-06 | X109: 9.015526536e-06 | Y109: 3.891793938e-06 | Z109: -1.293314653e-06 | AA109: 9.72504113e-06
B110: Class C | I110: =GEOMEAN(I47:I62) -> 10.49554988 | J110: =GEOMEAN(J47:J62) -> 5.479788638 | Q110: =GEOMEAN(Q47:Q62) -> 11.46843438 | R110: =GEOMEAN(R47:R62) -> 7.911869781 | S110: =GEOMEAN(S47:S62) -> 1.443827546 | T110: 1.092694952 | V110: =AVERAGE(V47:V62) -> 2.131067599e-06 | W110: =AVERAGE(W47:W62) -> -1.093718829e-06 | X110: -3.495361557e-06 | Y110: 2.102907363e-06 | Z110: -3.190293853e-07 | AA110: -3.879123404e-06
B111: Class D | I111: =GEOMEAN(I63:I78) -> 2.841892295 | J111: =GEOMEAN(J63:J78) -> 1.267587845 | Q111: =GEOMEAN(Q63:Q78) -> 3.110964165 | R111: =GEOMEAN(R63:R78) -> 1.808079875 | S111: =GEOMEAN(S63:S78) -> 1.426394141 | T111: 1.09468053 | V111: =AVERAGE(V63:V78) -> 5.316547242e-07 | W111: =AVERAGE(W63:W78) -> 5.392870543e-06 | X111: 8.570330602e-07 | Y111: 4.892503785e-07 | Z111: 4.836955349e-06 | AA111: -2.277334929e-08
B112: Class E
B113: Class F | I113: =GEOMEAN(I91:I106) -> 14.47310791 | J113: =GEOMEAN(J91:J106) -> 4.406507191 | Q113: =GEOMEAN(Q91:Q106) -> 19.11415358 | R113: =GEOMEAN(R91:R106) -> 6.161523964 | S113: =GEOMEAN(S91:S106) -> 1.398278432 | T113: 1.320666833 | V113: =AVERAGE(V91:V106) -> -5.240366247e-07 | W113: =AVERAGE(W91:W106) -> 5.599373488e-07 | X113: 4.115528378e-07 | Y113: -3.796424087e-07 | Z113: 4.484384484e-07 | AA113: -4.748590063e-08
B114: All | I114: =GEOMEAN(I3:I62,I79:I90) -> 50.19791423 | J114: =GEOMEAN(J3:J62,J79:J90) -> 23.96376029 | Q114: =GEOMEAN(Q3:Q62,Q79:Q90) -> 60.52044339 | R114: =GEOMEAN(R3:R62,R79:R90) -> 33.88470362 | S114: =GEOMEAN(S3:S62,S79:S90) -> 1.413997771 | T114: 1.205636615 | V114: =AVERAGE(V3:V62,V79:V90) -> 1.062335576e-06 | W114: =AVERAGE(W3:W62,W79:W90) -> -1.032063554e-06 | X114: 4.250836732e-07 | Y114: 4.287429346e-07 | Z114: -1.528546339e-06 | AA114: 4.81198606e-07
B115: Time geomean | I115: =GEOMEAN(I3:I106) -> 24.53962633 | J115: =GEOMEAN(J3:J106) -> 10.70620171 | Q115: =GEOMEAN(Q3:Q106) -> 29.55801718 | R115: =GEOMEAN(R3:R106) -> 15.13209504
B116: Time ratio | Q116: =Q115/I115 -> 1.204501519 | R116: =R115/J115 -> 1.413395287
B117: Time sum (hours)

Sheet LDB-10
D1: Reference | L1: Tested | V1: BD-rate (piecewise cubic) | Y1: BD-rate (cubic)
C2: QPISlice | D2: kbps | E2: Y psnr | F2: U psnr | G2: V psnr | H2: Enc T [s] | I2: Dec T [s] | J2: Enc T [h] | L2: kbps | M2: Y psnr | N2: U psnr | O2: V psnr | P2: Enc T [s] | Q2: Dec T [s] | R2: Enc T [h] | S2: Enc | T2: Dec | V2: Y | W2: U | X2: V | Y2: Y | Z2: U | AA2: V
A3: Class A1 | B3: Tango2 | C3: 22
A4: 4K | C4: 27
C5: 32
C6: 37
B7: FoodMarket4 | C7: 22
C8: 27
C9: 32
C10: 37
B11: Campfire | C11: 22
C12: 27
C13: 32
C14: 37
A15: Class A2 | B15: CatRobot1 | C15: 22
A16: 4K | C16: 27
C17: 32
C18: 37
B19: DaylightRoad2 | C19: 22
C20: 27
C21: 32
C22: 37
B23: ParkRunning3 | C23: 22
C24: 27
C25: 32
C26: 37
A27: Class B | B27: MarketPlace | C27: 22 | D27: 17649.36 | E27: 41.0384 | F27: 44.0957 | G27: 44.8312 | H27: 286806.173 | I27: 105.403 | J27: =H27/3600 -> 79.66838139 | L27: =Test!B233 -> 0 | M27: =Test!C233 -> 0 | N27: =Test!D233 -> 0 | O27: =Test!E233 -> 0 | P27: =Test!F233 -> 0 | Q27: =Test!G233 -> 0 | R27: =P27/3600 -> 0 | S27: =P27/H27 -> 0 | T27: 0 | V27: =bdrate($D27:$D30,E27:E30,$L27:$L30,M27:M30) ->  | W27: =bdrate($D27:$D30,F27:F30,$L27:$L30,N27:N30) ->  | X27: =bdrate($D27:$D30,G27:G30,$L27:$L30,O27:O30) ->  | Y27: =bdrateOld($D27:$D30,E27:E30,$L27:$L30,M27:M30) ->  | Z27: =bdrateOld($D27:$D30,F27:F30,$L27:$L30,N27:N30) ->  | AA27: =bdrateOld($D27:$D30,G27:G30,$L27:$L30,O27:O30) -> 
A28: 1080p | C28: 27 | D28: 6531.428 | E28: 38.6076 | F28: 42.207 | G28: 43.1708 | H28: 163919.472 | I28: 81.541 | J28: =H28/3600 -> 45.53318667 | L28: =Test!B234 -> 0 | M28: =Test!C234 -> 0 | N28: =Test!D234 -> 0 | O28: =Test!E234 -> 0 | P28: =Test!F234 -> 0 | Q28: =Test!G234 -> 0 | R28: 0 | S28: 0 | T28: 0
C29: 32 | D29: 2914.7264 | E29: 36.2005 | F29: 40.7957 | G29: 41.8113 | H29: 117712.8 | I29: 66.838 | J29: 32.698 | L29: =Test!B235 -> 0 | M29: =Test!C235 -> 0 | N29: =Test!D235 -> 0 | O29: =Test!E235 -> 0 | P29: =Test!F235 -> 0 | Q29: =Test!G235 -> 0 | R29: 0 | S29: 0 | T29: 0
C30: 37 | D30: 1322.316 | E30: 33.7627 | F30: 39.7944 | G30: 40.7634 | H30: 82566.32 | I30: 55.4 | J30: 22.93508889 | L30: =Test!B236 -> 0 | M30: =Test!C236 -> 0 | N30: =Test!D236 -> 0 | O30: =Test!E236 -> 0 | P30: =Test!F236 -> 0 | Q30: =Test!G236 -> 0 | R30: 0 | S30: 0 | T30: 0
B31: RitualDance | C31: 22 | D31: 10818.54 | E31: 44.3344 | F31: 47.1202 | G31: 47.8662 | H31: 236115.728 | I31: 97.005 | J31: 65.58770222 | L31: =Test!B237 -> 0 | M31: =Test!C237 -> 0 | N31: =Test!D237 -> 0 | O31: =Test!E237 -> 0 | P31: =Test!F237 -> 0 | Q31: =Test!G237 -> 0 | R31: 0 | S31: 0 | T31: 0 | V31: =bdrate($D31:$D34,E31:E34,$L31:$L34,M31:M34) ->  | W31: =bdrate($D31:$D34,F31:F34,$L31:$L34,N31:N34) ->  | X31: =bdrate($D31:$D34,G31:G34,$L31:$L34,O31:O34) ->  | Y31: =bdrateOld($D31:$D34,E31:E34,$L31:$L34,M31:M34) ->  | Z31: =bdrateOld($D31:$D34,F31:F34,$L31:$L34,N31:N34) ->  | AA31: =bdrateOld($D31:$D34,G31:G34,$L31:$L34,O31:O34) -> 
C32: 27 | D32: 5412.8808 | E32: 41.0539 | F32: 44.7541 | G32: 45.3076 | H32: 167203.584 | I32: 81.676 | J32: 46.44544 | L32: =Test!B238 -> 0 | M32: =Test!C238 -> 0 | N32: =Test!D238 -> 0 | O32: =Test!E238 -> 0 | P32: =Test!F238 -> 0 | Q32: =Test!G238 -> 0 | R32: 0 | S32: 0 | T32: 0
C33: 32 | D33: 2875.8248 | E33: 37.9243 | F33: 43.1965 | G33: 43.5901 | H33: 129944.905 | I33: 69.484 | J33: 36.09580694 | L33: =Test!B239 -> 0 | M33: =Test!C239 -> 0 | N33: =Test!D239 -> 0 | O33: =Test!E239 -> 0 | P33: =Test!F239 -> 0 | Q33: =Test!G239 -> 0 | R33: 0 | S33: 0 | T33: 0
C34: 37 | D34: 1566.736 | E34: 35.0844 | F34: 42.1017 | G34: 42.2822 | H34: 95149.343 | I34: 59.564 | J34: 26.43037306 | L34: =Test!B240 -> 0 | M34: =Test!C240 -> 0 | N34: =Test!D240 -> 0 | O34: =Test!E240 -> 0 | P34: =Test!F240 -> 0 | Q34: =Test!G240 -> 0 | R34: 0 | S34: 0 | T34: 0
B35: Cactus | C35: 22 | D35: 18435.624 | E35: 38.94 | F35: 40.4242 | G35: 43.6453 | H35: 243667.697 | I35: 90.882 | J35: 67.68547139 | L35: =Test!B241 -> 0 | M35: =Test!C241 -> 0 | N35: =Test!D241 -> 0 | O35: =Test!E241 -> 0 | P35: =Test!F241 -> 0 | Q35: =Test!G241 -> 0 | R35: 0 | S35: 0 | T35: 0 | V35: =bdrate($D35:$D38,E35:E38,$L35:$L38,M35:M38) ->  | W35: =bdrate($D35:$D38,F35:F38,$L35:$L38,N35:N38) ->  | X35: =bdrate($D35:$D38,G35:G38,$L35:$L38,O35:O38) ->  | Y35: =bdrateOld($D35:$D38,E35:E38,$L35:$L38,M35:M38) ->  | Z35: =bdrateOld($D35:$D38,F35:F38,$L35:$L38,N35:N38) ->  | AA35: =bdrateOld($D35:$D38,G35:G38,$L35:$L38,O35:O38) -> 
C36: 27 | D36: 4607.7696 | E36: 36.943 | F36: 39.1326 | G36: 41.8204 | H36: 143890.233 | I36: 60.075 | J36: 39.96950917 | L36: =Test!B242 -> 0 | M36: =Test!C242 -> 0 | N36: =Test!D242 -> 0 | O36: =Test!E242 -> 0 | P36: =Test!F242 -> 0 | Q36: =Test!G242 -> 0 | R36: 0 | S36: 0 | T36: 0
C37: 32 | D37: 2075.7456 | E37: 34.9016 | F37: 38.2859 | G37: 40.3246 | H37: 106047.552 | I37: 48.809 | J37: 29.45765333 | L37: =Test!B243 -> 0 | M37: =Test!C243 -> 0 | N37: =Test!D243 -> 0 | O37: =Test!E243 -> 0 | P37: =Test!F243 -> 0 | Q37: =Test!G243 -> 0 | R37: 0 | S37: 0 | T37: 0
C38: 37 | D38: 1020.9432 | E38: 32.6881 | F38: 37.5416 | G38: 39.1341 | H38: 77368.584 | I38: 42.445 | J38: 21.49127333 | L38: =Test!B244 -> 0 | M38: =Test!C244 -> 0 | N38: =Test!D244 -> 0 | O38: =Test!E244 -> 0 | P38: =Test!F244 -> 0 | Q38: =Test!G244 -> 0 | R38: 0 | S38: 0 | T38: 0
B39: BasketballDrive | C39: 22 | D39: 17189.7752 | E39: 39.6769 | F39: 44.1128 | G39: 45.5878 | H39: 288679.24 | I39: 94.785 | J39: 80.18867778 | L39: =Test!B245 -> 0 | M39: =Test!C245 -> 0 | N39: =Test!D245 -> 0 | O39: =Test!E245 -> 0 | P39: =Test!F245 -> 0 | Q39: =Test!G245 -> 0 | R39: 0 | S39: 0 | T39: 0 | V39: =bdrate($D39:$D42,E39:E42,$L39:$L42,M39:M42) ->  | W39: =bdrate($D39:$D42,F39:F42,$L39:$L42,N39:N42) ->  | X39: =bdrate($D39:$D42,G39:G42,$L39:$L42,O39:O42) ->  | Y39: =bdrateOld($D39:$D42,E39:E42,$L39:$L42,M39:M42) ->  | Z39: =bdrateOld($D39:$D42,F39:F42,$L39:$L42,N39:N42) ->  | AA39: =bdrateOld($D39:$D42,G39:G42,$L39:$L42,O39:O42) -> 
C40: 27 | D40: 5487.4448 | E40: 37.7649 | F40: 42.7975 | G40: 43.515 | H40: 180810.254 | I40: 70.567 | J40: 50.22507056 | L40: =Test!B246 -> 0 | M40: =Test!C246 -> 0 | N40: =Test!D246 -> 0 | O40: =Test!E246 -> 0 | P40: =Test!F246 -> 0 | Q40: =Test!G246 -> 0 | R40: 0 | S40: 0 | T40: 0
C41: 32 | D41: 2605.9904 | E41: 35.9152 | F41: 41.6707 | G41: 41.9338 | H41: 125476.924 | I41: 59.405 | J41: 34.85470111 | L41: =Test!B247 -> 0 | M41: =Test!C247 -> 0 | N41: =Test!D247 -> 0 | O41: =Test!E247 -> 0 | P41: =Test!F247 -> 0 | Q41: =Test!G247 -> 0 | R41: 0 | S41: 0 | T41: 0
C42: 37 | D42: 1359.5944 | E42: 33.9395 | F42: 40.7083 | G42: 40.5379 | H42: 87796.244 | I42: 52.203 | J42: 24.38784556 | L42: =Test!B248 -> 0 | M42: =Test!C248 -> 0 | N42: =Test!D248 -> 0 | O42: =Test!E248 -> 0 | P42: =Test!F248 -> 0 | Q42: =Test!G248 -> 0 | R42: 0 | S42: 0 | T42: 0
B43: BQTerrace | C43: 22 | D43: 49842.4568 | E43: 38.4479 | F43: 42.241 | G43: 44.3088 | H43: 266540.44 | I43: 165.123 | J43: 74.03901111 | L43: =Test!B249 -> 0 | M43: =Test!C249 -> 0 | N43: =Test!D249 -> 0 | O43: =Test!E249 -> 0 | P43: =Test!F249 -> 0 | Q43: =Test!G249 -> 0 | R43: 0 | S43: 0 | T43: 0 | V43: =bdrate($D43:$D46,E43:E46,$L43:$L46,M43:M46) ->  | W43: =bdrate($D43:$D46,F43:F46,$L43:$L46,N43:N46) ->  | X43: =bdrate($D43:$D46,G43:G46,$L43:$L46,O43:O46) ->  | Y43: =bdrateOld($D43:$D46,E43:E46,$L43:$L46,M43:M46) ->  | Z43: =bdrateOld($D43:$D46,F43:F46,$L43:$L46,N43:N46) ->  | AA43: =bdrateOld($D43:$D46,G43:G46,$L43:$L46,O43:O46) -> 
C44: 27 | D44: 6631.4728 | E44: 35.5821 | F44: 40.8506 | G44: 43.167 | H44: 134964.856 | I44: 76.871 | J44: 37.49023778 | L44: =Test!B250 -> 0 | M44: =Test!C250 -> 0 | N44: =Test!D250 -> 0 | O44: =Test!E250 -> 0 | P44: =Test!F250 -> 0 | Q44: =Test!G250 -> 0 | R44: 0 | S44: 0 | T44: 0
C45: 32 | D45: 1694.4064 | E45: 33.7896 | F45: 39.6431 | G45: 42.2615 | H45: 86118.898 | I45: 53.748 | J45: 23.92191611 | L45: =Test!B251 -> 0 | M45: =Test!C251 -> 0 | N45: =Test!D251 -> 0 | O45: =Test!E251 -> 0 | P45: =Test!F251 -> 0 | Q45: =Test!G251 -> 0 | R45: 0 | S45: 0 | T45: 0
C46: 37 | D46: 657.4936 | E46: 31.7355 | F46: 38.7465 | G46: 41.509 | H46: 53653.925 | I46: 43.385 | J46: 14.90386806 | L46: =Test!B252 -> 0 | M46: =Test!C252 -> 0 | N46: =Test!D252 -> 0 | O46: =Test!E252 -> 0 | P46: =Test!F252 -> 0 | Q46: =Test!G252 -> 0 | R46: 0 | S46: 0 | T46: 0
A47: Class C | B47: BasketballDrill | C47: 22 | D47: 3109.7464 | E47: 40.6047 | F47: 43.4014 | G47: 44.1509 | H47: 50702.827 | I47: 14.717 | J47: 14.08411861 | L47: =Test!B253 -> 0 | M47: =Test!C253 -> 0 | N47: =Test!D253 -> 0 | O47: =Test!E253 -> 0 | P47: =Test!F253 -> 0 | Q47: =Test!G253 -> 0 | R47: 0 | S47: =P47/H47 -> 0 | T47: 0 | V47: =bdrate($D47:$D50,E47:E50,$L47:$L50,M47:M50) ->  | W47: =bdrate($D47:$D50,F47:F50,$L47:$L50,N47:N50) ->  | X47: =bdrate($D47:$D50,G47:G50,$L47:$L50,O47:O50) ->  | Y47: =bdrateOld($D47:$D50,E47:E50,$L47:$L50,M47:M50) ->  | Z47: =bdrateOld($D47:$D50,F47:F50,$L47:$L50,N47:N50) ->  | AA47: =bdrateOld($D47:$D50,G47:G50,$L47:$L50,O47:O50) -> 
A48: WVGA | C48: 27 | D48: 1420.9936 | E48: 37.3516 | F48: 40.9358 | G48: 41.429 | H48: 40688.516 | I48: 11.5 | J48: 11.30236556 | L48: =Test!B254 -> 0 | M48: =Test!C254 -> 0 | N48: =Test!D254 -> 0 | O48: =Test!E254 -> 0 | P48: =Test!F254 -> 0 | Q48: =Test!G254 -> 0 | R48: 0 | S48: 0 | T48: 0
C49: 32 | D49: 707.3968 | E49: 34.6185 | F49: 39.1447 | G49: 39.5161 | H49: 31032.615 | I49: 9.333 | J49: 8.620170833 | L49: =Test!B255 -> 0 | M49: =Test!C255 -> 0 | N49: =Test!D255 -> 0 | O49: =Test!E255 -> 0 | P49: =Test!F255 -> 0 | Q49: =Test!G255 -> 0 | R49: 0 | S49: 0 | T49: 0
C50: 37 | D50: 373.6976 | E50: 32.2372 | F50: 37.5972 | G50: 37.8177 | H50: 23445.387 | I50: 7.927 | J50: 6.5126075 | L50: =Test!B256 -> 0 | M50: =Test!C256 -> 0 | N50: =Test!D256 -> 0 | O50: =Test!E256 -> 0 | P50: =Test!F256 -> 0 | Q50: =Test!G256 -> 0 | R50: 0 | S50: 0 | T50: 0
B51: BQMall | C51: 22 | D51: 3586.56 | E51: 40.4717 | F51: 43.5509 | G51: 45.0425 | H51: 46866.415 | I51: 18.166 | J51: 13.01844861 | L51: =Test!B257 -> 0 | M51: =Test!C257 -> 0 | N51: =Test!D257 -> 0 | O51: =Test!E257 -> 0 | P51: =Test!F257 -> 0 | Q51: =Test!G257 -> 0 | R51: 0 | S51: 0 | T51: 0 | V51: =bdrate($D51:$D54,E51:E54,$L51:$L54,M51:M54) ->  | W51: =bdrate($D51:$D54,F51:F54,$L51:$L54,N51:N54) ->  | X51: =bdrate($D51:$D54,G51:G54,$L51:$L54,O51:O54) ->  | Y51: =bdrateOld($D51:$D54,E51:E54,$L51:$L54,M51:M54) ->  | Z51: =bdrateOld($D51:$D54,F51:F54,$L51:$L54,N51:N54) ->  | AA51: =bdrateOld($D51:$D54,G51:G54,$L51:$L54,O51:O54) -> 
C52: 27 | D52: 1565.7944 | E52: 37.5481 | F52: 41.4648 | G52: 42.6433 | H52: 35243.237 | I52: 13.284 | J52: 9.789788056 | L52: =Test!B258 -> 0 | M52: =Test!C258 -> 0 | N52: =Test!D258 -> 0 | O52: =Test!E258 -> 0 | P52: =Test!F258 -> 0 | Q52: =Test!G258 -> 0 | R52: 0 | S52: 0 | T52: 0
C53: 32 | D53: 771.2544 | E53: 34.6279 | F53: 39.8309 | G53: 40.8472 | H53: 28578.876 | I53: 10.379 | J53: 7.938576667 | L53: =Test!B259 -> 0 | M53: =Test!C259 -> 0 | N53: =Test!D259 -> 0 | O53: =Test!E259 -> 0 | P53: =Test!F259 -> 0 | Q53: =Test!G259 -> 0 | R53: 0 | S53: 0 | T53: 0
C54: 37 | D54: 394.1656 | E54: 31.778 | F54: 38.5577 | G54: 39.5295 | H54: 21189.148 | I54: 8.802 | J54: 5.885874444 | L54: =Test!B260 -> 0 | M54: =Test!C260 -> 0 | N54: =Test!D260 -> 0 | O54: =Test!E260 -> 0 | P54: =Test!F260 -> 0 | Q54: =Test!G260 -> 0 | R54: 0 | S54: 0 | T54: 0
B55: PartyScene | C55: 22 | D55: 6933.832 | E55: 38.6631 | F55: 41.4966 | G55: 42.4467 | H55: 52999.436 | I55: 22.037 | J55: 14.72206556 | L55: =Test!B261 -> 0 | M55: =Test!C261 -> 0 | N55: =Test!D261 -> 0 | O55: =Test!E261 -> 0 | P55: =Test!F261 -> 0 | Q55: =Test!G261 -> 0 | R55: 0 | S55: 0 | T55: 0 | V55: =bdrate($D55:$D58,E55:E58,$L55:$L58,M55:M58) ->  | W55: =bdrate($D55:$D58,F55:F58,$L55:$L58,N55:N58) ->  | X55: =bdrate($D55:$D58,G55:G58,$L55:$L58,O55:O58) ->  | Y55: =bdrateOld($D55:$D58,E55:E58,$L55:$L58,M55:M58) ->  | Z55: =bdrateOld($D55:$D58,F55:F58,$L55:$L58,N55:N58) ->  | AA55: =bdrateOld($D55:$D58,G55:G58,$L55:$L58,O55:O58) -> 
C56: 27 | D56: 2848.3616 | E56: 34.7039 | F56: 38.6514 | G56: 39.4893 | H56: 39747.868 | I56: 15.814 | J56: 11.04107444 | L56: =Test!B262 -> 0 | M56: =Test!C262 -> 0 | N56: =Test!D262 -> 0 | O56: =Test!E262 -> 0 | P56: =Test!F262 -> 0 | Q56: =Test!G262 -> 0 | R56: 0 | S56: 0 | T56: 0
C57: 32 | D57: 1271.6248 | E57: 31.2455 | F57: 36.753 | G57: 37.5519 | H57: 30258.682 | I57: 12.157 | J57: 8.405189444 | L57: =Test!B263 -> 0 | M57: =Test!C263 -> 0 | N57: =Test!D263 -> 0 | O57: =Test!E263 -> 0 | P57: =Test!F263 -> 0 | Q57: =Test!G263 -> 0 | R57: 0 | S57: 0 | T57: 0
C58: 37 | D58: 554.0912 | E58: 28.0589 | F58: 35.3572 | G58: 36.1519 | H58: 22425.219 | I58: 9.459 | J58: 6.2292275 | L58: =Test!B264 -> 0 | M58: =Test!C264 -> 0 | N58: =Test!D264 -> 0 | O58: =Test!E264 -> 0 | P58: =Test!F264 -> 0 | Q58: =Test!G264 -> 0 | R58: 0 | S58: 0 | T58: 0
B59: RaceHorses | C59: 22 | D59: 5100.9128 | E59: 40.1677 | F59: 41.7579 | G59: 43.0862 | H59: 34722.824 | I59: 13.722 | J59: 9.645228889 | L59: =Test!B265 -> 0 | M59: =Test!C265 -> 0 | N59: =Test!D265 -> 0 | O59: =Test!E265 -> 0 | P59: =Test!F265 -> 0 | Q59: =Test!G265 -> 0 | R59: 0 | S59: 0 | T59: 0 | V59: =bdrate($D59:$D62,E59:E62,$L59:$L62,M59:M62) ->  | W59: =bdrate($D59:$D62,F59:F62,$L59:$L62,N59:N62) ->  | X59: =bdrate($D59:$D62,G59:G62,$L59:$L62,O59:O62) ->  | Y59: =bdrateOld($D59:$D62,E59:E62,$L59:$L62,M59:M62) ->  | Z59: =bdrateOld($D59:$D62,F59:F62,$L59:$L62,N59:N62) ->  | AA59: =bdrateOld($D59:$D62,G59:G62,$L59:$L62,O59:O62) -> 
C60: 27 | D60: 1934.8792 | E60: 36.4023 | F60: 39.0683 | G60: 40.692 | H60: 23168.012 | I60: 9.658 | J60: 6.435558889 | L60: =Test!B266 -> 0 | M60: =Test!C266 -> 0 | N60: =Test!D266 -> 0 | O60: =Test!E266 -> 0 | P60: =Test!F266 -> 0 | Q60: =Test!G266 -> 0 | R60: 0 | S60: 0 | T60: 0
C61: 32 | D61: 876.9152 | E61: 33.3513 | F61: 37.3182 | G61: 39.1796 | H61: 18336.227 | I61: 7.478 | J61: 5.093396389 | L61: =Test!B267 -> 0 | M61: =Test!C267 -> 0 | N61: =Test!D267 -> 0 | O61: =Test!E267 -> 0 | P61: =Test!F267 -> 0 | Q61: =Test!G267 -> 0 | R61: 0 | S61: 0 | T61: 0
C62: 37 | D62: 405.344 | E62: 30.5289 | F62: 36.1069 | G62: 37.9501 | H62: 13888.626 | I62: 5.959 | J62: 3.857951667 | L62: =Test!B268 -> 0 | M62: =Test!C268 -> 0 | N62: =Test!D268 -> 0 | O62: =Test!E268 -> 0 | P62: =Test!F268 -> 0 | Q62: =Test!G268 -> 0 | R62: 0 | S62: 0 | T62: 0
A63: Class D | B63: BasketballPass | C63: =C59 -> 22 | D63: 1493.9008 | E63: 41.3298 | F63: 44.2662 | G63: 43.7128 | H63: 12246.095 | I63: 4.781 | J63: 3.401693056 | L63: =Test!B269 -> 0 | M63: =Test!C269 -> 0 | N63: =Test!D269 -> 0 | O63: =Test!E269 -> 0 | P63: =Test!F269 -> 0 | Q63: =Test!G269 -> 0 | R63: 0 | S63: =P63/H63 -> 0 | T63: 0 | V63: =bdrate($D63:$D66,E63:E66,$L63:$L66,M63:M66) ->  | W63: =bdrate($D63:$D66,F63:F66,$L63:$L66,N63:N66) ->  | X63: =bdrate($D63:$D66,G63:G66,$L63:$L66,O63:O66) ->  | Y63: =bdrateOld($D63:$D66,E63:E66,$L63:$L66,M63:M66) ->  | Z63: =bdrateOld($D63:$D66,F63:F66,$L63:$L66,N63:N66) ->  | AA63: =bdrateOld($D63:$D66,G63:G66,$L63:$L66,O63:O66) -> 
A64: WQVGA | C64: =C60 -> 27 | D64: 723.0816 | E64: 37.2597 | F64: 41.4991 | G64: 40.4501 | H64: 9491.253 | I64: 3.647 | J64: 2.636459167 | L64: =Test!B270 -> 0 | M64: =Test!C270 -> 0 | N64: =Test!D270 -> 0 | O64: =Test!E270 -> 0 | P64: =Test!F270 -> 0 | Q64: =Test!G270 -> 0 | R64: 0 | S64: =P64/H64 -> 0 | T64: 0
C65: =C61 -> 32 | D65: 365.4928 | E65: 33.8441 | F65: 39.6001 | G65: 38.4116 | H65: 8071.94 | I65: 2.798 | J65: 2.242205556 | L65: =Test!B271 -> 0 | M65: =Test!C271 -> 0 | N65: =Test!D271 -> 0 | O65: =Test!E271 -> 0 | P65: =Test!F271 -> 0 | Q65: =Test!G271 -> 0 | R65: 0 | S65: =P65/H65 -> 0 | T65: 0
C66: =C62 -> 37 | D66: 189.7848 | E66: 30.9938 | F66: 38.1647 | G66: 36.7286 | H66: 6496.462 | I66: 2.223 | J66: 1.804572778 | L66: =Test!B272 -> 0 | M66: =Test!C272 -> 0 | N66: =Test!D272 -> 0 | O66: =Test!E272 -> 0 | P66: =Test!F272 -> 0 | Q66: =Test!G272 -> 0 | R66: 0 | S66: =P66/H66 -> 0 | T66: 0
B67: BQSquare | C67: 22 | D67: 1909.4984 | E67: 38.6418 | F67: 42.8709 | G67: 44.0308 | H67: 12503.183 | I67: 6.168 | J67: 3.473106389 | L67: =Test!B273 -> 0 | M67: =Test!C273 -> 0 | N67: =Test!D273 -> 0 | O67: =Test!E273 -> 0 | P67: =Test!F273 -> 0 | Q67: =Test!G273 -> 0 | R67: 0 | S67: 0 | T67: 0 | V67: =bdrate($D67:$D70,E67:E70,$L67:$L70,M67:M70) ->  | W67: =bdrate($D67:$D70,F67:F70,$L67:$L70,N67:N70) ->  | X67: =bdrate($D67:$D70,G67:G70,$L67:$L70,O67:O70) ->  | Y67: =bdrateOld($D67:$D70,E67:E70,$L67:$L70,M67:M70) ->  | Z67: =bdrateOld($D67:$D70,F67:F70,$L67:$L70,N67:N70) ->  | AA67: =bdrateOld($D67:$D70,G67:G70,$L67:$L70,O67:O70) -> 
C68: 27 | D68: 636.1256 | E68: 34.816 | F68: 40.8532 | G68: 42.0218 | H68: 9426.226 | I68: 4.129 | J68: 2.618396111 | L68: =Test!B274 -> 0 | M68: =Test!C274 -> 0 | N68: =Test!D274 -> 0 | O68: =Test!E274 -> 0 | P68: =Test!F274 -> 0 | Q68: =Test!G274 -> 0 | R68: 0 | S68: 0 | T68: 0
C69: 32 | D69: 242.4448 | E69: 31.5865 | F69: 39.4122 | G69: 40.4244 | H69: 6128.109 | I69: 3.316 | J69: 1.7022525 | L69: =Test!B275 -> 0 | M69: =Test!C275 -> 0 | N69: =Test!D275 -> 0 | O69: =Test!E275 -> 0 | P69: =Test!F275 -> 0 | Q69: =Test!G275 -> 0 | R69: 0 | S69: 0 | T69: 0
C70: 37 | D70: 98.7408 | E70: 28.5977 | F70: 38.6271 | G70: 39.4116 | H70: 3910.259 | I70: 2.512 | J70: 1.086183056 | L70: =Test!B276 -> 0 | M70: =Test!C276 -> 0 | N70: =Test!D276 -> 0 | O70: =Test!E276 -> 0 | P70: =Test!F276 -> 0 | Q70: =Test!G276 -> 0 | R70: 0 | S70: 0 | T70: 0
B71: BlowingBubbles | C71: 22 | D71: 1698.7656 | E71: 38.3955 | F71: 41.1191 | G71: 41.8982 | H71: 12216.102 | I71: 5.244 | J71: 3.393361667 | L71: =Test!B277 -> 0 | M71: =Test!C277 -> 0 | N71: =Test!D277 -> 0 | O71: =Test!E277 -> 0 | P71: =Test!F277 -> 0 | Q71: =Test!G277 -> 0 | R71: 0 | S71: =P71/H71 -> 0 | T71: 0 | V71: =bdrate($D71:$D74,E71:E74,$L71:$L74,M71:M74) ->  | W71: =bdrate($D71:$D74,F71:F74,$L71:$L74,N71:N74) ->  | X71: =bdrate($D71:$D74,G71:G74,$L71:$L74,O71:O74) ->  | Y71: =bdrateOld($D71:$D74,E71:E74,$L71:$L74,M71:M74) ->  | Z71: =bdrateOld($D71:$D74,F71:F74,$L71:$L74,N71:N74) ->  | AA71: =bdrateOld($D71:$D74,G71:G74,$L71:$L74,O71:O74) -> 
C72: 27 | D72: 697.58 | E72: 34.5052 | F72: 38.3271 | G72: 38.9297 | H72: 8800.73 | I72: 3.542 | J72: 2.444647222 | L72: =Test!B278 -> 0 | M72: =Test!C278 -> 0 | N72: =Test!D278 -> 0 | O72: =Test!E278 -> 0 | P72: =Test!F278 -> 0 | Q72: =Test!G278 -> 0 | R72: 0 | S72: 0 | T72: 0
C73: 32 | D73: 305.9304 | E73: 31.0691 | F73: 36.3569 | G73: 36.9306 | H73: 6957.985 | I73: 2.567 | J73: 1.932773611 | L73: =Test!B279 -> 0 | M73: =Test!C279 -> 0 | N73: =Test!D279 -> 0 | O73: =Test!E279 -> 0 | P73: =Test!F279 -> 0 | Q73: =Test!G279 -> 0 | R73: 0 | S73: 0 | T73: 0
C74: 37 | D74: 133.3048 | E74: 28.061 | F74: 34.8842 | G74: 35.4678 | H74: 5018.32 | I74: 1.977 | J74: 1.393977778 | L74: =Test!B280 -> 0 | M74: =Test!C280 -> 0 | N74: =Test!D280 -> 0 | O74: =Test!E280 -> 0 | P74: =Test!F280 -> 0 | Q74: =Test!G280 -> 0 | R74: 0 | S74: 0 | T74: 0
B75: RaceHorses | C75: 22 | D75: 1174.0392 | E75: 40.32 | F75: 41.6263 | G75: 42.6927 | H75: 9372.841 | I75: 3.53 | J75: 2.603566944 | L75: =Test!B281 -> 0 | M75: =Test!C281 -> 0 | N75: =Test!D281 -> 0 | O75: =Test!E281 -> 0 | P75: =Test!F281 -> 0 | Q75: =Test!G281 -> 0 | R75: 0 | S75: 0 | T75: 0 | V75: =bdrate($D75:$D78,E75:E78,$L75:$L78,M75:M78) ->  | W75: =bdrate($D75:$D78,F75:F78,$L75:$L78,N75:N78) ->  | X75: =bdrate($D75:$D78,G75:G78,$L75:$L78,O75:O78) ->  | Y75: =bdrateOld($D75:$D78,E75:E78,$L75:$L78,M75:M78) ->  | Z75: =bdrateOld($D75:$D78,F75:F78,$L75:$L78,N75:N78) ->  | AA75: =bdrateOld($D75:$D78,G75:G78,$L75:$L78,O75:O78) -> 
C76: 27 | D76: 545.9928 | E76: 36.0598 | F76: 38.6809 | G76: 39.9312 | H76: 7191.152 | I76: 2.579 | J76: 1.997542222 | L76: =Test!B282 -> 0 | M76: =Test!C282 -> 0 | N76: =Test!D282 -> 0 | O76: =Test!E282 -> 0 | P76: =Test!F282 -> 0 | Q76: =Test!G282 -> 0 | R76: 0 | S76: 0 | T76: 0
C77: 32 | D77: 265.9632 | E77: 32.495 | F77: 36.912 | G77: 38.1078 | H77: 6070.986 | I77: 1.917 | J77: 1.686385 | L77: =Test!B283 -> 0 | M77: =Test!C283 -> 0 | N77: =Test!D283 -> 0 | O77: =Test!E283 -> 0 | P77: =Test!F283 -> 0 | Q77: =Test!G283 -> 0 | R77: 0 | S77: 0 | T77: 0
C78: 37 | D78: 130.2728 | E78: 29.6513 | F78: 35.5457 | G78: 36.6667 | H78: 4298.365 | I78: 1.467 | J78: 1.193990278 | L78: =Test!B284 -> 0 | M78: =Test!C284 -> 0 | N78: =Test!D284 -> 0 | O78: =Test!E284 -> 0 | P78: =Test!F284 -> 0 | Q78: =Test!G284 -> 0 | R78: 0 | S78: 0 | T78: 0
A79: ClassE | B79: FourPeople | C79: 22 | D79: 1964.7992 | E79: 42.9861 | F79: 46.9086 | G79: 48.2379 | H79: 52906.728 | I79: 26.769 | J79: 14.69631333 | L79: =Test!B285 -> 0 | M79: =Test!C285 -> 0 | N79: =Test!D285 -> 0 | O79: =Test!E285 -> 0 | P79: =Test!F285 -> 0 | Q79: =Test!G285 -> 0 | R79: 0 | S79: 0 | T79: 0 | V79: =bdrate($D79:$D82,E79:E82,$L79:$L82,M79:M82) ->  | W79: =bdrate($D79:$D82,F79:F82,$L79:$L82,N79:N82) ->  | X79: =bdrate($D79:$D82,G79:G82,$L79:$L82,O79:O82) ->  | Y79: =bdrateOld($D79:$D82,E79:E82,$L79:$L82,M79:M82) ->  | Z79: =bdrateOld($D79:$D82,F79:F82,$L79:$L82,N79:N82) ->  | AA79: =bdrateOld($D79:$D82,G79:G82,$L79:$L82,O79:O82) -> 
A80: 720p | C80: 27 | D80: 732.3496 | E80: 40.6568 | F80: 44.9228 | G80: 46.2822 | H80: 35282.39 | I80: 19.179 | J80: 9.800663889 | L80: =Test!B286 -> 0 | M80: =Test!C286 -> 0 | N80: =Test!D286 -> 0 | O80: =Test!E286 -> 0 | P80: =Test!F286 -> 0 | Q80: =Test!G286 -> 0 | R80: =P80/3600 -> 0 | S80: 0 | T80: 0
C81: 32 | D81: 364.8152 | E81: 38.0976 | F81: 43.3037 | G81: 44.6243 | H81: 28032.556 | I81: 16.057 | J81: 7.786821111 | L81: =Test!B287 -> 0 | M81: =Test!C287 -> 0 | N81: =Test!D287 -> 0 | O81: =Test!E287 -> 0 | P81: =Test!F287 -> 0 | Q81: =Test!G287 -> 0 | R81: 0 | S81: 0 | T81: 0
C82: 37 | D82: 194.0888 | E82: 35.2657 | F82: 42.0433 | G82: 43.1267 | H82: 20268.775 | I82: 14.028 | J82: 5.630215278 | L82: =Test!B288 -> 0 | M82: =Test!C288 -> 0 | N82: =Test!D288 -> 0 | O82: =Test!E288 -> 0 | P82: =Test!F288 -> 0 | Q82: =Test!G288 -> 0 | R82: 0 | S82: 0 | T82: 0
B83: Johnny | C83: 22 | D83: 1361.1776 | E83: 43.3303 | F83: 48.5359 | G83: 49.1624 | H83: 47688.786 | I83: 23.566 | J83: 13.246885 | L83: =Test!B289 -> 0 | M83: =Test!C289 -> 0 | N83: =Test!D289 -> 0 | O83: =Test!E289 -> 0 | P83: =Test!F289 -> 0 | Q83: =Test!G289 -> 0 | R83: 0 | S83: 0 | T83: 0 | V83: =bdrate($D83:$D86,E83:E86,$L83:$L86,M83:M86) ->  | W83: =bdrate($D83:$D86,F83:F86,$L83:$L86,N83:N86) ->  | X83: =bdrate($D83:$D86,G83:G86,$L83:$L86,O83:O86) ->  | Y83: =bdrateOld($D83:$D86,E83:E86,$L83:$L86,M83:M86) ->  | Z83: =bdrateOld($D83:$D86,F83:F86,$L83:$L86,N83:N86) ->  | AA83: =bdrateOld($D83:$D86,G83:G86,$L83:$L86,O83:O86) -> 
C84: 27 | D84: 342.0912 | E84: 41.5407 | F84: 46.9206 | G84: 47.5626 | H84: 29254.436 | I84: 17.764 | J84: 8.126232222 | L84: =Test!B290 -> 0 | M84: =Test!C290 -> 0 | N84: =Test!D290 -> 0 | O84: =Test!E290 -> 0 | P84: =Test!F290 -> 0 | Q84: =Test!G290 -> 0 | R84: 0 | S84: 0 | T84: 0
C85: 32 | D85: 152.964 | E85: 39.5544 | F85: 45.3691 | G85: 46.0701 | H85: 20568.027 | I85: 15.286 | J85: 5.713340833 | L85: =Test!B291 -> 0 | M85: =Test!C291 -> 0 | N85: =Test!D291 -> 0 | O85: =Test!E291 -> 0 | P85: =Test!F291 -> 0 | Q85: =Test!G291 -> 0 | R85: 0 | S85: 0 | T85: 0
C86: 37 | D86: 82.1576 | E86: 37.2003 | F86: 44.0479 | G86: 44.7016 | H86: 13182.209 | I86: 13.628 | J86: 3.661724722 | L86: =Test!B292 -> 0 | M86: =Test!C292 -> 0 | N86: =Test!D292 -> 0 | O86: =Test!E292 -> 0 | P86: =Test!F292 -> 0 | Q86: =Test!G292 -> 0 | R86: 0 | S86: 0 | T86: 0
B87: KristenAndSara | C87: 22 | D87: 1775.2872 | E87: 43.6401 | F87: 47.7213 | G87: 48.7063 | H87: 57151.185 | I87: 26.296 | J87: 15.87532917 | L87: =Test!B293 -> 0 | M87: =Test!C293 -> 0 | N87: =Test!D293 -> 0 | O87: =Test!E293 -> 0 | P87: =Test!F293 -> 0 | Q87: =Test!G293 -> 0 | R87: 0 | S87: =P87/H87 -> 0 | T87: 0 | V87: =bdrate($D87:$D90,E87:E90,$L87:$L90,M87:M90) ->  | W87: =bdrate($D87:$D90,F87:F90,$L87:$L90,N87:N90) ->  | X87: =bdrate($D87:$D90,G87:G90,$L87:$L90,O87:O90) ->  | Y87: =bdrateOld($D87:$D90,E87:E90,$L87:$L90,M87:M90) ->  | Z87: =bdrateOld($D87:$D90,F87:F90,$L87:$L90,N87:N90) ->  | AA87: =bdrateOld($D87:$D90,G87:G90,$L87:$L90,O87:O90) -> 
C88: 27 | D88: 585.6824 | E88: 41.5625 | F88: 45.8351 | G88: 46.8736 | H88: 36108.5 | I88: 19.877 | J88: 10.03013889 | L88: =Test!B294 -> 0 | M88: =Test!C294 -> 0 | N88: =Test!D294 -> 0 | O88: =Test!E294 -> 0 | P88: =Test!F294 -> 0 | Q88: =Test!G294 -> 0 | R88: 0 | S88: 0 | T88: 0
C89: 32 | D89: 261.968 | E89: 39.2941 | F89: 44.165 | G89: 45.265 | H89: 25903.097 | I89: 17.173 | J89: 7.195304722 | L89: =Test!B295 -> 0 | M89: =Test!C295 -> 0 | N89: =Test!D295 -> 0 | O89: =Test!E295 -> 0 | P89: =Test!F295 -> 0 | Q89: =Test!G295 -> 0 | R89: 0 | S89: 0 | T89: 0
C90: 37 | D90: 136.3712 | E90: 36.705 | F90: 42.8415 | G90: 44.0009 | H90: 18112.443 | I90: 15.196 | J90: 5.031234167 | L90: =Test!B296 -> 0 | M90: =Test!C296 -> 0 | N90: =Test!D296 -> 0 | O90: =Test!E296 -> 0 | P90: =Test!F296 -> 0 | Q90: =Test!G296 -> 0 | R90: 0 | S90: 0 | T90: 0
A91: ClassF | B91: BasketballDrillText | C91: 22 | D91: 3208.9224 | E91: 40.7284 | F91: 43.2456 | G91: 43.9374 | H91: 47496.228 | I91: 14.836 | J91: 13.19339667 | L91: =Test!B297 -> 0 | M91: =Test!C297 -> 0 | N91: =Test!D297 -> 0 | O91: =Test!E297 -> 0 | P91: =Test!F297 -> 0 | Q91: =Test!G297 -> 0 | R91: 0 | S91: 0 | T91: 0 | V91: =bdrate($D91:$D94,E91:E94,$L91:$L94,M91:M94) ->  | W91: =bdrate($D91:$D94,F91:F94,$L91:$L94,N91:N94) ->  | X91: =bdrate($D91:$D94,G91:G94,$L91:$L94,O91:O94) ->  | Y91: =bdrateOld($D91:$D94,E91:E94,$L91:$L94,M91:M94) ->  | Z91: =bdrateOld($D91:$D94,F91:F94,$L91:$L94,N91:N94) ->  | AA91: =bdrateOld($D91:$D94,G91:G94,$L91:$L94,O91:O94) -> 
C92: 27 | D92: 1477.0688 | E92: 37.401 | F92: 40.4671 | G92: 40.9464 | H92: 38654.284 | I92: 11.401 | J92: =H92/3600 -> 10.73730111 | L92: =Test!B298 -> 0 | M92: =Test!C298 -> 0 | N92: =Test!D298 -> 0 | O92: =Test!E298 -> 0 | P92: =Test!F298 -> 0 | Q92: =Test!G298 -> 0 | R92: 0 | S92: 0 | T92: 0
C93: 32 | D93: 743.196 | E93: 34.5228 | F93: 38.4749 | G93: 38.8616 | H93: 30786.056 | I93: 9.155 | J93: 8.551682222 | L93: =Test!B299 -> 0 | M93: =Test!C299 -> 0 | N93: =Test!D299 -> 0 | O93: =Test!E299 -> 0 | P93: =Test!F299 -> 0 | Q93: =Test!G299 -> 0 | R93: 0 | S93: 0 | T93: 0
C94: 37 | D94: 399.204 | E94: 31.9072 | F94: 36.816 | G94: 37.0865 | H94: 23605.383 | I94: 7.708 | J94: 6.557050833 | L94: =Test!B300 -> 0 | M94: =Test!C300 -> 0 | N94: =Test!D300 -> 0 | O94: =Test!E300 -> 0 | P94: =Test!F300 -> 0 | Q94: =Test!G300 -> 0 | R94: 0 | S94: 0 | T94: 0
B95: ArenaOfValor | C95: 22 | D95: 13106.7416 | E95: 42.4257 | F95: 44.308 | G95: 45.0088 | H95: 165313.861 | I95: 94.105 | J95: 45.92051694 | L95: =Test!B301 -> 0 | M95: =Test!C301 -> 0 | N95: =Test!D301 -> 0 | O95: =Test!E301 -> 0 | P95: =Test!F301 -> 0 | Q95: =Test!G301 -> 0 | R95: 0 | S95: 0 | T95: 0 | V95: =bdrate($D95:$D98,E95:E98,$L95:$L98,M95:M98) ->  | W95: =bdrate($D95:$D98,F95:F98,$L95:$L98,N95:N98) ->  | X95: =bdrate($D95:$D98,G95:G98,$L95:$L98,O95:O98) ->  | Y95: =bdrateOld($D95:$D98,E95:E98,$L95:$L98,M95:M98) ->  | Z95: =bdrateOld($D95:$D98,F95:F98,$L95:$L98,N95:N98) ->  | AA95: =bdrateOld($D95:$D98,G95:G98,$L95:$L98,O95:O98) -> 
C96: 27 | D96: 5509.3312 | E96: 38.9722 | F96: 41.5827 | G96: 42.0786 | H96: 126133.155 | I96: 69.767 | J96: 35.0369875 | L96: =Test!B302 -> 0 | M96: =Test!C302 -> 0 | N96: =Test!D302 -> 0 | O96: =Test!E302 -> 0 | P96: =Test!F302 -> 0 | Q96: =Test!G302 -> 0 | R96: 0 | S96: 0 | T96: 0
C97: 32 | D97: 2571.5152 | E97: 36 | F97: 39.6463 | G97: 39.9958 | H97: 100403.144 | I97: 55.649 | J97: 27.88976222 | L97: =Test!B303 -> 0 | M97: =Test!C303 -> 0 | N97: =Test!D303 -> 0 | O97: =Test!E303 -> 0 | P97: =Test!F303 -> 0 | Q97: =Test!G303 -> 0 | R97: 0 | S97: 0 | T97: 0
C98: 37 | D98: 1282.8696 | E98: 33.3042 | F98: 38.0635 | G98: 38.2844 | H98: 79458.959 | I98: 46.05 | J98: 22.07193306 | L98: =Test!B304 -> 0 | M98: =Test!C304 -> 0 | N98: =Test!D304 -> 0 | O98: =Test!E304 -> 0 | P98: =Test!F304 -> 0 | Q98: =Test!G304 -> 0 | R98: 0 | S98: 0 | T98: 0
B99: SlideEditing | C99: 22 | D99: 277.7568 | E99: 47.375 | F99: 45.7154 | G99: 45.9886 | H99: 7388.951 | I99: 5.957 | J99: 2.052486389 | L99: =Test!B305 -> 0 | M99: =Test!C305 -> 0 | N99: =Test!D305 -> 0 | O99: =Test!E305 -> 0 | P99: =Test!F305 -> 0 | Q99: =Test!G305 -> 0 | R99: 0 | S99: 0 | T99: 0 | V99: =bdrate($D99:$D102,E99:E102,$L99:$L102,M99:M102) ->  | W99: =bdrate($D99:$D102,F99:F102,$L99:$L102,N99:N102) ->  | X99: =bdrate($D99:$D102,G99:G102,$L99:$L102,O99:O102) ->  | Y99: =bdrateOld($D99:$D102,E99:E102,$L99:$L102,M99:M102) ->  | Z99: =bdrateOld($D99:$D102,F99:F102,$L99:$L102,N99:N102) ->  | AA99: =bdrateOld($D99:$D102,G99:G102,$L99:$L102,O99:O102) -> 
C100: 27 | D100: 204.8904 | E100: 43.0803 | F100: 41.6909 | G100: 42.1219 | H100: 6483.043 | I100: 5.944 | J100: 1.800845278 | L100: =Test!B306 -> 0 | M100: =Test!C306 -> 0 | N100: =Test!D306 -> 0 | O100: =Test!E306 -> 0 | P100: =Test!F306 -> 0 | Q100: =Test!G306 -> 0 | R100: 0 | S100: 0 | T100: 0
C101: 32 | D101: 154.292 | E101: 38.4743 | F101: 39.4865 | G101: 40.1001 | H101: 6051.919 | I101: 5.705 | J101: 1.681088611 | L101: =Test!B307 -> 0 | M101: =Test!C307 -> 0 | N101: =Test!D307 -> 0 | O101: =Test!E307 -> 0 | P101: =Test!F307 -> 0 | Q101: =Test!G307 -> 0 | R101: 0 | S101: 0 | T101: 0
C102: 37 | D102: 111.6792 | E102: 33.6332 | F102: 38.3651 | G102: 38.935 | H102: 6005.175 | I102: 5.617 | J102: 1.668104167 | L102: =Test!B308 -> 0 | M102: =Test!C308 -> 0 | N102: =Test!D308 -> 0 | O102: =Test!E308 -> 0 | P102: =Test!F308 -> 0 | Q102: =Test!G308 -> 0 | R102: 0 | S102: 0 | T102: 0
B103: SlideShow | C103: 22 | D103: 528.44 | E103: 49.4087 | F103: 53.0249 | G103: 54.0881 | H103: 19340.688 | I103: 15.599 | J103: 5.372413333 | L103: =Test!B309 -> 0 | M103: =Test!C309 -> 0 | N103: =Test!D309 -> 0 | O103: =Test!E309 -> 0 | P103: =Test!F309 -> 0 | Q103: =Test!G309 -> 0 | R103: 0 | S103: 0 | T103: 0 | V103: =bdrate($D103:$D106,E103:E106,$L103:$L106,M103:M106) ->  | W103: =bdrate($D103:$D106,F103:F106,$L103:$L106,N103:N106) ->  | X103: =bdrate($D103:$D106,G103:G106,$L103:$L106,O103:O106) ->  | Y103: =bdrateOld($D103:$D106,E103:E106,$L103:$L106,M103:M106) ->  | Z103: =bdrateOld($D103:$D106,F103:F106,$L103:$L106,N103:N106) ->  | AA103: =bdrateOld($D103:$D106,G103:G106,$L103:$L106,O103:O106) -> 
C104: 27 | D104: 293.0838 | E104: 45.4232 | F104: 49.7413 | G104: 50.9267 | H104: 16573.026 | I104: 14.986 | J104: 4.603618333 | L104: =Test!B310 -> 0 | M104: =Test!C310 -> 0 | N104: =Test!D310 -> 0 | O104: =Test!E310 -> 0 | P104: =Test!F310 -> 0 | Q104: =Test!G310 -> 0 | R104: 0 | S104: 0 | T104: 0
C105: 32 | D105: 169.3155 | E105: 41.7413 | F105: 47.349 | G105: 48.86 | H105: 13721.935 | I105: 14.09 | J105: 3.811648611 | L105: =Test!B311 -> 0 | M105: =Test!C311 -> 0 | N105: =Test!D311 -> 0 | O105: =Test!E311 -> 0 | P105: =Test!F311 -> 0 | Q105: =Test!G311 -> 0 | R105: 0 | S105: 0 | T105: 0
C106: 37 | D106: 104.6198 | E106: 38.0323 | F106: 45.4859 | G106: 47.1662 | H106: 11139.493 | I106: 13.32 | J106: 3.094303611 | L106: =Test!B312 -> 0 | M106: =Test!C312 -> 0 | N106: =Test!D312 -> 0 | O106: =Test!E312 -> 0 | P106: =Test!F312 -> 0 | Q106: =Test!G312 -> 0 | R106: 0 | S106: 0 | T106: 0
B107: Class A1
B108: Class A2
B109: Class B | I109: =GEOMEAN(I27:I46) -> 69.66384891 | J109: =GEOMEAN(J27:J46) -> 38.28947372 | Q109: =GEOMEAN(Q27:Q46) ->  | R109: =GEOMEAN(R27:R46) ->  | S109: =GEOMEAN(S27:S46) ->  | V109: =AVERAGE(V27:V46) ->  | W109: =AVERAGE(W27:W46) -> 
B110: Class C | I110: =GEOMEAN(I47:I62) -> 11.24459586 | J110: =GEOMEAN(J47:J62) -> 8.344350741 | Q110: =GEOMEAN(Q47:Q62) ->  | R110: =GEOMEAN(R47:R62) ->  | S110: =GEOMEAN(S47:S62) ->  | V110: =AVERAGE(V47:V62) ->  | W110: =AVERAGE(W47:W62) -> 
B111: Class D | I111: =GEOMEAN(I63:I78) -> 3.048108669 | J111: =GEOMEAN(J63:J78) -> 2.09977128 | Q111: =GEOMEAN(Q63:Q78) ->  | R111: =GEOMEAN(R63:R78) ->  | S111: =GEOMEAN(S63:S78) ->  | V111: =AVERAGE(V63:V78) ->  | W111: =AVERAGE(W63:W78) -> 
B112: Class E | I112: =GEOMEAN(I79:I90) -> 18.26167346 | J112: =GEOMEAN(J79:J90) -> 8.118456046 | Q112: =GEOMEAN(Q79:Q90) ->  | R112: =GEOMEAN(R79:R90) ->  | S112: =GEOMEAN(S79:S90) ->  | V112: =AVERAGE(V79:V88) ->  | W112: =AVERAGE(W79:W88) -> 
B113: Class F | I113: =GEOMEAN(I91:I106) -> 15.39898548 | J113: =GEOMEAN(J91:J106) -> 6.855223143 | Q113: =GEOMEAN(Q91:Q106) ->  | R113: =GEOMEAN(R91:R106) ->  | S113: =GEOMEAN(S91:S106) ->  | V113: =AVERAGE(V91:V106) ->  | W113: =AVERAGE(W91:W106) -> 
B114: All | I114: =GEOMEAN(I3:I62,I79:I90) -> 27.14060582 | J114: =GEOMEAN(J3:J62,J79:J90) -> 15.63563871 | Q114: =GEOMEAN(Q3:Q62,Q79:Q90) ->  | R114: =GEOMEAN(R3:R62,R79:R90) ->  | V114: =AVERAGE(V3:V62,V79:V90) ->  | W114: =AVERAGE(W3:W62,W79:W90) -> 
B115: Time geomean | I115: =GEOMEAN(I3:I106) -> 15.64862681 | J115: =GEOMEAN(J3:J106) -> 8.873768476 | Q115: =GEOMEAN(Q3:Q106) ->  | R115: =GEOMEAN(R3:R106) -> 
B116: Time ratio | Q116: =Q115/I115 ->  | R116: =R115/J115 -> 
B117: Time sum (hours)

Sheet LDP-10
D1: Reference | L1: Tested | V1: BD-rate (piecewise cubic) | Y1: BD-rate (cubic)
C2: QPISlice | D2: kbps | E2: Y psnr | F2: U psnr | G2: V psnr | H2: Enc T [s] | I2: Dec T [s] | J2: Enc T [h] | L2: kbps | M2: Y psnr | N2: U psnr | O2: V psnr | P2: Enc T [s] | Q2: Dec T [s] | R2: Enc T [h] | S2: Enc | T2: Dec | V2: Y | W2: U | X2: V | Y2: Y | Z2: U | AA2: V
A3: Class A1 | B3: Tango2 | C3: 22
A4: 4K | C4: 27
C5: 32
C6: 37
B7: FoodMarket4 | C7: 22
C8: 27
C9: 32
C10: 37
B11: Campfire | C11: 22
C12: 27
C13: 32
C14: 37
A15: Class A2 | B15: CatRobot1 | C15: 22
A16: 4K | C16: 27
C17: 32
C18: 37
B19: DaylightRoad2 | C19: 22
C20: 27
C21: 32
C22: 37
B23: ParkRunning3 | C23: 22
C24: 27
C25: 32
C26: 37
A27: Class B | B27: MarketPlace | C27: 22 | D27: =Reference!B337 -> 0 | E27: =Reference!C337 -> 0 | F27: =Reference!D337 -> 0 | G27: =Reference!E337 -> 0 | H27: =Reference!F337 -> 0 | I27: =Reference!G337 -> 0 | J27: =H27/3600 -> 0 | L27: =Test!B337 -> 0 | M27: =Test!C337 -> 0 | N27: =Test!D337 -> 0 | O27: =Test!E337 -> 0 | P27: =Test!F337 -> 0 | Q27: =Test!G337 -> 0 | R27: =P27/3600 -> 0 | S27: =P27/H27 ->  | V27: =bdrate($D27:$D30,E27:E30,$L27:$L30,M27:M30) ->  | W27: =bdrate($D27:$D30,F27:F30,$L27:$L30,N27:N30) ->  | X27: =bdrate($D27:$D30,G27:G30,$L27:$L30,O27:O30) ->  | Y27: =bdrateOld($D27:$D30,E27:E30,$L27:$L30,M27:M30) ->  | Z27: =bdrateOld($D27:$D30,F27:F30,$L27:$L30,N27:N30) ->  | AA27: =bdrateOld($D27:$D30,G27:G30,$L27:$L30,O27:O30) -> 
A28: 1080p | C28: 27 | D28: =Reference!B338 -> 0 | E28: =Reference!C338 -> 0 | F28: =Reference!D338 -> 0 | G28: =Reference!E338 -> 0 | H28: =Reference!F338 -> 0 | I28: =Reference!G338 -> 0 | J28: =H28/3600 -> 0 | L28: =Test!B338 -> 0 | M28: =Test!C338 -> 0 | N28: =Test!D338 -> 0 | O28: =Test!E338 -> 0 | P28: =Test!F338 -> 0 | Q28: =Test!G338 -> 0 | R28: 0
C29: 32 | D29: =Reference!B339 -> 0 | E29: =Reference!C339 -> 0 | F29: =Reference!D339 -> 0 | G29: =Reference!E339 -> 0 | H29: =Reference!F339 -> 0 | I29: =Reference!G339 -> 0 | J29: 0 | L29: =Test!B339 -> 0 | M29: =Test!C339 -> 0 | N29: =Test!D339 -> 0 | O29: =Test!E339 -> 0 | P29: =Test!F339 -> 0 | Q29: =Test!G339 -> 0 | R29: 0
C30: 37 | D30: =Reference!B340 -> 0 | E30: =Reference!C340 -> 0 | F30: =Reference!D340 -> 0 | G30: =Reference!E340 -> 0 | H30: =Reference!F340 -> 0 | I30: =Reference!G340 -> 0 | J30: 0 | L30: =Test!B340 -> 0 | M30: =Test!C340 -> 0 | N30: =Test!D340 -> 0 | O30: =Test!E340 -> 0 | P30: =Test!F340 -> 0 | Q30: =Test!G340 -> 0 | R30: 0
B31: RitualDance | C31: 22 | D31: =Reference!B341 -> 0 | E31: =Reference!C341 -> 0 | F31: =Reference!D341 -> 0 | G31: =Reference!E341 -> 0 | H31: =Reference!F341 -> 0 | I31: =Reference!G341 -> 0 | J31: 0 | L31: =Test!B341 -> 0 | M31: =Test!C341 -> 0 | N31: =Test!D341 -> 0 | O31: =Test!E341 -> 0 | P31: =Test!F341 -> 0 | Q31: =Test!G341 -> 0 | R31: 0 | V31: =bdrate($D31:$D34,E31:E34,$L31:$L34,M31:M34) ->  | W31: =bdrate($D31:$D34,F31:F34,$L31:$L34,N31:N34) ->  | X31: =bdrate($D31:$D34,G31:G34,$L31:$L34,O31:O34) ->  | Y31: =bdrateOld($D31:$D34,E31:E34,$L31:$L34,M31:M34) ->  | Z31: =bdrateOld($D31:$D34,F31:F34,$L31:$L34,N31:N34) ->  | AA31: =bdrateOld($D31:$D34,G31:G34,$L31:$L34,O31:O34) -> 
C32: 27 | D32: =Reference!B342 -> 0 | E32: =Reference!C342 -> 0 | F32: =Reference!D342 -> 0 | G32: =Reference!E342 -> 0 | H32: =Reference!F342 -> 0 | I32: =Reference!G342 -> 0 | J32: 0 | L32: =Test!B342 -> 0 | M32: =Test!C342 -> 0 | N32: =Test!D342 -> 0 | O32: =Test!E342 -> 0 | P32: =Test!F342 -> 0 | Q32: =Test!G342 -> 0 | R32: 0
C33: 32 | D33: =Reference!B343 -> 0 | E33: =Reference!C343 -> 0 | F33: =Reference!D343 -> 0 | G33: =Reference!E343 -> 0 | H33: =Reference!F343 -> 0 | I33: =Reference!G343 -> 0 | J33: 0 | L33: =Test!B343 -> 0 | M33: =Test!C343 -> 0 | N33: =Test!D343 -> 0 | O33: =Test!E343 -> 0 | P33: =Test!F343 -> 0 | Q33: =Test!G343 -> 0 | R33: 0
C34: 37 | D34: =Reference!B344 -> 0 | E34: =Reference!C344 -> 0 | F34: =Reference!D344 -> 0 | G34: =Reference!E344 -> 0 | H34: =Reference!F344 -> 0 | I34: =Reference!G344 -> 0 | J34: 0 | L34: =Test!B344 -> 0 | M34: =Test!C344 -> 0 | N34: =Test!D344 -> 0 | O34: =Test!E344 -> 0 | P34: =Test!F344 -> 0 | Q34: =Test!G344 -> 0 | R34: 0
B35: Cactus | C35: 22 | D35: =Reference!B345 -> 0 | E35: =Reference!C345 -> 0 | F35: =Reference!D345 -> 0 | G35: =Reference!E345 -> 0 | H35: =Reference!F345 -> 0 | I35: =Reference!G345 -> 0 | J35: 0 | L35: =Test!B345 -> 0 | M35: =Test!C345 -> 0 | N35: =Test!D345 -> 0 | O35: =Test!E345 -> 0 | P35: =Test!F345 -> 0 | Q35: =Test!G345 -> 0 | R35: 0 | V35: =bdrate($D35:$D38,E35:E38,$L35:$L38,M35:M38) ->  | W35: =bdrate($D35:$D38,F35:F38,$L35:$L38,N35:N38) ->  | X35: =bdrate($D35:$D38,G35:G38,$L35:$L38,O35:O38) ->  | Y35: =bdrateOld($D35:$D38,E35:E38,$L35:$L38,M35:M38) ->  | Z35: =bdrateOld($D35:$D38,F35:F38,$L35:$L38,N35:N38) ->  | AA35: =bdrateOld($D35:$D38,G35:G38,$L35:$L38,O35:O38) -> 
C36: 27 | D36: =Reference!B346 -> 0 | E36: =Reference!C346 -> 0 | F36: =Reference!D346 -> 0 | G36: =Reference!E346 -> 0 | H36: =Reference!F346 -> 0 | I36: =Reference!G346 -> 0 | J36: 0 | L36: =Test!B346 -> 0 | M36: =Test!C346 -> 0 | N36: =Test!D346 -> 0 | O36: =Test!E346 -> 0 | P36: =Test!F346 -> 0 | Q36: =Test!G346 -> 0 | R36: 0
C37: 32 | D37: =Reference!B347 -> 0 | E37: =Reference!C347 -> 0 | F37: =Reference!D347 -> 0 | G37: =Reference!E347 -> 0 | H37: =Reference!F347 -> 0 | I37: =Reference!G347 -> 0 | J37: 0 | L37: =Test!B347 -> 0 | M37: =Test!C347 -> 0 | N37: =Test!D347 -> 0 | O37: =Test!E347 -> 0 | P37: =Test!F347 -> 0 | Q37: =Test!G347 -> 0 | R37: 0
C38: 37 | D38: =Reference!B348 -> 0 | E38: =Reference!C348 -> 0 | F38: =Reference!D348 -> 0 | G38: =Reference!E348 -> 0 | H38: =Reference!F348 -> 0 | I38: =Reference!G348 -> 0 | J38: 0 | L38: =Test!B348 -> 0 | M38: =Test!C348 -> 0 | N38: =Test!D348 -> 0 | O38: =Test!E348 -> 0 | P38: =Test!F348 -> 0 | Q38: =Test!G348 -> 0 | R38: 0
B39: BasketballDrive | C39: 22 | D39: =Reference!B349 -> 0 | E39: =Reference!C349 -> 0 | F39: =Reference!D349 -> 0 | G39: =Reference!E349 -> 0 | H39: =Reference!F349 -> 0 | I39: =Reference!G349 -> 0 | J39: 0 | L39: =Test!B349 -> 0 | M39: =Test!C349 -> 0 | N39: =Test!D349 -> 0 | O39: =Test!E349 -> 0 | P39: =Test!F349 -> 0 | Q39: =Test!G349 -> 0 | R39: 0 | V39: =bdrate($D39:$D42,E39:E42,$L39:$L42,M39:M42) ->  | W39: =bdrate($D39:$D42,F39:F42,$L39:$L42,N39:N42) ->  | X39: =bdrate($D39:$D42,G39:G42,$L39:$L42,O39:O42) ->  | Y39: =bdrateOld($D39:$D42,E39:E42,$L39:$L42,M39:M42) ->  | Z39: =bdrateOld($D39:$D42,F39:F42,$L39:$L42,N39:N42) ->  | AA39: =bdrateOld($D39:$D42,G39:G42,$L39:$L42,O39:O42) -> 
C40: 27 | D40: =Reference!B350 -> 0 | E40: =Reference!C350 -> 0 | F40: =Reference!D350 -> 0 | G40: =Reference!E350 -> 0 | H40: =Reference!F350 -> 0 | I40: =Reference!G350 -> 0 | J40: 0 | L40: =Test!B350 -> 0 | M40: =Test!C350 -> 0 | N40: =Test!D350 -> 0 | O40: =Test!E350 -> 0 | P40: =Test!F350 -> 0 | Q40: =Test!G350 -> 0 | R40: 0
C41: 32 | D41: =Reference!B351 -> 0 | E41: =Reference!C351 -> 0 | F41: =Reference!D351 -> 0 | G41: =Reference!E351 -> 0 | H41: =Reference!F351 -> 0 | I41: =Reference!G351 -> 0 | J41: 0 | L41: =Test!B351 -> 0 | M41: =Test!C351 -> 0 | N41: =Test!D351 -> 0 | O41: =Test!E351 -> 0 | P41: =Test!F351 -> 0 | Q41: =Test!G351 -> 0 | R41: 0
C42: 37 | D42: =Reference!B352 -> 0 | E42: =Reference!C352 -> 0 | F42: =Reference!D352 -> 0 | G42: =Reference!E352 -> 0 | H42: =Reference!F352 -> 0 | I42: =Reference!G352 -> 0 | J42: 0 | L42: =Test!B352 -> 0 | M42: =Test!C352 -> 0 | N42: =Test!D352 -> 0 | O42: =Test!E352 -> 0 | P42: =Test!F352 -> 0 | Q42: =Test!G352 -> 0 | R42: 0
B43: BQTerrace | C43: 22 | D43: =Reference!B353 -> 0 | E43: =Reference!C353 -> 0 | F43: =Reference!D353 -> 0 | G43: =Reference!E353 -> 0 | H43: =Reference!F353 -> 0 | I43: =Reference!G353 -> 0 | J43: 0 | L43: =Test!B353 -> 0 | M43: =Test!C353 -> 0 | N43: =Test!D353 -> 0 | O43: =Test!E353 -> 0 | P43: =Test!F353 -> 0 | Q43: =Test!G353 -> 0 | R43: 0 | V43: =bdrate($D43:$D46,E43:E46,$L43:$L46,M43:M46) ->  | W43: =bdrate($D43:$D46,F43:F46,$L43:$L46,N43:N46) ->  | X43: =bdrate($D43:$D46,G43:G46,$L43:$L46,O43:O46) ->  | Y43: =bdrateOld($D43:$D46,E43:E46,$L43:$L46,M43:M46) ->  | Z43: =bdrateOld($D43:$D46,F43:F46,$L43:$L46,N43:N46) ->  | AA43: =bdrateOld($D43:$D46,G43:G46,$L43:$L46,O43:O46) -> 
C44: 27 | D44: =Reference!B354 -> 0 | E44: =Reference!C354 -> 0 | F44: =Reference!D354 -> 0 | G44: =Reference!E354 -> 0 | H44: =Reference!F354 -> 0 | I44: =Reference!G354 -> 0 | J44: 0 | L44: =Test!B354 -> 0 | M44: =Test!C354 -> 0 | N44: =Test!D354 -> 0 | O44: =Test!E354 -> 0 | P44: =Test!F354 -> 0 | Q44: =Test!G354 -> 0 | R44: 0
C45: 32 | D45: =Reference!B355 -> 0 | E45: =Reference!C355 -> 0 | F45: =Reference!D355 -> 0 | G45: =Reference!E355 -> 0 | H45: =Reference!F355 -> 0 | I45: =Reference!G355 -> 0 | J45: 0 | L45: =Test!B355 -> 0 | M45: =Test!C355 -> 0 | N45: =Test!D355 -> 0 | O45: =Test!E355 -> 0 | P45: =Test!F355 -> 0 | Q45: =Test!G355 -> 0 | R45: 0
C46: 37 | D46: =Reference!B356 -> 0 | E46: =Reference!C356 -> 0 | F46: =Reference!D356 -> 0 | G46: =Reference!E356 -> 0 | H46: =Reference!F356 -> 0 | I46: =Reference!G356 -> 0 | J46: 0 | L46: =Test!B356 -> 0 | M46: =Test!C356 -> 0 | N46: =Test!D356 -> 0 | O46: =Test!E356 -> 0 | P46: =Test!F356 -> 0 | Q46: =Test!G356 -> 0 | R46: 0
A47: Class C | B47: BasketballDrill | C47: 22 | D47: =Reference!B357 -> 0 | E47: =Reference!C357 -> 0 | F47: =Reference!D357 -> 0 | G47: =Reference!E357 -> 0 | H47: =Reference!F357 -> 0 | I47: =Reference!G357 -> 0 | J47: 0 | L47: =Test!B357 -> 0 | M47: =Test!C357 -> 0 | N47: =Test!D357 -> 0 | O47: =Test!E357 -> 0 | P47: =Test!F357 -> 0 | Q47: =Test!G357 -> 0 | R47: 0 | S47: =P47/H47 ->  | V47: =bdrate($D47:$D50,E47:E50,$L47:$L50,M47:M50) ->  | W47: =bdrate($D47:$D50,F47:F50,$L47:$L50,N47:N50) ->  | X47: =bdrate($D47:$D50,G47:G50,$L47:$L50,O47:O50) ->  | Y47: =bdrateOld($D47:$D50,E47:E50,$L47:$L50,M47:M50) ->  | Z47: =bdrateOld($D47:$D50,F47:F50,$L47:$L50,N47:N50) ->  | AA47: =bdrateOld($D47:$D50,G47:G50,$L47:$L50,O47:O50) -> 
A48: WVGA | C48: 27 | D48: =Reference!B358 -> 0 | E48: =Reference!C358 -> 0 | F48: =Reference!D358 -> 0 | G48: =Reference!E358 -> 0 | H48: =Reference!F358 -> 0 | I48: =Reference!G358 -> 0 | J48: 0 | L48: =Test!B358 -> 0 | M48: =Test!C358 -> 0 | N48: =Test!D358 -> 0 | O48: =Test!E358 -> 0 | P48: =Test!F358 -> 0 | Q48: =Test!G358 -> 0 | R48: 0
C49: 32 | D49: =Reference!B359 -> 0 | E49: =Reference!C359 -> 0 | F49: =Reference!D359 -> 0 | G49: =Reference!E359 -> 0 | H49: =Reference!F359 -> 0 | I49: =Reference!G359 -> 0 | J49: 0 | L49: =Test!B359 -> 0 | M49: =Test!C359 -> 0 | N49: =Test!D359 -> 0 | O49: =Test!E359 -> 0 | P49: =Test!F359 -> 0 | Q49: =Test!G359 -> 0 | R49: 0
C50: 37 | D50: =Reference!B360 -> 0 | E50: =Reference!C360 -> 0 | F50: =Reference!D360 -> 0 | G50: =Reference!E360 -> 0 | H50: =Reference!F360 -> 0 | I50: =Reference!G360 -> 0 | J50: 0 | L50: =Test!B360 -> 0 | M50: =Test!C360 -> 0 | N50: =Test!D360 -> 0 | O50: =Test!E360 -> 0 | P50: =Test!F360 -> 0 | Q50: =Test!G360 -> 0 | R50: 0
B51: BQMall | C51: 22 | D51: =Reference!B361 -> 0 | E51: =Reference!C361 -> 0 | F51: =Reference!D361 -> 0 | G51: =Reference!E361 -> 0 | H51: =Reference!F361 -> 0 | I51: =Reference!G361 -> 0 | J51: 0 | L51: =Test!B361 -> 0 | M51: =Test!C361 -> 0 | N51: =Test!D361 -> 0 | O51: =Test!E361 -> 0 | P51: =Test!F361 -> 0 | Q51: =Test!G361 -> 0 | R51: 0 | V51: =bdrate($D51:$D54,E51:E54,$L51:$L54,M51:M54) ->  | W51: =bdrate($D51:$D54,F51:F54,$L51:$L54,N51:N54) ->  | X51: =bdrate($D51:$D54,G51:G54,$L51:$L54,O51:O54) ->  | Y51: =bdrateOld($D51:$D54,E51:E54,$L51:$L54,M51:M54) ->  | Z51: =bdrateOld($D51:$D54,F51:F54,$L51:$L54,N51:N54) ->  | AA51: =bdrateOld($D51:$D54,G51:G54,$L51:$L54,O51:O54) -> 
C52: 27 | D52: =Reference!B362 -> 0 | E52: =Reference!C362 -> 0 | F52: =Reference!D362 -> 0 | G52: =Reference!E362 -> 0 | H52: =Reference!F362 -> 0 | I52: =Reference!G362 -> 0 | J52: 0 | L52: =Test!B362 -> 0 | M52: =Test!C362 -> 0 | N52: =Test!D362 -> 0 | O52: =Test!E362 -> 0 | P52: =Test!F362 -> 0 | Q52: =Test!G362 -> 0 | R52: 0
C53: 32 | D53: =Reference!B363 -> 0 | E53: =Reference!C363 -> 0 | F53: =Reference!D363 -> 0 | G53: =Reference!E363 -> 0 | H53: =Reference!F363 -> 0 | I53: =Reference!G363 -> 0 | J53: 0 | L53: =Test!B363 -> 0 | M53: =Test!C363 -> 0 | N53: =Test!D363 -> 0 | O53: =Test!E363 -> 0 | P53: =Test!F363 -> 0 | Q53: =Test!G363 -> 0 | R53: 0
C54: 37 | D54: =Reference!B364 -> 0 | E54: =Reference!C364 -> 0 | F54: =Reference!D364 -> 0 | G54: =Reference!E364 -> 0 | H54: =Reference!F364 -> 0 | I54: =Reference!G364 -> 0 | J54: 0 | L54: =Test!B364 -> 0 | M54: =Test!C364 -> 0 | N54: =Test!D364 -> 0 | O54: =Test!E364 -> 0 | P54: =Test!F364 -> 0 | Q54: =Test!G364 -> 0 | R54: 0
B55: PartyScene | C55: 22 | D55: =Reference!B365 -> 0 | E55: =Reference!C365 -> 0 | F55: =Reference!D365 -> 0 | G55: =Reference!E365 -> 0 | H55: =Reference!F365 -> 0 | I55: =Reference!G365 -> 0 | J55: 0 | L55: =Test!B365 -> 0 | M55: =Test!C365 -> 0 | N55: =Test!D365 -> 0 | O55: =Test!E365 -> 0 | P55: =Test!F365 -> 0 | Q55: =Test!G365 -> 0 | R55: 0 | V55: =bdrate($D55:$D58,E55:E58,$L55:$L58,M55:M58) ->  | W55: =bdrate($D55:$D58,F55:F58,$L55:$L58,N55:N58) ->  | X55: =bdrate($D55:$D58,G55:G58,$L55:$L58,O55:O58) ->  | Y55: =bdrateOld($D55:$D58,E55:E58,$L55:$L58,M55:M58) ->  | Z55: =bdrateOld($D55:$D58,F55:F58,$L55:$L58,N55:N58) ->  | AA55: =bdrateOld($D55:$D58,G55:G58,$L55:$L58,O55:O58) -> 
C56: 27 | D56: =Reference!B366 -> 0 | E56: =Reference!C366 -> 0 | F56: =Reference!D366 -> 0 | G56: =Reference!E366 -> 0 | H56: =Reference!F366 -> 0 | I56: =Reference!G366 -> 0 | J56: 0 | L56: =Test!B366 -> 0 | M56: =Test!C366 -> 0 | N56: =Test!D366 -> 0 | O56: =Test!E366 -> 0 | P56: =Test!F366 -> 0 | Q56: =Test!G366 -> 0 | R56: 0
C57: 32 | D57: =Reference!B367 -> 0 | E57: =Reference!C367 -> 0 | F57: =Reference!D367 -> 0 | G57: =Reference!E367 -> 0 | H57: =Reference!F367 -> 0 | I57: =Reference!G367 -> 0 | J57: 0 | L57: =Test!B367 -> 0 | M57: =Test!C367 -> 0 | N57: =Test!D367 -> 0 | O57: =Test!E367 -> 0 | P57: =Test!F367 -> 0 | Q57: =Test!G367 -> 0 | R57: 0
C58: 37 | D58: =Reference!B368 -> 0 | E58: =Reference!C368 -> 0 | F58: =Reference!D368 -> 0 | G58: =Reference!E368 -> 0 | H58: =Reference!F368 -> 0 | I58: =Reference!G368 -> 0 | J58: 0 | L58: =Test!B368 -> 0 | M58: =Test!C368 -> 0 | N58: =Test!D368 -> 0 | O58: =Test!E368 -> 0 | P58: =Test!F368 -> 0 | Q58: =Test!G368 -> 0 | R58: 0
B59: RaceHorses | C59: 22 | D59: =Reference!B369 -> 0 | E59: =Reference!C369 -> 0 | F59: =Reference!D369 -> 0 | G59: =Reference!E369 -> 0 | H59: =Reference!F369 -> 0 | I59: =Reference!G369 -> 0 | J59: 0 | L59: =Test!B369 -> 0 | M59: =Test!C369 -> 0 | N59: =Test!D369 -> 0 | O59: =Test!E369 -> 0 | P59: =Test!F369 -> 0 | Q59: =Test!G369 -> 0 | R59: 0 | V59: =bdrate($D59:$D62,E59:E62,$L59:$L62,M59:M62) ->  | W59: =bdrate($D59:$D62,F59:F62,$L59:$L62,N59:N62) ->  | X59: =bdrate($D59:$D62,G59:G62,$L59:$L62,O59:O62) ->  | Y59: =bdrateOld($D59:$D62,E59:E62,$L59:$L62,M59:M62) ->  | Z59: =bdrateOld($D59:$D62,F59:F62,$L59:$L62,N59:N62) ->  | AA59: =bdrateOld($D59:$D62,G59:G62,$L59:$L62,O59:O62) -> 
C60: 27 | D60: =Reference!B370 -> 0 | E60: =Reference!C370 -> 0 | F60: =Reference!D370 -> 0 | G60: =Reference!E370 -> 0 | H60: =Reference!F370 -> 0 | I60: =Reference!G370 -> 0 | J60: 0 | L60: =Test!B370 -> 0 | M60: =Test!C370 -> 0 | N60: =Test!D370 -> 0 | O60: =Test!E370 -> 0 | P60: =Test!F370 -> 0 | Q60: =Test!G370 -> 0 | R60: 0
C61: 32 | D61: =Reference!B371 -> 0 | E61: =Reference!C371 -> 0 | F61: =Reference!D371 -> 0 | G61: =Reference!E371 -> 0 | H61: =Reference!F371 -> 0 | I61: =Reference!G371 -> 0 | J61: 0 | L61: =Test!B371 -> 0 | M61: =Test!C371 -> 0 | N61: =Test!D371 -> 0 | O61: =Test!E371 -> 0 | P61: =Test!F371 -> 0 | Q61: =Test!G371 -> 0 | R61: 0
C62: 37 | D62: =Reference!B372 -> 0 | E62: =Reference!C372 -> 0 | F62: =Reference!D372 -> 0 | G62: =Reference!E372 -> 0 | H62: =Reference!F372 -> 0 | I62: =Reference!G372 -> 0 | J62: 0 | L62: =Test!B372 -> 0 | M62: =Test!C372 -> 0 | N62: =Test!D372 -> 0 | O62: =Test!E372 -> 0 | P62: =Test!F372 -> 0 | Q62: =Test!G372 -> 0 | R62: 0
A63: Class D | B63: BasketballPass | C63: =C59 -> 22 | D63: =Reference!B373 -> 0 | E63: =Reference!C373 -> 0 | F63: =Reference!D373 -> 0 | G63: =Reference!E373 -> 0 | H63: =Reference!F373 -> 0 | I63: =Reference!G373 -> 0 | J63: 0 | L63: =Test!B373 -> 0 | M63: =Test!C373 -> 0 | N63: =Test!D373 -> 0 | O63: =Test!E373 -> 0 | P63: =Test!F373 -> 0 | Q63: =Test!G373 -> 0 | R63: 0 | S63: =P63/H63 ->  | V63: =bdrate($D63:$D66,E63:E66,$L63:$L66,M63:M66) ->  | W63: =bdrate($D63:$D66,F63:F66,$L63:$L66,N63:N66) ->  | X63: =bdrate($D63:$D66,G63:G66,$L63:$L66,O63:O66) ->  | Y63: =bdrateOld($D63:$D66,E63:E66,$L63:$L66,M63:M66) ->  | Z63: =bdrateOld($D63:$D66,F63:F66,$L63:$L66,N63:N66) ->  | AA63: =bdrateOld($D63:$D66,G63:G66,$L63:$L66,O63:O66) -> 
A64: WQVGA | C64: =C60 -> 27 | D64: =Reference!B374 -> 0 | E64: =Reference!C374 -> 0 | F64: =Reference!D374 -> 0 | G64: =Reference!E374 -> 0 | H64: =Reference!F374 -> 0 | I64: =Reference!G374 -> 0 | J64: 0 | L64: =Test!B374 -> 0 | M64: =Test!C374 -> 0 | N64: =Test!D374 -> 0 | O64: =Test!E374 -> 0 | P64: =Test!F374 -> 0 | Q64: =Test!G374 -> 0 | R64: 0 | S64: =P64/H64 -> 
C65: =C61 -> 32 | D65: =Reference!B375 -> 0 | E65: =Reference!C375 -> 0 | F65: =Reference!D375 -> 0 | G65: =Reference!E375 -> 0 | H65: =Reference!F375 -> 0 | I65: =Reference!G375 -> 0 | J65: 0 | L65: =Test!B375 -> 0 | M65: =Test!C375 -> 0 | N65: =Test!D375 -> 0 | O65: =Test!E375 -> 0 | P65: =Test!F375 -> 0 | Q65: =Test!G375 -> 0 | R65: 0 | S65: =P65/H65 -> 
C66: =C62 -> 37 | D66: =Reference!B376 -> 0 | E66: =Reference!C376 -> 0 | F66: =Reference!D376 -> 0 | G66: =Reference!E376 -> 0 | H66: =Reference!F376 -> 0 | I66: =Reference!G376 -> 0 | J66: 0 | L66: =Test!B376 -> 0 | M66: =Test!C376 -> 0 | N66: =Test!D376 -> 0 | O66: =Test!E376 -> 0 | P66: =Test!F376 -> 0 | Q66: =Test!G376 -> 0 | R66: 0 | S66: =P66/H66 -> 
B67: BQSquare | C67: 22 | D67: =Reference!B377 -> 0 | E67: =Reference!C377 -> 0 | F67: =Reference!D377 -> 0 | G67: =Reference!E377 -> 0 | H67: =Reference!F377 -> 0 | I67: =Reference!G377 -> 0 | J67: 0 | L67: =Test!B377 -> 0 | M67: =Test!C377 -> 0 | N67: =Test!D377 -> 0 | O67: =Test!E377 -> 0 | P67: =Test!F377 -> 0 | Q67: =Test!G377 -> 0 | R67: 0 | V67: =bdrate($D67:$D70,E67:E70,$L67:$L70,M67:M70) ->  | W67: =bdrate($D67:$D70,F67:F70,$L67:$L70,N67:N70) ->  | X67: =bdrate($D67:$D70,G67:G70,$L67:$L70,O67:O70) ->  | Y67: =bdrateOld($D67:$D70,E67:E70,$L67:$L70,M67:M70) ->  | Z67: =bdrateOld($D67:$D70,F67:F70,$L67:$L70,N67:N70) ->  | AA67: =bdrateOld($D67:$D70,G67:G70,$L67:$L70,O67:O70) -> 
C68: 27 | D68: =Reference!B378 -> 0 | E68: =Reference!C378 -> 0 | F68: =Reference!D378 -> 0 | G68: =Reference!E378 -> 0 | H68: =Reference!F378 -> 0 | I68: =Reference!G378 -> 0 | J68: 0 | L68: =Test!B378 -> 0 | M68: =Test!C378 -> 0 | N68: =Test!D378 -> 0 | O68: =Test!E378 -> 0 | P68: =Test!F378 -> 0 | Q68: =Test!G378 -> 0 | R68: 0
C69: 32 | D69: =Reference!B379 -> 0 | E69: =Reference!C379 -> 0 | F69: =Reference!D379 -> 0 | G69: =Reference!E379 -> 0 | H69: =Reference!F379 -> 0 | I69: =Reference!G379 -> 0 | J69: 0 | L69: =Test!B379 -> 0 | M69: =Test!C379 -> 0 | N69: =Test!D379 -> 0 | O69: =Test!E379 -> 0 | P69: =Test!F379 -> 0 | Q69: =Test!G379 -> 0 | R69: 0
C70: 37 | D70: =Reference!B380 -> 0 | E70: =Reference!C380 -> 0 | F70: =Reference!D380 -> 0 | G70: =Reference!E380 -> 0 | H70: =Reference!F380 -> 0 | I70: =Reference!G380 -> 0 | J70: 0 | L70: =Test!B380 -> 0 | M70: =Test!C380 -> 0 | N70: =Test!D380 -> 0 | O70: =Test!E380 -> 0 | P70: =Test!F380 -> 0 | Q70: =Test!G380 -> 0 | R70: 0
B71: BlowingBubbles | C71: 22 | D71: =Reference!B381 -> 0 | E71: =Reference!C381 -> 0 | F71: =Reference!D381 -> 0 | G71: =Reference!E381 -> 0 | H71: =Reference!F381 -> 0 | I71: =Reference!G381 -> 0 | J71: 0 | L71: =Test!B381 -> 0 | M71: =Test!C381 -> 0 | N71: =Test!D381 -> 0 | O71: =Test!E381 -> 0 | P71: =Test!F381 -> 0 | Q71: =Test!G381 -> 0 | R71: 0 | S71: =P71/H71 ->  | V71: =bdrate($D71:$D74,E71:E74,$L71:$L74,M71:M74) ->  | W71: =bdrate($D71:$D74,F71:F74,$L71:$L74,N71:N74) ->  | X71: =bdrate($D71:$D74,G71:G74,$L71:$L74,O71:O74) ->  | Y71: =bdrateOld($D71:$D74,E71:E74,$L71:$L74,M71:M74) ->  | Z71: =bdrateOld($D71:$D74,F71:F74,$L71:$L74,N71:N74) ->  | AA71: =bdrateOld($D71:$D74,G71:G74,$L71:$L74,O71:O74) -> 
C72: 27 | D72: =Reference!B382 -> 0 | E72: =Reference!C382 -> 0 | F72: =Reference!D382 -> 0 | G72: =Reference!E382 -> 0 | H72: =Reference!F382 -> 0 | I72: =Reference!G382 -> 0 | J72: 0 | L72: =Test!B382 -> 0 | M72: =Test!C382 -> 0 | N72: =Test!D382 -> 0 | O72: =Test!E382 -> 0 | P72: =Test!F382 -> 0 | Q72: =Test!G382 -> 0 | R72: 0
C73: 32 | D73: =Reference!B383 -> 0 | E73: =Reference!C383 -> 0 | F73: =Reference!D383 -> 0 | G73: =Reference!E383 -> 0 | H73: =Reference!F383 -> 0 | I73: =Reference!G383 -> 0 | J73: 0 | L73: =Test!B383 -> 0 | M73: =Test!C383 -> 0 | N73: =Test!D383 -> 0 | O73: =Test!E383 -> 0 | P73: =Test!F383 -> 0 | Q73: =Test!G383 -> 0 | R73: 0
C74: 37 | D74: =Reference!B384 -> 0 | E74: =Reference!C384 -> 0 | F74: =Reference!D384 -> 0 | G74: =Reference!E384 -> 0 | H74: =Reference!F384 -> 0 | I74: =Reference!G384 -> 0 | J74: 0 | L74: =Test!B384 -> 0 | M74: =Test!C384 -> 0 | N74: =Test!D384 -> 0 | O74: =Test!E384 -> 0 | P74: =Test!F384 -> 0 | Q74: =Test!G384 -> 0 | R74: 0
B75: RaceHorses | C75: 22 | D75: =Reference!B385 -> 0 | E75: =Reference!C385 -> 0 | F75: =Reference!D385 -> 0 | G75: =Reference!E385 -> 0 | H75: =Reference!F385 -> 0 | I75: =Reference!G385 -> 0 | J75: 0 | L75: =Test!B385 -> 0 | M75: =Test!C385 -> 0 | N75: =Test!D385 -> 0 | O75: =Test!E385 -> 0 | P75: =Test!F385 -> 0 | Q75: =Test!G385 -> 0 | R75: 0 | V75: =bdrate($D75:$D78,E75:E78,$L75:$L78,M75:M78) ->  | W75: =bdrate($D75:$D78,F75:F78,$L75:$L78,N75:N78) ->  | X75: =bdrate($D75:$D78,G75:G78,$L75:$L78,O75:O78) ->  | Y75: =bdrateOld($D75:$D78,E75:E78,$L75:$L78,M75:M78) ->  | Z75: =bdrateOld($D75:$D78,F75:F78,$L75:$L78,N75:N78) ->  | AA75: =bdrateOld($D75:$D78,G75:G78,$L75:$L78,O75:O78) -> 
C76: 27 | D76: =Reference!B386 -> 0 | E76: =Reference!C386 -> 0 | F76: =Reference!D386 -> 0 | G76: =Reference!E386 -> 0 | H76: =Reference!F386 -> 0 | I76: =Reference!G386 -> 0 | J76: 0 | L76: =Test!B386 -> 0 | M76: =Test!C386 -> 0 | N76: =Test!D386 -> 0 | O76: =Test!E386 -> 0 | P76: =Test!F386 -> 0 | Q76: =Test!G386 -> 0 | R76: 0
C77: 32 | D77: =Reference!B387 -> 0 | E77: =Reference!C387 -> 0 | F77: =Reference!D387 -> 0 | G77: =Reference!E387 -> 0 | H77: =Reference!F387 -> 0 | I77: =Reference!G387 -> 0 | J77: 0 | L77: =Test!B387 -> 0 | M77: =Test!C387 -> 0 | N77: =Test!D387 -> 0 | O77: =Test!E387 -> 0 | P77: =Test!F387 -> 0 | Q77: =Test!G387 -> 0 | R77: 0
C78: 37 | D78: =Reference!B388 -> 0 | E78: =Reference!C388 -> 0 | F78: =Reference!D388 -> 0 | G78: =Reference!E388 -> 0 | H78: =Reference!F388 -> 0 | I78: =Reference!G388 -> 0 | J78: 0 | L78: =Test!B388 -> 0 | M78: =Test!C388 -> 0 | N78: =Test!D388 -> 0 | O78: =Test!E388 -> 0 | P78: =Test!F388 -> 0 | Q78: =Test!G388 -> 0 | R78: 0
A79: ClassE | B79: FourPeople | C79: 22 | D79: =Reference!B389 -> 0 | E79: =Reference!C389 -> 0 | F79: =Reference!D389 -> 0 | G79: =Reference!E389 -> 0 | H79: =Reference!F389 -> 0 | I79: =Reference!G389 -> 0 | J79: 0 | L79: =Test!B389 -> 0 | M79: =Test!C389 -> 0 | N79: =Test!D389 -> 0 | O79: =Test!E389 -> 0 | P79: =Test!F389 -> 0 | Q79: =Test!G389 -> 0 | R79: 0 | V79: =bdrate($D79:$D82,E79:E82,$L79:$L82,M79:M82) ->  | W79: =bdrate($D79:$D82,F79:F82,$L79:$L82,N79:N82) ->  | X79: =bdrate($D79:$D82,G79:G82,$L79:$L82,O79:O82) ->  | Y79: =bdrateOld($D79:$D82,E79:E82,$L79:$L82,M79:M82) ->  | Z79: =bdrateOld($D79:$D82,F79:F82,$L79:$L82,N79:N82) ->  | AA79: =bdrateOld($D79:$D82,G79:G82,$L79:$L82,O79:O82) -> 
A80: 720p | C80: 27 | D80: =Reference!B390 -> 0 | E80: =Reference!C390 -> 0 | F80: =Reference!D390 -> 0 | G80: =Reference!E390 -> 0 | H80: =Reference!F390 -> 0 | I80: =Reference!G390 -> 0 | J80: 0 | L80: =Test!B390 -> 0 | M80: =Test!C390 -> 0 | N80: =Test!D390 -> 0 | O80: =Test!E390 -> 0 | P80: =Test!F390 -> 0 | Q80: =Test!G390 -> 0 | R80: =P80/3600 -> 0
C81: 32 | D81: =Reference!B391 -> 0 | E81: =Reference!C391 -> 0 | F81: =Reference!D391 -> 0 | G81: =Reference!E391 -> 0 | H81: =Reference!F391 -> 0 | I81: =Reference!G391 -> 0 | J81: 0 | L81: =Test!B391 -> 0 | M81: =Test!C391 -> 0 | N81: =Test!D391 -> 0 | O81: =Test!E391 -> 0 | P81: =Test!F391 -> 0 | Q81: =Test!G391 -> 0 | R81: 0
C82: 37 | D82: =Reference!B392 -> 0 | E82: =Reference!C392 -> 0 | F82: =Reference!D392 -> 0 | G82: =Reference!E392 -> 0 | H82: =Reference!F392 -> 0 | I82: =Reference!G392 -> 0 | J82: 0 | L82: =Test!B392 -> 0 | M82: =Test!C392 -> 0 | N82: =Test!D392 -> 0 | O82: =Test!E392 -> 0 | P82: =Test!F392 -> 0 | Q82: =Test!G392 -> 0 | R82: 0
B83: Johnny | C83: 22 | D83: =Reference!B393 -> 0 | E83: =Reference!C393 -> 0 | F83: =Reference!D393 -> 0 | G83: =Reference!E393 -> 0 | H83: =Reference!F393 -> 0 | I83: =Reference!G393 -> 0 | J83: 0 | L83: =Test!B393 -> 0 | M83: =Test!C393 -> 0 | N83: =Test!D393 -> 0 | O83: =Test!E393 -> 0 | P83: =Test!F393 -> 0 | Q83: =Test!G393 -> 0 | R83: 0 | V83: =bdrate($D83:$D86,E83:E86,$L83:$L86,M83:M86) ->  | W83: =bdrate($D83:$D86,F83:F86,$L83:$L86,N83:N86) ->  | X83: =bdrate($D83:$D86,G83:G86,$L83:$L86,O83:O86) ->  | Y83: =bdrateOld($D83:$D86,E83:E86,$L83:$L86,M83:M86) ->  | Z83: =bdrateOld($D83:$D86,F83:F86,$L83:$L86,N83:N86) ->  | AA83: =bdrateOld($D83:$D86,G83:G86,$L83:$L86,O83:O86) -> 
C84: 27 | D84: =Reference!B394 -> 0 | E84: =Reference!C394 -> 0 | F84: =Reference!D394 -> 0 | G84: =Reference!E394 -> 0 | H84: =Reference!F394 -> 0 | I84: =Reference!G394 -> 0 | J84: 0 | L84: =Test!B394 -> 0 | M84: =Test!C394 -> 0 | N84: =Test!D394 -> 0 | O84: =Test!E394 -> 0 | P84: =Test!F394 -> 0 | Q84: =Test!G394 -> 0 | R84: 0
C85: 32 | D85: =Reference!B395 -> 0 | E85: =Reference!C395 -> 0 | F85: =Reference!D395 -> 0 | G85: =Reference!E395 -> 0 | H85: =Reference!F395 -> 0 | I85: =Reference!G395 -> 0 | J85: 0 | L85: =Test!B395 -> 0 | M85: =Test!C395 -> 0 | N85: =Test!D395 -> 0 | O85: =Test!E395 -> 0 | P85: =Test!F395 -> 0 | Q85: =Test!G395 -> 0 | R85: 0
C86: 37 | D86: =Reference!B396 -> 0 | E86: =Reference!C396 -> 0 | F86: =Reference!D396 -> 0 | G86: =Reference!E396 -> 0 | H86: =Reference!F396 -> 0 | I86: =Reference!G396 -> 0 | J86: 0 | L86: =Test!B396 -> 0 | M86: =Test!C396 -> 0 | N86: =Test!D396 -> 0 | O86: =Test!E396 -> 0 | P86: =Test!F396 -> 0 | Q86: =Test!G396 -> 0 | R86: 0
B87: KristenAndSara | C87: 22 | D87: =Reference!B397 -> 0 | E87: =Reference!C397 -> 0 | F87: =Reference!D397 -> 0 | G87: =Reference!E397 -> 0 | H87: =Reference!F397 -> 0 | I87: =Reference!G397 -> 0 | J87: 0 | L87: =Test!B397 -> 0 | M87: =Test!C397 -> 0 | N87: =Test!D397 -> 0 | O87: =Test!E397 -> 0 | P87: =Test!F397 -> 0 | Q87: =Test!G397 -> 0 | R87: 0 | S87: =P87/H87 ->  | V87: =bdrate($D87:$D90,E87:E90,$L87:$L90,M87:M90) ->  | W87: =bdrate($D87:$D90,F87:F90,$L87:$L90,N87:N90) ->  | X87: =bdrate($D87:$D90,G87:G90,$L87:$L90,O87:O90) ->  | Y87: =bdrateOld($D87:$D90,E87:E90,$L87:$L90,M87:M90) ->  | Z87: =bdrateOld($D87:$D90,F87:F90,$L87:$L90,N87:N90) ->  | AA87: =bdrateOld($D87:$D90,G87:G90,$L87:$L90,O87:O90) -> 
C88: 27 | D88: =Reference!B398 -> 0 | E88: =Reference!C398 -> 0 | F88: =Reference!D398 -> 0 | G88: =Reference!E398 -> 0 | H88: =Reference!F398 -> 0 | I88: =Reference!G398 -> 0 | J88: 0 | L88: =Test!B398 -> 0 | M88: =Test!C398 -> 0 | N88: =Test!D398 -> 0 | O88: =Test!E398 -> 0 | P88: =Test!F398 -> 0 | Q88: =Test!G398 -> 0 | R88: 0
C89: 32 | D89: =Reference!B399 -> 0 | E89: =Reference!C399 -> 0 | F89: =Reference!D399 -> 0 | G89: =Reference!E399 -> 0 | H89: =Reference!F399 -> 0 | I89: =Reference!G399 -> 0 | J89: 0 | L89: =Test!B399 -> 0 | M89: =Test!C399 -> 0 | N89: =Test!D399 -> 0 | O89: =Test!E399 -> 0 | P89: =Test!F399 -> 0 | Q89: =Test!G399 -> 0 | R89: 0
C90: 37 | D90: =Reference!B400 -> 0 | E90: =Reference!C400 -> 0 | F90: =Reference!D400 -> 0 | G90: =Reference!E400 -> 0 | H90: =Reference!F400 -> 0 | I90: =Reference!G400 -> 0 | J90: 0 | L90: =Test!B400 -> 0 | M90: =Test!C400 -> 0 | N90: =Test!D400 -> 0 | O90: =Test!E400 -> 0 | P90: =Test!F400 -> 0 | Q90: =Test!G400 -> 0 | R90: 0
A91: ClassF | B91: BasketballDrillText | C91: 22 | D91: =Reference!B401 -> 0 | E91: =Reference!C401 -> 0 | F91: =Reference!D401 -> 0 | G91: =Reference!E401 -> 0 | H91: =Reference!F401 -> 0 | I91: =Reference!G401 -> 0 | J91: 0 | L91: =Test!B401 -> 0 | M91: =Test!C401 -> 0 | N91: =Test!D401 -> 0 | O91: =Test!E401 -> 0 | P91: =Test!F401 -> 0 | Q91: =Test!G401 -> 0 | R91: 0 | V91: =bdrate($D91:$D94,E91:E94,$L91:$L94,M91:M94) ->  | W91: =bdrate($D91:$D94,F91:F94,$L91:$L94,N91:N94) ->  | X91: =bdrate($D91:$D94,G91:G94,$L91:$L94,O91:O94) ->  | Y91: =bdrateOld($D91:$D94,E91:E94,$L91:$L94,M91:M94) ->  | Z91: =bdrateOld($D91:$D94,F91:F94,$L91:$L94,N91:N94) ->  | AA91: =bdrateOld($D91:$D94,G91:G94,$L91:$L94,O91:O94) -> 
C92: 27 | D92: =Reference!B402 -> 0 | E92: =Reference!C402 -> 0 | F92: =Reference!D402 -> 0 | G92: =Reference!E402 -> 0 | H92: =Reference!F402 -> 0 | I92: =Reference!G402 -> 0 | J92: =H92/3600 -> 0 | L92: =Test!B402 -> 0 | M92: =Test!C402 -> 0 | N92: =Test!D402 -> 0 | O92: =Test!E402 -> 0 | P92: =Test!F402 -> 0 | Q92: =Test!G402 -> 0 | R92: 0
C93: 32 | D93: =Reference!B403 -> 0 | E93: =Reference!C403 -> 0 | F93: =Reference!D403 -> 0 | G93: =Reference!E403 -> 0 | H93: =Reference!F403 -> 0 | I93: =Reference!G403 -> 0 | J93: 0 | L93: =Test!B403 -> 0 | M93: =Test!C403 -> 0 | N93: =Test!D403 -> 0 | O93: =Test!E403 -> 0 | P93: =Test!F403 -> 0 | Q93: =Test!G403 -> 0 | R93: 0
C94: 37 | D94: =Reference!B404 -> 0 | E94: =Reference!C404 -> 0 | F94: =Reference!D404 -> 0 | G94: =Reference!E404 -> 0 | H94: =Reference!F404 -> 0 | I94: =Reference!G404 -> 0 | J94: 0 | L94: =Test!B404 -> 0 | M94: =Test!C404 -> 0 | N94: =Test!D404 -> 0 | O94: =Test!E404 -> 0 | P94: =Test!F404 -> 0 | Q94: =Test!G404 -> 0 | R94: 0
B95: ArenaOfValor | C95: 22 | D95: =Reference!B405 -> 0 | E95: =Reference!C405 -> 0 | F95: =Reference!D405 -> 0 | G95: =Reference!E405 -> 0 | H95: =Reference!F405 -> 0 | I95: =Reference!G405 -> 0 | J95: 0 | L95: =Test!B405 -> 0 | M95: =Test!C405 -> 0 | N95: =Test!D405 -> 0 | O95: =Test!E405 -> 0 | P95: =Test!F405 -> 0 | Q95: =Test!G405 -> 0 | R95: 0 | V95: =bdrate($D95:$D98,E95:E98,$L95:$L98,M95:M98) ->  | W95: =bdrate($D95:$D98,F95:F98,$L95:$L98,N95:N98) ->  | X95: =bdrate($D95:$D98,G95:G98,$L95:$L98,O95:O98) ->  | Y95: =bdrateOld($D95:$D98,E95:E98,$L95:$L98,M95:M98) ->  | Z95: =bdrateOld($D95:$D98,F95:F98,$L95:$L98,N95:N98) ->  | AA95: =bdrateOld($D95:$D98,G95:G98,$L95:$L98,O95:O98) -> 
C96: 27 | D96: =Reference!B406 -> 0 | E96: =Reference!C406 -> 0 | F96: =Reference!D406 -> 0 | G96: =Reference!E406 -> 0 | H96: =Reference!F406 -> 0 | I96: =Reference!G406 -> 0 | J96: 0 | L96: =Test!B406 -> 0 | M96: =Test!C406 -> 0 | N96: =Test!D406 -> 0 | O96: =Test!E406 -> 0 | P96: =Test!F406 -> 0 | Q96: =Test!G406 -> 0 | R96: 0
C97: 32 | D97: =Reference!B407 -> 0 | E97: =Reference!C407 -> 0 | F97: =Reference!D407 -> 0 | G97: =Reference!E407 -> 0 | H97: =Reference!F407 -> 0 | I97: =Reference!G407 -> 0 | J97: 0 | L97: =Test!B407 -> 0 | M97: =Test!C407 -> 0 | N97: =Test!D407 -> 0 | O97: =Test!E407 -> 0 | P97: =Test!F407 -> 0 | Q97: =Test!G407 -> 0 | R97: 0
C98: 37 | D98: =Reference!B408 -> 0 | E98: =Reference!C408 -> 0 | F98: =Reference!D408 -> 0 | G98: =Reference!E408 -> 0 | H98: =Reference!F408 -> 0 | I98: =Reference!G408 -> 0 | J98: 0 | L98: =Test!B408 -> 0 | M98: =Test!C408 -> 0 | N98: =Test!D408 -> 0 | O98: =Test!E408 -> 0 | P98: =Test!F408 -> 0 | Q98: =Test!G408 -> 0 | R98: 0
B99: SlideEditing | C99: 22 | D99: =Reference!B409 -> 0 | E99: =Reference!C409 -> 0 | F99: =Reference!D409 -> 0 | G99: =Reference!E409 -> 0 | H99: =Reference!F409 -> 0 | I99: =Reference!G409 -> 0 | J99: 0 | L99: =Test!B409 -> 0 | M99: =Test!C409 -> 0 | N99: =Test!D409 -> 0 | O99: =Test!E409 -> 0 | P99: =Test!F409 -> 0 | Q99: =Test!G409 -> 0 | R99: 0 | V99: =bdrate($D99:$D102,E99:E102,$L99:$L102,M99:M102) ->  | W99: =bdrate($D99:$D102,F99:F102,$L99:$L102,N99:N102) ->  | X99: =bdrate($D99:$D102,G99:G102,$L99:$L102,O99:O102) ->  | Y99: =bdrateOld($D99:$D102,E99:E102,$L99:$L102,M99:M102) ->  | Z99: =bdrateOld($D99:$D102,F99:F102,$L99:$L102,N99:N102) ->  | AA99: =bdrateOld($D99:$D102,G99:G102,$L99:$L102,O99:O102) -> 
C100: 27 | D100: =Reference!B410 -> 0 | E100: =Reference!C410 -> 0 | F100: =Reference!D410 -> 0 | G100: =Reference!E410 -> 0 | H100: =Reference!F410 -> 0 | I100: =Reference!G410 -> 0 | J100: 0 | L100: =Test!B410 -> 0 | M100: =Test!C410 -> 0 | N100: =Test!D410 -> 0 | O100: =Test!E410 -> 0 | P100: =Test!F410 -> 0 | Q100: =Test!G410 -> 0 | R100: 0
C101: 32 | D101: =Reference!B411 -> 0 | E101: =Reference!C411 -> 0 | F101: =Reference!D411 -> 0 | G101: =Reference!E411 -> 0 | H101: =Reference!F411 -> 0 | I101: =Reference!G411 -> 0 | J101: 0 | L101: =Test!B411 -> 0 | M101: =Test!C411 -> 0 | N101: =Test!D411 -> 0 | O101: =Test!E411 -> 0 | P101: =Test!F411 -> 0 | Q101: =Test!G411 -> 0 | R101: 0
C102: 37 | D102: =Reference!B412 -> 0 | E102: =Reference!C412 -> 0 | F102: =Reference!D412 -> 0 | G102: =Reference!E412 -> 0 | H102: =Reference!F412 -> 0 | I102: =Reference!G412 -> 0 | J102: 0 | L102: =Test!B412 -> 0 | M102: =Test!C412 -> 0 | N102: =Test!D412 -> 0 | O102: =Test!E412 -> 0 | P102: =Test!F412 -> 0 | Q102: =Test!G412 -> 0 | R102: 0
B103: SlideShow | C103: 22 | D103: =Reference!B413 -> 0 | E103: =Reference!C413 -> 0 | F103: =Reference!D413 -> 0 | G103: =Reference!E413 -> 0 | H103: =Reference!F413 -> 0 | I103: =Reference!G413 -> 0 | J103: 0 | L103: =Test!B413 -> 0 | M103: =Test!C413 -> 0 | N103: =Test!D413 -> 0 | O103: =Test!E413 -> 0 | P103: =Test!F413 -> 0 | Q103: =Test!G413 -> 0 | R103: 0 | V103: =bdrate($D103:$D106,E103:E106,$L103:$L106,M103:M106) ->  | W103: =bdrate($D103:$D106,F103:F106,$L103:$L106,N103:N106) ->  | X103: =bdrate($D103:$D106,G103:G106,$L103:$L106,O103:O106) ->  | Y103: =bdrateOld($D103:$D106,E103:E106,$L103:$L106,M103:M106) ->  | Z103: =bdrateOld($D103:$D106,F103:F106,$L103:$L106,N103:N106) ->  | AA103: =bdrateOld($D103:$D106,G103:G106,$L103:$L106,O103:O106) -> 
C104: 27 | D104: =Reference!B414 -> 0 | E104: =Reference!C414 -> 0 | F104: =Reference!D414 -> 0 | G104: =Reference!E414 -> 0 | H104: =Reference!F414 -> 0 | I104: =Reference!G414 -> 0 | J104: 0 | L104: =Test!B414 -> 0 | M104: =Test!C414 -> 0 | N104: =Test!D414 -> 0 | O104: =Test!E414 -> 0 | P104: =Test!F414 -> 0 | Q104: =Test!G414 -> 0 | R104: 0
C105: 32 | D105: =Reference!B415 -> 0 | E105: =Reference!C415 -> 0 | F105: =Reference!D415 -> 0 | G105: =Reference!E415 -> 0 | H105: =Reference!F415 -> 0 | I105: =Reference!G415 -> 0 | J105: 0 | L105: =Test!B415 -> 0 | M105: =Test!C415 -> 0 | N105: =Test!D415 -> 0 | O105: =Test!E415 -> 0 | P105: =Test!F415 -> 0 | Q105: =Test!G415 -> 0 | R105: 0
C106: 37 | D106: =Reference!B416 -> 0 | E106: =Reference!C416 -> 0 | F106: =Reference!D416 -> 0 | G106: =Reference!E416 -> 0 | H106: =Reference!F416 -> 0 | I106: =Reference!G416 -> 0 | J106: 0 | L106: =Test!B416 -> 0 | M106: =Test!C416 -> 0 | N106: =Test!D416 -> 0 | O106: =Test!E416 -> 0 | P106: =Test!F416 -> 0 | Q106: =Test!G416 -> 0 | R106: 0
B107: Class A1
B108: Class A2
B109: Class B | I109: =GEOMEAN(I27:I46) ->  | J109: =GEOMEAN(J27:J46) ->  | Q109: =GEOMEAN(Q27:Q46) ->  | R109: =GEOMEAN(R27:R46) ->  | S109: =GEOMEAN(S27:S46) ->  | V109: =AVERAGE(V27:V46) ->  | W109: =AVERAGE(W27:W46) -> 
B110: Class C | I110: =GEOMEAN(I47:I62) ->  | J110: =GEOMEAN(J47:J62) ->  | Q110: =GEOMEAN(Q47:Q62) ->  | R110: =GEOMEAN(R47:R62) ->  | S110: =GEOMEAN(S47:S62) ->  | V110: =AVERAGE(V47:V62) ->  | W110: =AVERAGE(W47:W62) -> 
B111: Class D | I111: =GEOMEAN(I63:I78) ->  | J111: =GEOMEAN(J63:J78) ->  | Q111: =GEOMEAN(Q63:Q78) ->  | R111: =GEOMEAN(R63:R78) ->  | S111: =GEOMEAN(S63:S78) ->  | V111: =AVERAGE(V63:V78) ->  | W111: =AVERAGE(W63:W78) -> 
B112: Class E | I112: =GEOMEAN(I79:I90) ->  | J112: =GEOMEAN(J79:J90) ->  | Q112: =GEOMEAN(Q79:Q90) ->  | R112: =GEOMEAN(R79:R90) ->  | S112: =GEOMEAN(S79:S90) ->  | V112: =AVERAGE(V79:V88) ->  | W112: =AVERAGE(W79:W88) -> 
B113: Class F | I113: =GEOMEAN(I91:I106) ->  | J113: =GEOMEAN(J91:J106) ->  | Q113: =GEOMEAN(Q91:Q106) ->  | R113: =GEOMEAN(R91:R106) ->  | S113: =GEOMEAN(S91:S106) ->  | V113: =AVERAGE(V91:V106) ->  | W113: =AVERAGE(W91:W106) -> 
B114: All | I114: =GEOMEAN(I3:I62,I79:I90) ->  | J114: =GEOMEAN(J3:J62,J79:J90) ->  | Q114: =GEOMEAN(Q3:Q62,Q79:Q90) ->  | R114: =GEOMEAN(R3:R62,R79:R90) ->  | V114: =AVERAGE(V3:V62,V79:V90) ->  | W114: =AVERAGE(W3:W62,W79:W90) -> 
B115: Time geomean | I115: =GEOMEAN(I3:I106) ->  | J115: =GEOMEAN(J3:J106) ->  | Q115: =GEOMEAN(Q3:Q106) ->  | R115: =GEOMEAN(R3:R106) -> 
B116: Time ratio | Q116: =Q115/I115 ->  | R116: =R115/J115 -> 
B117: Time sum (hours)

Sheet Reference
A1: Tango2.Q22.jvet10.ai
A2: Tango2.Q27.jvet10.ai
A3: Tango2.Q32.jvet10.ai
A4: Tango2.Q37.jvet10.ai
A5: FoodMarket4.Q22.jvet10.ai
A6: FoodMarket4.Q27.jvet10.ai
A7: FoodMarket4.Q32.jvet10.ai
A8: FoodMarket4.Q37.jvet10.ai
A9: CampfireParty2.Q22.jvet10.ai
A10: CampfireParty2.Q27.jvet10.ai
A11: CampfireParty2.Q32.jvet10.ai
A12: CampfireParty2.Q37.jvet10.ai
A13: CatRobot1.Q22.jvet10.ai
A14: CatRobot1.Q27.jvet10.ai
A15: CatRobot1.Q32.jvet10.ai
A16: CatRobot1.Q37.jvet10.ai
A17: DaylightRoad2.Q22.jvet10.ai
A18: DaylightRoad2.Q27.jvet10.ai
A19: DaylightRoad2.Q32.jvet10.ai
A20: DaylightRoad2.Q37.jvet10.ai
A21: ParkRunning3.Q22.jvet10.ai
A22: ParkRunning3.Q27.jvet10.ai
A23: ParkRunning3.Q32.jvet10.ai
A24: ParkRunning3.Q37.jvet10.ai
A25: MarketPlace.Q22.jvet10.ai
A26: MarketPlace.Q27.jvet10.ai
A27: MarketPlace.Q32.jvet10.ai
A28: MarketPlace.Q37.jvet10.ai
A29: RitualDance.Q22.jvet10.ai
A30: RitualDance.Q27.jvet10.ai
A31: RitualDance.Q32.jvet10.ai
A32: RitualDance.Q37.jvet10.ai
A33: Cactus.Q22.jvet10.ai
A34: Cactus.Q27.jvet10.ai
A35: Cactus.Q32.jvet10.ai
A36: Cactus.Q37.jvet10.ai
A37: BasketballDrive.Q22.jvet10.ai
A38: BasketballDrive.Q27.jvet10.ai
A39: BasketballDrive.Q32.jvet10.ai
A40: BasketballDrive.Q37.jvet10.ai
A41: BQTerrace.Q22.jvet10.ai
A42: BQTerrace.Q27.jvet10.ai
A43: BQTerrace.Q32.jvet10.ai
A44: BQTerrace.Q37.jvet10.ai
A45: BasketballDrill.Q22.jvet10.ai
A46: BasketballDrill.Q27.jvet10.ai
A47: BasketballDrill.Q32.jvet10.ai
A48: BasketballDrill.Q37.jvet10.ai
A49: BQMall.Q22.jvet10.ai
A50: BQMall.Q27.jvet10.ai
A51: BQMall.Q32.jvet10.ai
A52: BQMall.Q37.jvet10.ai
A53: PartyScene.Q22.jvet10.ai
A54: PartyScene.Q27.jvet10.ai
A55: PartyScene.Q32.jvet10.ai
A56: PartyScene.Q37.jvet10.ai
A57: RaceHorsesC.Q22.jvet10.ai
A58: RaceHorsesC.Q27.jvet10.ai
A59: RaceHorsesC.Q32.jvet10.ai
A60: RaceHorsesC.Q37.jvet10.ai
A61: BasketballPass.Q22.jvet10.ai
A62: BasketballPass.Q27.jvet10.ai
A63: BasketballPass.Q32.jvet10.ai
A64: BasketballPass.Q37.jvet10.ai
A65: BQSquare.Q22.jvet10.ai
A66: BQSquare.Q27.jvet10.ai
A67: BQSquare.Q32.jvet10.ai
A68: BQSquare.Q37.jvet10.ai
A69: BlowingBubbles.Q22.jvet10.ai
A70: BlowingBubbles.Q27.jvet10.ai
A71: BlowingBubbles.Q32.jvet10.ai
A72: BlowingBubbles.Q37.jvet10.ai
A73: RaceHorses.Q22.jvet10.ai
A74: RaceHorses.Q27.jvet10.ai
A75: RaceHorses.Q32.jvet10.ai
A76: RaceHorses.Q37.jvet10.ai
A77: FourPeople.Q22.jvet10.ai
A78: FourPeople.Q27.jvet10.ai
A79: FourPeople.Q32.jvet10.ai
A80: FourPeople.Q37.jvet10.ai
A81: Johnny.Q22.jvet10.ai
A82: Johnny.Q27.jvet10.ai
A83: Johnny.Q32.jvet10.ai
A84: Johnny.Q37.jvet10.ai
A85: KristenAndSara.Q22.jvet10.ai
A86: KristenAndSara.Q27.jvet10.ai
A87: KristenAndSara.Q32.jvet10.ai
A88: KristenAndSara.Q37.jvet10.ai
A89: BasketballDrillText.Q22.jvet10.ai
A90: BasketballDrillText.Q27.jvet10.ai
A91: BasketballDrillText.Q32.jvet10.ai
A92: BasketballDrillText.Q37.jvet10.ai
A93: ChinaSpeed.Q22.jvet10.ai
A94: ChinaSpeed.Q27.jvet10.ai
A95: ChinaSpeed.Q32.jvet10.ai
A96: ChinaSpeed.Q37.jvet10.ai
A97: SlideEditing.Q22.jvet10.ai
A98: SlideEditing.Q27.jvet10.ai
A99: SlideEditing.Q32.jvet10.ai
A100: SlideEditing.Q37.jvet10.ai
A101: SlideShow.Q22.jvet10.ai
A102: SlideShow.Q27.jvet10.ai
A103: SlideShow.Q32.jvet10.ai
A104: SlideShow.Q37.jvet10.ai
A105: Tango2.Q22.jvet10.ra
A106: Tango2.Q27.jvet10.ra
A107: Tango2.Q32.jvet10.ra
A108: Tango2.Q37.jvet10.ra
A109: FoodMarket4.Q22.jvet10.ra
A110: FoodMarket4.Q27.jvet10.ra
A111: FoodMarket4.Q32.jvet10.ra
A112: FoodMarket4.Q37.jvet10.ra
A113: CampfireParty2.Q22.jvet10.ra
A114: CampfireParty2.Q27.jvet10.ra
A115: CampfireParty2.Q32.jvet10.ra
A116: CampfireParty2.Q37.jvet10.ra
A117: CatRobot1.Q22.jvet10.ra
A118: CatRobot1.Q27.jvet10.ra
A119: CatRobot1.Q32.jvet10.ra
A120: CatRobot1.Q37.jvet10.ra
A121: DaylightRoad2.Q22.jvet10.ra
A122: DaylightRoad2.Q27.jvet10.ra
A123: DaylightRoad2.Q32.jvet10.ra
A124: DaylightRoad2.Q37.jvet10.ra
A125: ParkRunning3.Q22.jvet10.ra
A126: ParkRunning3.Q27.jvet10.ra
A127: ParkRunning3.Q32.jvet10.ra
A128: ParkRunning3.Q37.jvet10.ra
A129: MarketPlace.Q22.jvet10.ra
A130: MarketPlace.Q27.jvet10.ra
A131: MarketPlace.Q32.jvet10.ra
A132: MarketPlace.Q37.jvet10.ra
A133: RitualDance.Q22.jvet10.ra
A134: RitualDance.Q27.jvet10.ra
A135: RitualDance.Q32.jvet10.ra
A136: RitualDance.Q37.jvet10.ra
A137: Cactus.Q22.jvet10.ra
A138: Cactus.Q27.jvet10.ra
A139: Cactus.Q32.jvet10.ra
A140: Cactus.Q37.jvet10.ra
A141: BasketballDrive.Q22.jvet10.ra
A142: BasketballDrive.Q27.jvet10.ra
A143: BasketballDrive.Q32.jvet10.ra
A144: BasketballDrive.Q37.jvet10.ra
A145: BQTerrace.Q22.jvet10.ra
A146: BQTerrace.Q27.jvet10.ra
A147: BQTerrace.Q32.jvet10.ra
A148: BQTerrace.Q37.jvet10.ra
A149: BasketballDrill.Q22.jvet10.ra
A150: BasketballDrill.Q27.jvet10.ra
A151: BasketballDrill.Q32.jvet10.ra
A152: BasketballDrill.Q37.jvet10.ra
A153: BQMall.Q22.jvet10.ra
A154: BQMall.Q27.jvet10.ra
A155: BQMall.Q32.jvet10.ra
A156: BQMall.Q37.jvet10.ra
A157: PartyScene.Q22.jvet10.ra
A158: PartyScene.Q27.jvet10.ra
A159: PartyScene.Q32.jvet10.ra
A160: PartyScene.Q37.jvet10.ra
A161: RaceHorsesC.Q22.jvet10.ra
A162: RaceHorsesC.Q27.jvet10.ra
A163: RaceHorsesC.Q32.jvet10.ra
A164: RaceHorsesC.Q37.jvet10.ra
A165: BasketballPass.Q22.jvet10.ra
A166: BasketballPass.Q27.jvet10.ra
A167: BasketballPass.Q32.jvet10.ra
A168: BasketballPass.Q37.jvet10.ra
A169: BQSquare.Q22.jvet10.ra
A170: BQSquare.Q27.jvet10.ra
A171: BQSquare.Q32.jvet10.ra
A172: BQSquare.Q37.jvet10.ra
A173: BlowingBubbles.Q22.jvet10.ra
A174: BlowingBubbles.Q27.jvet10.ra
A175: BlowingBubbles.Q32.jvet10.ra
A176: BlowingBubbles.Q37.jvet10.ra
A177: RaceHorses.Q22.jvet10.ra
A178: RaceHorses.Q27.jvet10.ra
A179: RaceHorses.Q32.jvet10.ra
A180: RaceHorses.Q37.jvet10.ra
A181: FourPeople.Q22.jvet10.ra
A182: FourPeople.Q27.jvet10.ra
A183: FourPeople.Q32.jvet10.ra
A184: FourPeople.Q37.jvet10.ra
A185: Johnny.Q22.jvet10.ra
A186: Johnny.Q27.jvet10.ra
A187: Johnny.Q32.jvet10.ra
A188: Johnny.Q37.jvet10.ra
A189: KristenAndSara.Q22.jvet10.ra
A190: KristenAndSara.Q27.jvet10.ra
A191: KristenAndSara.Q32.jvet10.ra
A192: KristenAndSara.Q37.jvet10.ra
A193: BasketballDrillText.Q22.jvet10.ra
A194: BasketballDrillText.Q27.jvet10.ra
A195: BasketballDrillText.Q32.jvet10.ra
A196: BasketballDrillText.Q37.jvet10.ra
A197: ChinaSpeed.Q22.jvet10.ra
A198: ChinaSpeed.Q27.jvet10.ra
A199: ChinaSpeed.Q32.jvet10.ra
A200: ChinaSpeed.Q37.jvet10.ra
... 216 more rows

Sheet Test
A1: Tango2.Q22.jvet10.ai
A2: Tango2.Q27.jvet10.ai
A3: Tango2.Q32.jvet10.ai
A4: Tango2.Q37.jvet10.ai
A5: FoodMarket4.Q22.jvet10.ai
A6: FoodMarket4.Q27.jvet10.ai
A7: FoodMarket4.Q32.jvet10.ai
A8: FoodMarket4.Q37.jvet10.ai
A9: CampfireParty2.Q22.jvet10.ai
A10: CampfireParty2.Q27.jvet10.ai
A11: CampfireParty2.Q32.jvet10.ai
A12: CampfireParty2.Q37.jvet10.ai
A13: CatRobot1.Q22.jvet10.ai
A14: CatRobot1.Q27.jvet10.ai
A15: CatRobot1.Q32.jvet10.ai
A16: CatRobot1.Q37.jvet10.ai
A17: DaylightRoad2.Q22.jvet10.ai
A18: DaylightRoad2.Q27.jvet10.ai
A19: DaylightRoad2.Q32.jvet10.ai
A20: DaylightRoad2.Q37.jvet10.ai
A21: ParkRunning3.Q22.jvet10.ai
A22: ParkRunning3.Q27.jvet10.ai
A23: ParkRunning3.Q32.jvet10.ai
A24: ParkRunning3.Q37.jvet10.ai
A25: MarketPlace.Q22.jvet10.ai
A26: MarketPlace.Q27.jvet10.ai
A27: MarketPlace.Q32.jvet10.ai
A28: MarketPlace.Q37.jvet10.ai
A29: RitualDance.Q22.jvet10.ai
A30: RitualDance.Q27.jvet10.ai
A31: RitualDance.Q32.jvet10.ai
A32: RitualDance.Q37.jvet10.ai
A33: Cactus.Q22.jvet10.ai
A34: Cactus.Q27.jvet10.ai
A35: Cactus.Q32.jvet10.ai
A36: Cactus.Q37.jvet10.ai
A37: BasketballDrive.Q22.jvet10.ai
A38: BasketballDrive.Q27.jvet10.ai
A39: BasketballDrive.Q32.jvet10.ai
A40: BasketballDrive.Q37.jvet10.ai
A41: BQTerrace.Q22.jvet10.ai
A42: BQTerrace.Q27.jvet10.ai
A43: BQTerrace.Q32.jvet10.ai
A44: BQTerrace.Q37.jvet10.ai
A45: BasketballDrill.Q22.jvet10.ai
A46: BasketballDrill.Q27.jvet10.ai
A47: BasketballDrill.Q32.jvet10.ai
A48: BasketballDrill.Q37.jvet10.ai
A49: BQMall.Q22.jvet10.ai
A50: BQMall.Q27.jvet10.ai
A51: BQMall.Q32.jvet10.ai
A52: BQMall.Q37.jvet10.ai
A53: PartyScene.Q22.jvet10.ai
A54: PartyScene.Q27.jvet10.ai
A55: PartyScene.Q32.jvet10.ai
A56: PartyScene.Q37.jvet10.ai
A57: RaceHorsesC.Q22.jvet10.ai
A58: RaceHorsesC.Q27.jvet10.ai
A59: RaceHorsesC.Q32.jvet10.ai
A60: RaceHorsesC.Q37.jvet10.ai
A61: BasketballPass.Q22.jvet10.ai
A62: BasketballPass.Q27.jvet10.ai
A63: BasketballPass.Q32.jvet10.ai
A64: BasketballPass.Q37.jvet10.ai
A65: BQSquare.Q22.jvet10.ai
A66: BQSquare.Q27.jvet10.ai
A67: BQSquare.Q32.jvet10.ai
A68: BQSquare.Q37.jvet10.ai
A69: BlowingBubbles.Q22.jvet10.ai
A70: BlowingBubbles.Q27.jvet10.ai
A71: BlowingBubbles.Q32.jvet10.ai
A72: BlowingBubbles.Q37.jvet10.ai
A73: RaceHorses.Q22.jvet10.ai
A74: RaceHorses.Q27.jvet10.ai
A75: RaceHorses.Q32.jvet10.ai
A76: RaceHorses.Q37.jvet10.ai
A77: FourPeople.Q22.jvet10.ai
A78: FourPeople.Q27.jvet10.ai
A79: FourPeople.Q32.jvet10.ai
A80: FourPeople.Q37.jvet10.ai
A81: Johnny.Q22.jvet10.ai
A82: Johnny.Q27.jvet10.ai
A83: Johnny.Q32.jvet10.ai
A84: Johnny.Q37.jvet10.ai
A85: KristenAndSara.Q22.jvet10.ai
A86: KristenAndSara.Q27.jvet10.ai
A87: KristenAndSara.Q32.jvet10.ai
A88: KristenAndSara.Q37.jvet10.ai
A89: BasketballDrillText.Q22.jvet10.ai
A90: BasketballDrillText.Q27.jvet10.ai
A91: BasketballDrillText.Q32.jvet10.ai
A92: BasketballDrillText.Q37.jvet10.ai
A93: ChinaSpeed.Q22.jvet10.ai
A94: ChinaSpeed.Q27.jvet10.ai
A95: ChinaSpeed.Q32.jvet10.ai
A96: ChinaSpeed.Q37.jvet10.ai
A97: SlideEditing.Q22.jvet10.ai
A98: SlideEditing.Q27.jvet10.ai
A99: SlideEditing.Q32.jvet10.ai
A100: SlideEditing.Q37.jvet10.ai
A101: SlideShow.Q22.jvet10.ai
A102: SlideShow.Q27.jvet10.ai
A103: SlideShow.Q32.jvet10.ai
A104: SlideShow.Q37.jvet10.ai
A105: Tango2.Q22.jvet10.ra
A106: Tango2.Q27.jvet10.ra
A107: Tango2.Q32.jvet10.ra
A108: Tango2.Q37.jvet10.ra
A109: FoodMarket4.Q22.jvet10.ra
A110: FoodMarket4.Q27.jvet10.ra
A111: FoodMarket4.Q32.jvet10.ra
A112: FoodMarket4.Q37.jvet10.ra
A113: CampfireParty2.Q22.jvet10.ra
A114: CampfireParty2.Q27.jvet10.ra
A115: CampfireParty2.Q32.jvet10.ra
A116: CampfireParty2.Q37.jvet10.ra
A117: CatRobot1.Q22.jvet10.ra
A118: CatRobot1.Q27.jvet10.ra
A119: CatRobot1.Q32.jvet10.ra
A120: CatRobot1.Q37.jvet10.ra
A121: DaylightRoad2.Q22.jvet10.ra
A122: DaylightRoad2.Q27.jvet10.ra
A123: DaylightRoad2.Q32.jvet10.ra
A124: DaylightRoad2.Q37.jvet10.ra
A125: ParkRunning3.Q22.jvet10.ra
A126: ParkRunning3.Q27.jvet10.ra
A127: ParkRunning3.Q32.jvet10.ra
A128: ParkRunning3.Q37.jvet10.ra
A129: MarketPlace.Q22.jvet10.ra
A130: MarketPlace.Q27.jvet10.ra
A131: MarketPlace.Q32.jvet10.ra
A132: MarketPlace.Q37.jvet10.ra
A133: RitualDance.Q22.jvet10.ra
A134: RitualDance.Q27.jvet10.ra
A135: RitualDance.Q32.jvet10.ra
A136: RitualDance.Q37.jvet10.ra
A137: Cactus.Q22.jvet10.ra
A138: Cactus.Q27.jvet10.ra
A139: Cactus.Q32.jvet10.ra
A140: Cactus.Q37.jvet10.ra
A141: BasketballDrive.Q22.jvet10.ra
A142: BasketballDrive.Q27.jvet10.ra
A143: BasketballDrive.Q32.jvet10.ra
A144: BasketballDrive.Q37.jvet10.ra
A145: BQTerrace.Q22.jvet10.ra
A146: BQTerrace.Q27.jvet10.ra
A147: BQTerrace.Q32.jvet10.ra
A148: BQTerrace.Q37.jvet10.ra
A149: BasketballDrill.Q22.jvet10.ra
A150: BasketballDrill.Q27.jvet10.ra
A151: BasketballDrill.Q32.jvet10.ra
A152: BasketballDrill.Q37.jvet10.ra
A153: BQMall.Q22.jvet10.ra
A154: BQMall.Q27.jvet10.ra
A155: BQMall.Q32.jvet10.ra
A156: BQMall.Q37.jvet10.ra
A157: PartyScene.Q22.jvet10.ra
A158: PartyScene.Q27.jvet10.ra
A159: PartyScene.Q32.jvet10.ra
A160: PartyScene.Q37.jvet10.ra
A161: RaceHorsesC.Q22.jvet10.ra
A162: RaceHorsesC.Q27.jvet10.ra
A163: RaceHorsesC.Q32.jvet10.ra
A164: RaceHorsesC.Q37.jvet10.ra
A165: BasketballPass.Q22.jvet10.ra
A166: BasketballPass.Q27.jvet10.ra
A167: BasketballPass.Q32.jvet10.ra
A168: BasketballPass.Q37.jvet10.ra
A169: BQSquare.Q22.jvet10.ra
A170: BQSquare.Q27.jvet10.ra
A171: BQSquare.Q32.jvet10.ra
A172: BQSquare.Q37.jvet10.ra
A173: BlowingBubbles.Q22.jvet10.ra
A174: BlowingBubbles.Q27.jvet10.ra
A175: BlowingBubbles.Q32.jvet10.ra
A176: BlowingBubbles.Q37.jvet10.ra
A177: RaceHorses.Q22.jvet10.ra
A178: RaceHorses.Q27.jvet10.ra
A179: RaceHorses.Q32.jvet10.ra
A180: RaceHorses.Q37.jvet10.ra
A181: FourPeople.Q22.jvet10.ra
A182: FourPeople.Q27.jvet10.ra
A183: FourPeople.Q32.jvet10.ra
A184: FourPeople.Q37.jvet10.ra
A185: Johnny.Q22.jvet10.ra
A186: Johnny.Q27.jvet10.ra
A187: Johnny.Q32.jvet10.ra
A188: Johnny.Q37.jvet10.ra
A189: KristenAndSara.Q22.jvet10.ra
A190: KristenAndSara.Q27.jvet10.ra
A191: KristenAndSara.Q32.jvet10.ra
A192: KristenAndSara.Q37.jvet10.ra
A193: BasketballDrillText.Q22.jvet10.ra
A194: BasketballDrillText.Q27.jvet10.ra
A195: BasketballDrillText.Q32.jvet10.ra
A196: BasketballDrillText.Q37.jvet10.ra
A197: ChinaSpeed.Q22.jvet10.ra
A198: ChinaSpeed.Q27.jvet10.ra
A199: ChinaSpeed.Q32.jvet10.ra
A200: ChinaSpeed.Q37.jvet10.ra
... 216 more rows
